Workbook

Sheet Instructions
A1: Milk Forecasting Calculator Instructions
A2: This tool enables you to create a milk production and sales income forecast for up to 3 years from your yield and expected calvings.
A3: It also allows you to see the impact of changing yield, calvings, lactation curve or lactation period on your milk production and milk sales income.
A5: Input is via the "Input" and "Calving Input" sheets, and entries are required in all white cells.
A6: Please note, if you only want to do a 1 year milk forecast, you can leave the Calving Input sheet blank for years 2 and 3
A8: Entry on Input sheet
A9: On the Input sheet - select the start month for your year 1 forecast from the drop down list.
A10: Enter your annual milk production for the last 12 months - ideally running up to the start of the date you entered above
A11: Enter the total number of cows (including heifers-in-milk) in your herd at the start of the year.
A12: Enter your typical calving interval (in days)
A13: Enter your typical dry period (in days)
A14: Select a shape of lactation curve from the drop down list that suits your system. The chart on the Input sheet will change, depending on which curve you choose.
A15: Try different curves as selecting the wrong one can make very large difference to the pattern of milk output, although overall lacation yields will be very similar.
A16: Enter your heifer-in-milk yield as a percentage of what you achieve for cows-in-milk. If heifer and cow yields are similar, enter 100% in this cell.
A17: The spreadsheet will calculate an estimate for your average yield per cow-in-milk based on the numbers you entered above.
A18: You can either use this calculated number or enter your own figure for yield per cow in milk in the white cell.
A19: If you plan to increase or decrease milk yield over the coming years, enter the rate of change as a %.
A20: If milk yield per cow is expected to reduce, enter a negative number.
A21: If you do not plan to change your yield over the period, then please enter 0 in this cell
A22: The spreadsheet will show you what your milk yield will be at the end of year 3 based on the percentage change you have entered.
A24: If you want to look at the impact of changes on farm, you can enter data in the alternative scenario cells and a comparison will be done.
A26: Entry on Calving Input sheet
A27: You will need to enter the number of cows and heifers who calved each month last year.
A28: Also then enter the number of cows and heifers you expect to calve each month for the next 3 years.
A29: Please note, if you only want to do a 1 year milk forecast, you can leave the Calving Input sheet blank for years 2 and 3
A30: In order to get an estimate of milk revenue and feed requirements, enter your estimated milk price, feed price and feed rate.
A32: Entry on Culling rate sheet
A33: The Culling rate sheet allows you to add details of culling rates. For example, if you have historically had to cull out 5% of your cows 6 months after calving, you
A34: can enter those details onto this sheet. In such circumstances, you would add 5% in for month 6 and leave everything else as zero.
A35: It is worth noting that putting anything other than zero in this sheet will also impact on the number of cows-in-milk in any particular month.
A36: The numbers used will be applied to historic calvings as well as future calvings
A38: Outputs
A39: The milk forecast is created automatically as you enter numbers. This forecast will appear on the Output sheet.
A40: The milk forecast, milk revenue, milk yield and margin over feed are also shown on charts on the Output Charts sheet.
A42: Typical profile types
A43: Copy the typical profile name from below and paste into the typical profile boxes in the input tab.
A45: Name | B45: Decription
A46: Feed to yield | B46: High Peak yield and reduce feed as milk yields fall ,eg normal parlour feeding
A47: Step rate | B47: High peaks but cows fed in steps according to stage of lactation not yield
A48: Flat rate | B48: Lower peaks with one fixed level of concentrates fed to all cows
A49: Total mixed ration | B49: One mixed ration fed to all milking cows
A50: Three times a day milking | B50: TMR or partial mixed diet plus cake with 3x a day or robotic milking
A51: Once a day milking | B51: Predominantly grazing system but cows only milked once per day
A52: Spring block | B52: Intensively grazed, grass based system
A53: Autumn block | B53: Herd fed to achieve maximum yield in winter and maximise grazing in spring

Sheet Input
A1: Milk Forecasting Calculator
A3: This tool enables you to create a milk production and sales income forecast for up to 3 years from your yield and expected calvings.
A4: It also allows you to see the impact of changing yield, calvings, lactation curve or lactation period on your milk production and milk sales income.
A5: For instructions please refer to the "Instructions" sheet.
F7: Current scenario
E9: Start month of forecast | F9: 2019-04-30
E10: Current annual milk production | F10: 1000000 | G10: litres
E11: =CONCATENATE("Number of cows in herd at start of ",TEXT(F9,"mmm-yy")," ") -> Number of cows in herd at start of Apr-19 | F11: 156 | G11: cows
E12: Current typical calving interval | F12: 365 | G12: days
E13: Typical dry period | F13: 60 | G13: days
E14: Typical profile | F14: Feed to yield
E15: Heifer yield as % of cow yield | F15: 0.85 | G15: %
E17: Estimated current yield per cow in milk | F17: =F10/ROUND(F11*(F12-F13)/F12,0) -> 7692.307692 | G17: litres
E18: Current yield per cow in milk to be used | F18: =F17 -> 7692.307692 | G18: litres
E19: Planned annual increase in yield | F19: 0 | G19: % | H19: =CONCATENATE(F14," - ",HLOOKUP(F14,'Yields for charts'!$B$20:$Q$21,2,FALSE)) -> Feed to yield - High Peak yield and reduce feed as milk yields fall, e.g. normal parlour feeding
E20: Estimated yield per cow in milk at end of year 3 | F20: =F18*(1+F19)^3 -> 7692.307692 | G20: litres
F23: Alternative scenario
E25: Typical calving interval | F25: 365 | G25: days
E26: Typical dry period | F26: 60 | G26: days
E27: Typical profile | F27: Feed to yield
E29: Estimated yield per cow in milk | F29: =F10/ROUND(F11*(F25-F26)/F25,0) -> 7692.307692 | G29: litres
E30: Current yield per cow in milk to be used | F30: =F29 -> 7692.307692 | G30: litres
E31: Planned annual increase/decrease in yield | F31: 0 | G31: %
E32: Estimated yield per cow in milk at end of year 3 | F32: =F30*(1+F31)^3 -> 7692.307692 | G32: litres
H34: =CONCATENATE(F27," - ",HLOOKUP(F27,'Yields for charts'!$B$20:$Q$21,2,FALSE)) -> Feed to yield - High Peak yield and reduce feed as milk yields fall, e.g. normal parlour feeding
A37: AHDB Dairy is a division of the Agricultural and Horticultural Development Board.
A38: While the Agriculture and Horticulture Development Board seeks to ensure that the information contained within this document is accurate at the time of printing, no warranty is given in respect thereof and, to the maximum extent permitted by law, the Agriculture and Horticulture Development Board accepts no liability for loss, damage or injury howsoever caused (including that caused by negligence) or suffered directly or indirectly in relation to information and opinions contained in or omitted from this document.

Sheet Calving input
C1: Milk Forecasting Calculator | H1: Milk Forecasting Calculator
C2: Current scenario | H2: Alternative scenario
B3: Month | C3: Heifer calvings | D3: Cow calvings | E3: Milk price | F3: Feed cost | G3: Feed rate | H3: Heifer calvings | I3: Cow calvings | J3: Milk price | K3: Feed cost | L3: Feed rate
C4: in month | D4: in month | E4: ppl | F4: £ per kg | G4: kgs per cow-in-milk per day | H4: in month | I4: in month | J4: ppl | K4: £ per kg | L4: kgs per cow-in-milk per day
A5: LAST YEAR | B5: =EOMONTH(B6,-1) -> 2018-04-30 | C5: 3 | D5: 10 | H5: 3 | I5: 10
B6: 2018-05-31 | C6: =C5 -> 3 | D6: =D5 -> 10 | H6: =H5 -> 3 | I6: =I5 -> 10
B7: 2018-06-30 | C7: =C6 -> 3 | D7: 10 | H7: =H6 -> 3 | I7: 10
B8: 2018-07-31 | C8: 3 | D8: 10 | H8: 3 | I8: 10
B9: 2018-08-31 | C9: 3 | D9: 10 | H9: 3 | I9: 10
B10: 2018-09-30 | C10: 3 | D10: 10 | H10: 3 | I10: 10
B11: 2018-10-31 | C11: 3 | D11: 10 | H11: 3 | I11: 10
B12: 2018-11-30 | C12: 3 | D12: 10 | H12: 3 | I12: 10
B13: 2018-12-31 | C13: 3 | D13: 10 | H13: 3 | I13: 10
B14: 2019-01-31 | C14: 3 | D14: 10 | H14: 3 | I14: 10
B15: 2019-02-28 | C15: 3 | D15: 10 | H15: 3 | I15: 10
B16: =EOMONTH(B18,-1) -> 2019-03-31 | C16: 3 | D16: 10 | H16: 3 | I16: 10
B17: Year | C17: =SUM(C5:C16) -> 36 | D17: =SUM(D5:D16) -> 120 | H17: =SUM(H5:H16) -> 36 | I17: =SUM(I5:I16) -> 120
A18: FIRST YEAR TO FORECAST | B18: =Input!F9 -> 2019-04-30 | C18: =C5 -> 3 | D18: =D5 -> 10 | E18: 28 | F18: 0.2 | G18: 7.4 | H18: 3 | I18: 10 | J18: 28 | K18: 0.2 | L18: 7.4
B19: =EOMONTH(B18,1) -> 2019-05-31 | C19: =C6 -> 3 | D19: 10 | E19: =E18 -> 28 | F19: =F18 -> 0.2 | G19: =G18 -> 7.4 | H19: 3 | I19: 10 | J19: 28 | K19: 0.2 | L19: 7.4
B20: =EOMONTH(B19,1) -> 2019-06-30 | C20: 3 | D20: 10 | E20: =E19 -> 28 | F20: 0.2 | G20: 7.4 | H20: 3 | I20: 10 | J20: 28 | K20: 0.2 | L20: 7.4
B21: 2019-07-31 | C21: 3 | D21: 10 | E21: 28 | F21: 0.2 | G21: 7.4 | H21: 3 | I21: 10 | J21: 28 | K21: 0.2 | L21: 7.4
B22: 2019-08-31 | C22: 3 | D22: 10 | E22: 28 | F22: 0.2 | G22: 7.4 | H22: 3 | I22: 10 | J22: 28 | K22: 0.2 | L22: 7.4
B23: 2019-09-30 | C23: 3 | D23: 10 | E23: 28 | F23: 0.2 | G23: 7.4 | H23: 3 | I23: 10 | J23: 28 | K23: 0.2 | L23: 7.4
B24: 2019-10-31 | C24: 3 | D24: 10 | E24: 28 | F24: 0.2 | G24: 7.4 | H24: 3 | I24: 10 | J24: 28 | K24: 0.2 | L24: 7.4
B25: 2019-11-30 | C25: 3 | D25: 10 | E25: 28 | F25: 0.2 | G25: 7.4 | H25: 3 | I25: 10 | J25: 28 | K25: 0.2 | L25: 7.4
B26: 2019-12-31 | C26: 3 | D26: 10 | E26: 28 | F26: 0.2 | G26: 7.4 | H26: 3 | I26: 10 | J26: 28 | K26: 0.2 | L26: 7.4
B27: 2020-01-31 | C27: 3 | D27: 10 | E27: 28 | F27: 0.2 | G27: 7.4 | H27: 3 | I27: 10 | J27: 28 | K27: 0.2 | L27: 7.4
B28: 2020-02-29 | C28: 3 | D28: 10 | E28: 28 | F28: 0.2 | G28: 7.4 | H28: 3 | I28: 10 | J28: 28 | K28: 0.2 | L28: 7.4
B29: 2020-03-31 | C29: 3 | D29: 10 | E29: 28 | F29: 0.2 | G29: 7.4 | H29: 3 | I29: 10 | J29: 28 | K29: 0.2 | L29: 7.4
B30: Year | C30: =SUM(C18:C29) -> 36 | D30: =SUM(D18:D29) -> 120 | H30: =SUM(H18:H29) -> 36 | I30: =SUM(I18:I29) -> 120
A31: 2ND YEAR TO FORECAST | B31: =EOMONTH(B29,1) -> 2020-04-30 | C31: =C18 -> 3 | D31: =D18 -> 10 | E31: 28 | F31: 0.2 | G31: 7.4 | H31: 3 | I31: 10 | J31: 28 | K31: 0.2 | L31: 7.4
B32: =EOMONTH(B31,1) -> 2020-05-31 | C32: =C19 -> 3 | D32: 10 | E32: 28 | F32: 0.2 | G32: 7.4 | H32: 3 | I32: 10 | J32: 28 | K32: 0.2 | L32: 7.4
B33: =EOMONTH(B32,1) -> 2020-06-30 | C33: 3 | D33: 10 | E33: 28 | F33: 0.2 | G33: 7.4 | H33: 3 | I33: 10 | J33: 28 | K33: 0.2 | L33: 7.4
B34: 2020-07-31 | C34: 3 | D34: 10 | E34: 28 | F34: 0.2 | G34: 7.4 | H34: 3 | I34: 10 | J34: 28 | K34: 0.2 | L34: 7.4
B35: 2020-08-31 | C35: 3 | D35: 10 | E35: 28 | F35: 0.2 | G35: 7.4 | H35: 3 | I35: 10 | J35: 28 | K35: 0.2 | L35: 7.4
B36: 2020-09-30 | C36: 3 | D36: 10 | E36: 28 | F36: 0.2 | G36: 7.4 | H36: 3 | I36: 10 | J36: 28 | K36: 0.2 | L36: 7.4
B37: 2020-10-31 | C37: 3 | D37: 10 | E37: 28 | F37: 0.2 | G37: 7.4 | H37: 3 | I37: 10 | J37: 28 | K37: 0.2 | L37: 7.4
B38: 2020-11-30 | C38: 3 | D38: 10 | E38: 28 | F38: 0.2 | G38: 7.4 | H38: 3 | I38: 10 | J38: 28 | K38: 0.2 | L38: 7.4
B39: 2020-12-31 | C39: 3 | D39: 10 | E39: 28 | F39: 0.2 | G39: 7.4 | H39: 3 | I39: 10 | J39: 28 | K39: 0.2 | L39: 7.4
B40: 2021-01-31 | C40: 3 | D40: 10 | E40: 28 | F40: 0.2 | G40: 7.4 | H40: 3 | I40: 10 | J40: 28 | K40: 0.2 | L40: 7.4
B41: 2021-02-28 | C41: 3 | D41: 10 | E41: 28 | F41: 0.2 | G41: 7.4 | H41: 3 | I41: 10 | J41: 28 | K41: 0.2 | L41: 7.4
B42: 2021-03-31 | C42: 3 | D42: 10 | E42: 28 | F42: 0.2 | G42: 7.4 | H42: 3 | I42: 10 | J42: 28 | K42: 0.2 | L42: 7.4
B43: Year | C43: =SUM(C31:C42) -> 36 | D43: =SUM(D31:D42) -> 120 | H43: =SUM(H31:H42) -> 36 | I43: =SUM(I31:I42) -> 120
A44: 3RD YEAR TO FORECAST | B44: =EOMONTH(B42,1) -> 2021-04-30 | C44: =C31 -> 3 | D44: =D31 -> 10 | E44: 28 | F44: 0.2 | G44: 7.4 | H44: 3 | I44: 10 | J44: 28 | K44: 0.2 | L44: 7.4
B45: =EOMONTH(B44,1) -> 2021-05-31 | C45: =C32 -> 3 | D45: 10 | E45: 28 | F45: 0.2 | G45: 7.4 | H45: 3 | I45: 10 | J45: 28 | K45: 0.2 | L45: 7.4
B46: =EOMONTH(B45,1) -> 2021-06-30 | C46: 3 | D46: 10 | E46: 28 | F46: 0.2 | G46: 7.4 | H46: 3 | I46: 10 | J46: 28 | K46: 0.2 | L46: 7.4
B47: 2021-07-31 | C47: 3 | D47: 10 | E47: 28 | F47: 0.2 | G47: 7.4 | H47: 3 | I47: 10 | J47: 28 | K47: 0.2 | L47: 7.4
B48: 2021-08-31 | C48: 3 | D48: 10 | E48: 28 | F48: 0.2 | G48: 7.4 | H48: 3 | I48: 10 | J48: 28 | K48: 0.2 | L48: 7.4
B49: 2021-09-30 | C49: 3 | D49: 10 | E49: 28 | F49: 0.2 | G49: 7.4 | H49: 3 | I49: 10 | J49: 28 | K49: 0.2 | L49: 7.4
B50: 2021-10-31 | C50: 3 | D50: 10 | E50: 28 | F50: 0.2 | G50: 7.4 | H50: 3 | I50: 10 | J50: 28 | K50: 0.2 | L50: 7.4
B51: 2021-11-30 | C51: 3 | D51: 10 | E51: 28 | F51: 0.2 | G51: 7.4 | H51: 3 | I51: 10 | J51: 28 | K51: 0.2 | L51: 7.4
B52: 2021-12-31 | C52: 3 | D52: 10 | E52: 28 | F52: 0.2 | G52: 7.4 | H52: 3 | I52: 10 | J52: 28 | K52: 0.2 | L52: 7.4
B53: 2022-01-31 | C53: 3 | D53: 10 | E53: 28 | F53: 0.2 | G53: 7.4 | H53: 3 | I53: 10 | J53: 28 | K53: 0.2 | L53: 7.4
B54: 2022-02-28 | C54: 3 | D54: 10 | E54: 28 | F54: 0.2 | G54: 7.4 | H54: 3 | I54: 10 | J54: 28 | K54: 0.2 | L54: 7.4
B55: 2022-03-31 | C55: 3 | D55: 10 | E55: 28 | F55: 0.2 | G55: 7.4 | H55: 3 | I55: 10 | J55: 28 | K55: 0.2 | L55: 7.4
B56: Year | C56: =SUM(C44:C55) -> 36 | D56: =SUM(D44:D55) -> 120 | H56: =SUM(H44:H55) -> 36 | I56: =SUM(I44:I55) -> 120

Sheet Culling rate
B1: Milk Forecasting Calculator | F1: Milk Forecasting Calculator
B2: Current scenario | D2: Alternative scenario | F2: Current scenario | H2: Alternative scenario
A3: Month of lactation | B3: Culling rates | D3: Culling rates | F3: Proportion of animals still milking | H3: Proportion of animals still milking
B4: Heifers | C4: Cows | D4: Heifers | E4: Cows | F4: Heifers | G4: Cows | H4: Heifers | I4: Cows
A5: 1 | B5: 0 | C5: 0 | D5: 0 | E5: 0 | F5: =1-B5 -> 1 | G5: =1-C5 -> 1 | H5: =1-D5 -> 1 | I5: =1-E5 -> 1
A6: 2 | B6: 0 | C6: 0 | D6: 0 | E6: 0 | F6: =F5*(1-B6) -> 1 | G6: =G5*(1-C6) -> 1 | H6: =H5*(1-D6) -> 1 | I6: =I5*(1-E6) -> 1
A7: 3 | B7: 0 | C7: 0 | D7: 0 | E7: 0 | F7: =F6*(1-B7) -> 1 | G7: 1 | H7: 1 | I7: 1
A8: 4 | B8: 0 | C8: 0 | D8: 0 | E8: 0 | F8: 1 | G8: 1 | H8: 1 | I8: 1
A9: 5 | B9: 0 | C9: 0 | D9: 0.2 | E9: 0.2 | F9: 1 | G9: 1 | H9: 0.8 | I9: 0.8
A10: 6 | B10: 0 | C10: 0 | D10: 0.2 | E10: 0.2 | F10: 1 | G10: 1 | H10: 0.64 | I10: 0.64
A11: 7 | B11: 0 | C11: 0 | D11: 0.2 | E11: 0.2 | F11: 1 | G11: 1 | H11: 0.512 | I11: 0.512
A12: 8 | B12: 0 | C12: 0 | D12: 1 | E12: 1 | F12: 1 | G12: 1 | H12: 0 | I12: 0
A13: 9 | B13: 0 | C13: 0 | D13: 0 | E13: 0 | F13: 1 | G13: 1 | H13: 0 | I13: 0
A14: 10 | B14: 0 | C14: 0 | D14: 0 | E14: 0 | F14: 1 | G14: 1 | H14: 0 | I14: 0
A15: 11 | B15: 0 | C15: 0 | D15: 0 | E15: 0 | F15: 1 | G15: 1 | H15: 0 | I15: 0
A16: 12 | B16: 0 | C16: 0 | D16: 0 | E16: 0 | F16: 1 | G16: 1 | H16: 0 | I16: 0
A17: 13 | B17: 0 | C17: 0 | D17: 0 | E17: 0 | F17: 1 | G17: 1 | H17: 0 | I17: 0
A18: 14 | B18: 0 | C18: 0 | D18: 0 | E18: 0 | F18: 1 | G18: 1 | H18: 0 | I18: 0

Sheet Output
B1: Milk Forecasting Calculator Outputs | J1: Milk Forecasting Calculator Outputs
B2: Current Scenario Forecast | J2: Alternative Scenario Forecast
B3: Lactation curve: | E3: =CONCATENATE(" ",Input!F14) -> Feed to yield | J3: Lactation curve: | M3: =CONCATENATE(" ",Input!F27) -> Feed to yield
B4: Typical lactation period: | E4: =CONCATENATE(" ",Input!F12, " days") -> 365 days | J4: Typical lactation period: | M4: =CONCATENATE(" ",Input!F25, " days") -> 365 days
B5: Typical dry period: | E5: =CONCATENATE(" ",Input!F13, " days") -> 60 days | J5: Typical dry period: | M5: =CONCATENATE(" ",Input!F26, " days") -> 60 days
B6: Days | C6: Cows in Milk | D6: Total milk produced (litres) | E6: Daily yield per cow in milk (litres) | F6: Total milk revenue (£) | G6: Concentrate used (kgs / mth) | H6: Concentrate cost (£) | I6: Manual seasonal adjustment | J6: Cows in Milk | K6: Total milk produced (litres) | L6: Daily yield per cow in milk (litres) | M6: Total milk revenue (£) | N6: Concentrate used (kgs / mth) | O6: Concentrate cost (£) | P6: Manual seasonal adjustment | Q6: Total milk versus current (l)
A7: =Input!F9 -> 2019-04-30 | B7: =DAY(A7) -> 30 | C7: ='Hidden calculation original'!S5+'Hidden calculation original'!AJ5 -> 130 | D7: ='Hidden calculation original'!AV5*Output!I7*B7 -> 82191.78082 | E7: =IF(C7=0,0,D7/$B7/C7) -> 21.0748156 | F7: =D7*'Calving input'!E18/100 -> 23013.69863 | G7: =C7*'Calving input'!G18*B7 -> 28860 | H7: =G7*'Calving input'!F18 -> 5772 | I7: 1 | J7: ='Hidden calculation alter'!S5+'Hidden calculation alter'!AJ5 -> 78 | K7: ='Hidden calculation alter'!AV5*P7*B7 -> 56733.73197 | L7: =IF(J7=0,0,K7/B7/J7) -> 24.2451846 | M7: =K7*'Calving input'!J18/100 -> 15885.44495 | N7: =J7*'Calving input'!L18*B7 -> 17316 | O7: =N7*'Calving input'!K18 -> 3463.2 | P7: 1 | Q7: =K7-D7 -> -25458.04886
A8: =EOMONTH(A7,1) -> 2019-05-31 | B8: =DAY(A8) -> 31 | C8: ='Hidden calculation original'!S6+'Hidden calculation original'!AJ6 -> 130 | D8: ='Hidden calculation original'!AV6*Output!I8*B8 -> 84931.50685 | E8: =IF(C8=0,0,D8/$B8/C8) -> 21.0748156 | F8: =D8*'Calving input'!E19/100 -> 23780.82192 | G8: =C8*'Calving input'!G19*B8 -> 29822 | H8: =G8*'Calving input'!F19 -> 5964.4 | I8: 1 | J8: ='Hidden calculation alter'!S6+'Hidden calculation alter'!AJ6 -> 78 | K8: ='Hidden calculation alter'!AV6*P8*B8 -> 58624.85637 | L8: 24.2451846 | M8: =K8*'Calving input'!J19/100 -> 16414.95978 | N8: =J8*'Calving input'!L19*B8 -> 17893.2 | O8: =N8*'Calving input'!K19 -> 3578.64 | P8: 1 | Q8: -26306.65048
A9: 2019-06-30 | B9: 30 | C9: ='Hidden calculation original'!S7+'Hidden calculation original'!AJ7 -> 130 | D9: ='Hidden calculation original'!AV7*Output!I9*B9 -> 82191.78082 | E9: 21.0748156 | F9: =D9*'Calving input'!E20/100 -> 23013.69863 | G9: =C9*'Calving input'!G20*B9 -> 28860 | H9: =G9*'Calving input'!F20 -> 5772 | I9: 1 | J9: ='Hidden calculation alter'!S7+'Hidden calculation alter'!AJ7 -> 78 | K9: ='Hidden calculation alter'!AV7*P9*B9 -> 56733.73197 | L9: 24.2451846 | M9: =K9*'Calving input'!J20/100 -> 15885.44495 | N9: =J9*'Calving input'!L20*B9 -> 17316 | O9: =N9*'Calving input'!K20 -> 3463.2 | P9: 1 | Q9: -25458.04886
A10: 2019-07-31 | B10: 31 | C10: ='Hidden calculation original'!S8+'Hidden calculation original'!AJ8 -> 130 | D10: ='Hidden calculation original'!AV8*Output!I10*B10 -> 84931.50685 | E10: 21.0748156 | F10: =D10*'Calving input'!E21/100 -> 23780.82192 | G10: =C10*'Calving input'!G21*B10 -> 29822 | H10: =G10*'Calving input'!F21 -> 5964.4 | I10: 1 | J10: ='Hidden calculation alter'!S8+'Hidden calculation alter'!AJ8 -> 78 | K10: ='Hidden calculation alter'!AV8*P10*B10 -> 58624.85637 | L10: 24.2451846 | M10: =K10*'Calving input'!J21/100 -> 16414.95978 | N10: =J10*'Calving input'!L21*B10 -> 17893.2 | O10: =N10*'Calving input'!K21 -> 3578.64 | P10: 1 | Q10: -26306.65048
A11: 2019-08-31 | B11: 31 | C11: ='Hidden calculation original'!S9+'Hidden calculation original'!AJ9 -> 130 | D11: ='Hidden calculation original'!AV9*Output!I11*B11 -> 84931.50685 | E11: 21.0748156 | F11: =D11*'Calving input'!E22/100 -> 23780.82192 | G11: =C11*'Calving input'!G22*B11 -> 29822 | H11: =G11*'Calving input'!F22 -> 5964.4 | I11: 1 | J11: ='Hidden calculation alter'!S9+'Hidden calculation alter'!AJ9 -> 78 | K11: ='Hidden calculation alter'!AV9*P11*B11 -> 58624.85637 | L11: 24.2451846 | M11: =K11*'Calving input'!J22/100 -> 16414.95978 | N11: =J11*'Calving input'!L22*B11 -> 17893.2 | O11: =N11*'Calving input'!K22 -> 3578.64 | P11: 1 | Q11: -26306.65048
A12: 2019-09-30 | B12: 30 | C12: ='Hidden calculation original'!S10+'Hidden calculation original'!AJ10 -> 130 | D12: ='Hidden calculation original'!AV10*Output!I12*B12 -> 82191.78082 | E12: 21.0748156 | F12: =D12*'Calving input'!E23/100 -> 23013.69863 | G12: =C12*'Calving input'!G23*B12 -> 28860 | H12: =G12*'Calving input'!F23 -> 5772 | I12: 1 | J12: ='Hidden calculation alter'!S10+'Hidden calculation alter'!AJ10 -> 78 | K12: ='Hidden calculation alter'!AV10*P12*B12 -> 56733.73197 | L12: 24.2451846 | M12: =K12*'Calving input'!J23/100 -> 15885.44495 | N12: =J12*'Calving input'!L23*B12 -> 17316 | O12: =N12*'Calving input'!K23 -> 3463.2 | P12: 1 | Q12: -25458.04886
A13: 2019-10-31 | B13: 31 | C13: ='Hidden calculation original'!S11+'Hidden calculation original'!AJ11 -> 130 | D13: ='Hidden calculation original'!AV11*Output!I13*B13 -> 84931.50685 | E13: 21.0748156 | F13: =D13*'Calving input'!E24/100 -> 23780.82192 | G13: =C13*'Calving input'!G24*B13 -> 29822 | H13: =G13*'Calving input'!F24 -> 5964.4 | I13: 1 | J13: ='Hidden calculation alter'!S11+'Hidden calculation alter'!AJ11 -> 78 | K13: ='Hidden calculation alter'!AV11*P13*B13 -> 58624.85637 | L13: 24.2451846 | M13: =K13*'Calving input'!J24/100 -> 16414.95978 | N13: =J13*'Calving input'!L24*B13 -> 17893.2 | O13: =N13*'Calving input'!K24 -> 3578.64 | P13: 1 | Q13: -26306.65048
A14: 2019-11-30 | B14: 30 | C14: ='Hidden calculation original'!S12+'Hidden calculation original'!AJ12 -> 130 | D14: ='Hidden calculation original'!AV12*Output!I14*B14 -> 82191.78082 | E14: 21.0748156 | F14: =D14*'Calving input'!E25/100 -> 23013.69863 | G14: =C14*'Calving input'!G25*B14 -> 28860 | H14: =G14*'Calving input'!F25 -> 5772 | I14: 1 | J14: ='Hidden calculation alter'!S12+'Hidden calculation alter'!AJ12 -> 78 | K14: ='Hidden calculation alter'!AV12*P14*B14 -> 56733.73197 | L14: 24.2451846 | M14: =K14*'Calving input'!J25/100 -> 15885.44495 | N14: =J14*'Calving input'!L25*B14 -> 17316 | O14: =N14*'Calving input'!K25 -> 3463.2 | P14: 1 | Q14: -25458.04886
A15: 2019-12-31 | B15: 31 | C15: ='Hidden calculation original'!S13+'Hidden calculation original'!AJ13 -> 130 | D15: ='Hidden calculation original'!AV13*Output!I15*B15 -> 84931.50685 | E15: 21.0748156 | F15: =D15*'Calving input'!E26/100 -> 23780.82192 | G15: =C15*'Calving input'!G26*B15 -> 29822 | H15: =G15*'Calving input'!F26 -> 5964.4 | I15: 1 | J15: ='Hidden calculation alter'!S13+'Hidden calculation alter'!AJ13 -> 78 | K15: ='Hidden calculation alter'!AV13*P15*B15 -> 58624.85637 | L15: 24.2451846 | M15: =K15*'Calving input'!J26/100 -> 16414.95978 | N15: =J15*'Calving input'!L26*B15 -> 17893.2 | O15: =N15*'Calving input'!K26 -> 3578.64 | P15: 1 | Q15: -26306.65048
A16: 2020-01-31 | B16: 31 | C16: ='Hidden calculation original'!S14+'Hidden calculation original'!AJ14 -> 130 | D16: ='Hidden calculation original'!AV14*Output!I16*B16 -> 84931.50685 | E16: 21.0748156 | F16: =D16*'Calving input'!E27/100 -> 23780.82192 | G16: =C16*'Calving input'!G27*B16 -> 29822 | H16: =G16*'Calving input'!F27 -> 5964.4 | I16: 1 | J16: ='Hidden calculation alter'!S14+'Hidden calculation alter'!AJ14 -> 78 | K16: ='Hidden calculation alter'!AV14*P16*B16 -> 58624.85637 | L16: 24.2451846 | M16: =K16*'Calving input'!J27/100 -> 16414.95978 | N16: =J16*'Calving input'!L27*B16 -> 17893.2 | O16: =N16*'Calving input'!K27 -> 3578.64 | P16: 1 | Q16: -26306.65048
A17: 2020-02-29 | B17: 29 | C17: ='Hidden calculation original'!S15+'Hidden calculation original'!AJ15 -> 130 | D17: ='Hidden calculation original'!AV15*Output!I17*B17 -> 79452.05479 | E17: 21.0748156 | F17: =D17*'Calving input'!E28/100 -> 22246.57534 | G17: =C17*'Calving input'!G28*B17 -> 27898 | H17: =G17*'Calving input'!F28 -> 5579.6 | I17: 1 | J17: ='Hidden calculation alter'!S15+'Hidden calculation alter'!AJ15 -> 78 | K17: ='Hidden calculation alter'!AV15*P17*B17 -> 54842.60757 | L17: 24.2451846 | M17: =K17*'Calving input'!J28/100 -> 15355.93012 | N17: =J17*'Calving input'!L28*B17 -> 16738.8 | O17: =N17*'Calving input'!K28 -> 3347.76 | P17: 1 | Q17: -24609.44723
A18: 2020-03-31 | B18: 31 | C18: ='Hidden calculation original'!S16+'Hidden calculation original'!AJ16 -> 130 | D18: ='Hidden calculation original'!AV16*Output!I18*B18 -> 84931.50685 | E18: 21.0748156 | F18: =D18*'Calving input'!E29/100 -> 23780.82192 | G18: =C18*'Calving input'!G29*B18 -> 29822 | H18: =G18*'Calving input'!F29 -> 5964.4 | I18: 1 | J18: ='Hidden calculation alter'!S16+'Hidden calculation alter'!AJ16 -> 78 | K18: ='Hidden calculation alter'!AV16*P18*B18 -> 58624.85637 | L18: 24.2451846 | M18: =K18*'Calving input'!J29/100 -> 16414.95978 | N18: =J18*'Calving input'!L29*B18 -> 17893.2 | O18: =N18*'Calving input'!K29 -> 3578.64 | P18: 1 | Q18: -26306.65048
A19: Year 1 | B19: =SUM(B7:B18) -> 366 | C19: =AVERAGE(C7:C18) -> 130 | D19: =SUM(D7:D18) -> 1002739.726 | E19: 21.0748156 | F19: =SUM(F7:F18) -> 280767.1233 | G19: =SUM(G7:G18) -> 352092 | H19: =SUM(H7:H18) -> 70418.4 | I19: =AVERAGE(I7:I18) -> 1 | J19: =AVERAGE(J7:J18) -> 78 | K19: =SUM(K7:K18) -> 692151.53 | L19: 24.2451846 | M19: =SUM(M7:M18) -> 193802.4284 | N19: =SUM(N7:N18) -> 211255.2 | O19: =SUM(O7:O18) -> 42251.04 | P19: =AVERAGE(P7:P18) -> 1 | Q19: -310588.196
E20: =E19*B19 -> 7713.382508 | F20: Forecast annual yield per cow in milk | L20: =L19*B19 -> 8873.737564 | M20: Forecast annual yield per cow in milk
A22: =EOMONTH(A18,1) -> 2020-04-30 | B22: =DAY(A22) -> 30 | C22: ='Hidden calculation original'!S17+'Hidden calculation original'!AJ17 -> 130 | D22: ='Hidden calculation original'!AV17*Output!I22*B22 -> 82191.78082 | E22: =IF(C22=0,0,D22/$B22/C22) -> 21.0748156 | F22: =D22*'Calving input'!E31/100 -> 23013.69863 | G22: =C22*'Calving input'!G31*B22 -> 28860 | H22: =G22*'Calving input'!F31 -> 5772 | I22: 1 | J22: ='Hidden calculation alter'!S17+'Hidden calculation alter'!AJ17 -> 78 | K22: ='Hidden calculation alter'!AV17*P22*B22 -> 56733.73197 | L22: =IF(J22=0,0,K22/B22/J22) -> 24.2451846 | M22: =K22*'Calving input'!J31/100 -> 15885.44495 | N22: =J22*'Calving input'!L31*B22 -> 17316 | O22: =N22*'Calving input'!K31 -> 3463.2 | P22: 1 | Q22: =K22-D22 -> -25458.04886
A23: =EOMONTH(A22,1) -> 2020-05-31 | B23: =DAY(A23) -> 31 | C23: ='Hidden calculation original'!S18+'Hidden calculation original'!AJ18 -> 130 | D23: ='Hidden calculation original'!AV18*Output!I23*B23 -> 84931.50685 | E23: =IF(C23=0,0,D23/$B23/C23) -> 21.0748156 | F23: =D23*'Calving input'!E32/100 -> 23780.82192 | G23: =C23*'Calving input'!G32*B23 -> 29822 | H23: =G23*'Calving input'!F32 -> 5964.4 | I23: 1 | J23: ='Hidden calculation alter'!S18+'Hidden calculation alter'!AJ18 -> 78 | K23: ='Hidden calculation alter'!AV18*P23*B23 -> 58624.85637 | L23: 24.2451846 | M23: =K23*'Calving input'!J32/100 -> 16414.95978 | N23: =J23*'Calving input'!L32*B23 -> 17893.2 | O23: =N23*'Calving input'!K32 -> 3578.64 | P23: 1 | Q23: -26306.65048
A24: 2020-06-30 | B24: 30 | C24: ='Hidden calculation original'!S19+'Hidden calculation original'!AJ19 -> 130 | D24: ='Hidden calculation original'!AV19*Output!I24*B24 -> 82191.78082 | E24: 21.0748156 | F24: =D24*'Calving input'!E33/100 -> 23013.69863 | G24: =C24*'Calving input'!G33*B24 -> 28860 | H24: =G24*'Calving input'!F33 -> 5772 | I24: 1 | J24: ='Hidden calculation alter'!S19+'Hidden calculation alter'!AJ19 -> 78 | K24: ='Hidden calculation alter'!AV19*P24*B24 -> 56733.73197 | L24: 24.2451846 | M24: =K24*'Calving input'!J33/100 -> 15885.44495 | N24: =J24*'Calving input'!L33*B24 -> 17316 | O24: =N24*'Calving input'!K33 -> 3463.2 | P24: 1 | Q24: -25458.04886
A25: 2020-07-31 | B25: 31 | C25: ='Hidden calculation original'!S20+'Hidden calculation original'!AJ20 -> 130 | D25: ='Hidden calculation original'!AV20*Output!I25*B25 -> 84931.50685 | E25: 21.0748156 | F25: =D25*'Calving input'!E34/100 -> 23780.82192 | G25: =C25*'Calving input'!G34*B25 -> 29822 | H25: =G25*'Calving input'!F34 -> 5964.4 | I25: 1 | J25: ='Hidden calculation alter'!S20+'Hidden calculation alter'!AJ20 -> 78 | K25: ='Hidden calculation alter'!AV20*P25*B25 -> 58624.85637 | L25: 24.2451846 | M25: =K25*'Calving input'!J34/100 -> 16414.95978 | N25: =J25*'Calving input'!L34*B25 -> 17893.2 | O25: =N25*'Calving input'!K34 -> 3578.64 | P25: 1 | Q25: -26306.65048
A26: 2020-08-31 | B26: 31 | C26: ='Hidden calculation original'!S21+'Hidden calculation original'!AJ21 -> 130 | D26: ='Hidden calculation original'!AV21*Output!I26*B26 -> 84931.50685 | E26: 21.0748156 | F26: =D26*'Calving input'!E35/100 -> 23780.82192 | G26: =C26*'Calving input'!G35*B26 -> 29822 | H26: =G26*'Calving input'!F35 -> 5964.4 | I26: 1 | J26: ='Hidden calculation alter'!S21+'Hidden calculation alter'!AJ21 -> 78 | K26: ='Hidden calculation alter'!AV21*P26*B26 -> 58624.85637 | L26: 24.2451846 | M26: =K26*'Calving input'!J35/100 -> 16414.95978 | N26: =J26*'Calving input'!L35*B26 -> 17893.2 | O26: =N26*'Calving input'!K35 -> 3578.64 | P26: 1 | Q26: -26306.65048
A27: 2020-09-30 | B27: 30 | C27: ='Hidden calculation original'!S22+'Hidden calculation original'!AJ22 -> 130 | D27: ='Hidden calculation original'!AV22*Output!I27*B27 -> 82191.78082 | E27: 21.0748156 | F27: =D27*'Calving input'!E36/100 -> 23013.69863 | G27: =C27*'Calving input'!G36*B27 -> 28860 | H27: =G27*'Calving input'!F36 -> 5772 | I27: 1 | J27: ='Hidden calculation alter'!S22+'Hidden calculation alter'!AJ22 -> 78 | K27: ='Hidden calculation alter'!AV22*P27*B27 -> 56733.73197 | L27: 24.2451846 | M27: =K27*'Calving input'!J36/100 -> 15885.44495 | N27: =J27*'Calving input'!L36*B27 -> 17316 | O27: =N27*'Calving input'!K36 -> 3463.2 | P27: 1 | Q27: -25458.04886
A28: 2020-10-31 | B28: 31 | C28: ='Hidden calculation original'!S23+'Hidden calculation original'!AJ23 -> 130 | D28: ='Hidden calculation original'!AV23*Output!I28*B28 -> 84931.50685 | E28: 21.0748156 | F28: =D28*'Calving input'!E37/100 -> 23780.82192 | G28: =C28*'Calving input'!G37*B28 -> 29822 | H28: =G28*'Calving input'!F37 -> 5964.4 | I28: 1 | J28: ='Hidden calculation alter'!S23+'Hidden calculation alter'!AJ23 -> 78 | K28: ='Hidden calculation alter'!AV23*P28*B28 -> 58624.85637 | L28: 24.2451846 | M28: =K28*'Calving input'!J37/100 -> 16414.95978 | N28: =J28*'Calving input'!L37*B28 -> 17893.2 | O28: =N28*'Calving input'!K37 -> 3578.64 | P28: 1 | Q28: -26306.65048
A29: 2020-11-30 | B29: 30 | C29: ='Hidden calculation original'!S24+'Hidden calculation original'!AJ24 -> 130 | D29: ='Hidden calculation original'!AV24*Output!I29*B29 -> 82191.78082 | E29: 21.0748156 | F29: =D29*'Calving input'!E38/100 -> 23013.69863 | G29: =C29*'Calving input'!G38*B29 -> 28860 | H29: =G29*'Calving input'!F38 -> 5772 | I29: 1 | J29: ='Hidden calculation alter'!S24+'Hidden calculation alter'!AJ24 -> 78 | K29: ='Hidden calculation alter'!AV24*P29*B29 -> 56733.73197 | L29: 24.2451846 | M29: =K29*'Calving input'!J38/100 -> 15885.44495 | N29: =J29*'Calving input'!L38*B29 -> 17316 | O29: =N29*'Calving input'!K38 -> 3463.2 | P29: 1 | Q29: -25458.04886
A30: 2020-12-31 | B30: 31 | C30: ='Hidden calculation original'!S25+'Hidden calculation original'!AJ25 -> 130 | D30: ='Hidden calculation original'!AV25*Output!I30*B30 -> 84931.50685 | E30: 21.0748156 | F30: =D30*'Calving input'!E39/100 -> 23780.82192 | G30: =C30*'Calving input'!G39*B30 -> 29822 | H30: =G30*'Calving input'!F39 -> 5964.4 | I30: 1 | J30: ='Hidden calculation alter'!S25+'Hidden calculation alter'!AJ25 -> 78 | K30: ='Hidden calculation alter'!AV25*P30*B30 -> 58624.85637 | L30: 24.2451846 | M30: =K30*'Calving input'!J39/100 -> 16414.95978 | N30: =J30*'Calving input'!L39*B30 -> 17893.2 | O30: =N30*'Calving input'!K39 -> 3578.64 | P30: 1 | Q30: -26306.65048
A31: 2021-01-31 | B31: 31 | C31: ='Hidden calculation original'!S26+'Hidden calculation original'!AJ26 -> 130 | D31: ='Hidden calculation original'!AV26*Output!I31*B31 -> 84931.50685 | E31: 21.0748156 | F31: =D31*'Calving input'!E40/100 -> 23780.82192 | G31: =C31*'Calving input'!G40*B31 -> 29822 | H31: =G31*'Calving input'!F40 -> 5964.4 | I31: 1 | J31: ='Hidden calculation alter'!S26+'Hidden calculation alter'!AJ26 -> 78 | K31: ='Hidden calculation alter'!AV26*P31*B31 -> 58624.85637 | L31: 24.2451846 | M31: =K31*'Calving input'!J40/100 -> 16414.95978 | N31: =J31*'Calving input'!L40*B31 -> 17893.2 | O31: =N31*'Calving input'!K40 -> 3578.64 | P31: 1 | Q31: -26306.65048
A32: 2021-02-28 | B32: 28 | C32: ='Hidden calculation original'!S27+'Hidden calculation original'!AJ27 -> 130 | D32: ='Hidden calculation original'!AV27*Output!I32*B32 -> 76712.32877 | E32: 21.0748156 | F32: =D32*'Calving input'!E41/100 -> 21479.45205 | G32: =C32*'Calving input'!G41*B32 -> 26936 | H32: =G32*'Calving input'!F41 -> 5387.2 | I32: 1 | J32: ='Hidden calculation alter'!S27+'Hidden calculation alter'!AJ27 -> 78 | K32: ='Hidden calculation alter'!AV27*P32*B32 -> 52951.48317 | L32: 24.2451846 | M32: =K32*'Calving input'!J41/100 -> 14826.41529 | N32: =J32*'Calving input'!L41*B32 -> 16161.6 | O32: =N32*'Calving input'!K41 -> 3232.32 | P32: 1 | Q32: -23760.8456
A33: 2021-03-31 | B33: 31 | C33: ='Hidden calculation original'!S28+'Hidden calculation original'!AJ28 -> 130 | D33: ='Hidden calculation original'!AV28*Output!I33*B33 -> 84931.50685 | E33: 21.0748156 | F33: =D33*'Calving input'!E42/100 -> 23780.82192 | G33: =C33*'Calving input'!G42*B33 -> 29822 | H33: =G33*'Calving input'!F42 -> 5964.4 | I33: 1 | J33: ='Hidden calculation alter'!S28+'Hidden calculation alter'!AJ28 -> 78 | K33: ='Hidden calculation alter'!AV28*P33*B33 -> 58624.85637 | L33: 24.2451846 | M33: =K33*'Calving input'!J42/100 -> 16414.95978 | N33: =J33*'Calving input'!L42*B33 -> 17893.2 | O33: =N33*'Calving input'!K42 -> 3578.64 | P33: 1 | Q33: -26306.65048
A34: Year 2 | B34: =SUM(B22:B33) -> 365 | C34: =AVERAGE(C22:C33) -> 130 | D34: =SUM(D22:D33) -> 1000000 | E34: 21.0748156 | F34: =SUM(F22:F33) -> 280000 | G34: =SUM(G22:G33) -> 351130 | H34: =SUM(H22:H33) -> 70226 | I34: =AVERAGE(I22:I33) -> 1 | J34: =AVERAGE(J22:J33) -> 78 | K34: =SUM(K22:K33) -> 690260.4056 | L34: 24.2451846 | M34: =SUM(M22:M33) -> 193272.9136 | N34: =SUM(N22:N33) -> 210678 | O34: =SUM(O22:O33) -> 42135.6 | P34: =AVERAGE(P22:P33) -> 1 | Q34: -309739.5944
E35: =E34*B34 -> 7692.307692 | F35: Forecast annual yield per cow in milk | L35: =L34*B34 -> 8849.492379 | M35: Forecast annual yield per cow in milk
A37: =EOMONTH(A33,1) -> 2021-04-30 | B37: =DAY(A37) -> 30 | C37: ='Hidden calculation original'!S29+'Hidden calculation original'!AJ29 -> 130 | D37: ='Hidden calculation original'!AV29*Output!I37*B37 -> 82191.78082 | E37: =IF(C37=0,0,D37/$B37/C37) -> 21.0748156 | F37: =D37*'Calving input'!E44/100 -> 23013.69863 | G37: =C37*'Calving input'!G44*B37 -> 28860 | H37: =G37*'Calving input'!F44 -> 5772 | I37: 1 | J37: ='Hidden calculation alter'!S29+'Hidden calculation alter'!AJ29 -> 78 | K37: ='Hidden calculation alter'!AV29*P37*B37 -> 56733.73197 | L37: =IF(J37=0,0,K37/B37/J37) -> 24.2451846 | M37: =K37*'Calving input'!J44/100 -> 15885.44495 | N37: =J37*'Calving input'!L44*B37 -> 17316 | O37: =N37*'Calving input'!K44 -> 3463.2 | P37: 1 | Q37: =K37-D37 -> -25458.04886
A38: =EOMONTH(A37,1) -> 2021-05-31 | B38: =DAY(A38) -> 31 | C38: ='Hidden calculation original'!S30+'Hidden calculation original'!AJ30 -> 130 | D38: ='Hidden calculation original'!AV30*Output!I38*B38 -> 84931.50685 | E38: =IF(C38=0,0,D38/$B38/C38) -> 21.0748156 | F38: =D38*'Calving input'!E45/100 -> 23780.82192 | G38: =C38*'Calving input'!G45*B38 -> 29822 | H38: =G38*'Calving input'!F45 -> 5964.4 | I38: 1 | J38: ='Hidden calculation alter'!S30+'Hidden calculation alter'!AJ30 -> 78 | K38: ='Hidden calculation alter'!AV30*P38*B38 -> 58624.85637 | L38: 24.2451846 | M38: =K38*'Calving input'!J45/100 -> 16414.95978 | N38: =J38*'Calving input'!L45*B38 -> 17893.2 | O38: =N38*'Calving input'!K45 -> 3578.64 | P38: 1 | Q38: -26306.65048
A39: 2021-06-30 | B39: 30 | C39: ='Hidden calculation original'!S31+'Hidden calculation original'!AJ31 -> 130 | D39: ='Hidden calculation original'!AV31*Output!I39*B39 -> 82191.78082 | E39: 21.0748156 | F39: =D39*'Calving input'!E46/100 -> 23013.69863 | G39: =C39*'Calving input'!G46*B39 -> 28860 | H39: =G39*'Calving input'!F46 -> 5772 | I39: 1 | J39: ='Hidden calculation alter'!S31+'Hidden calculation alter'!AJ31 -> 78 | K39: ='Hidden calculation alter'!AV31*P39*B39 -> 56733.73197 | L39: 24.2451846 | M39: =K39*'Calving input'!J46/100 -> 15885.44495 | N39: =J39*'Calving input'!L46*B39 -> 17316 | O39: =N39*'Calving input'!K46 -> 3463.2 | P39: 1 | Q39: -25458.04886
A40: 2021-07-31 | B40: 31 | C40: ='Hidden calculation original'!S32+'Hidden calculation original'!AJ32 -> 130 | D40: ='Hidden calculation original'!AV32*Output!I40*B40 -> 84931.50685 | E40: 21.0748156 | F40: =D40*'Calving input'!E47/100 -> 23780.82192 | G40: =C40*'Calving input'!G47*B40 -> 29822 | H40: =G40*'Calving input'!F47 -> 5964.4 | I40: 1 | J40: ='Hidden calculation alter'!S32+'Hidden calculation alter'!AJ32 -> 78 | K40: ='Hidden calculation alter'!AV32*P40*B40 -> 58624.85637 | L40: 24.2451846 | M40: =K40*'Calving input'!J47/100 -> 16414.95978 | N40: =J40*'Calving input'!L47*B40 -> 17893.2 | O40: =N40*'Calving input'!K47 -> 3578.64 | P40: 1 | Q40: -26306.65048
A41: 2021-08-31 | B41: 31 | C41: ='Hidden calculation original'!S33+'Hidden calculation original'!AJ33 -> 130 | D41: ='Hidden calculation original'!AV33*Output!I41*B41 -> 84931.50685 | E41: 21.0748156 | F41: =D41*'Calving input'!E48/100 -> 23780.82192 | G41: =C41*'Calving input'!G48*B41 -> 29822 | H41: =G41*'Calving input'!F48 -> 5964.4 | I41: 1 | J41: ='Hidden calculation alter'!S33+'Hidden calculation alter'!AJ33 -> 78 | K41: ='Hidden calculation alter'!AV33*P41*B41 -> 58624.85637 | L41: 24.2451846 | M41: =K41*'Calving input'!J48/100 -> 16414.95978 | N41: =J41*'Calving input'!L48*B41 -> 17893.2 | O41: =N41*'Calving input'!K48 -> 3578.64 | P41: 1 | Q41: -26306.65048
A42: 2021-09-30 | B42: 30 | C42: ='Hidden calculation original'!S34+'Hidden calculation original'!AJ34 -> 130 | D42: ='Hidden calculation original'!AV34*Output!I42*B42 -> 82191.78082 | E42: 21.0748156 | F42: =D42*'Calving input'!E49/100 -> 23013.69863 | G42: =C42*'Calving input'!G49*B42 -> 28860 | H42: =G42*'Calving input'!F49 -> 5772 | I42: 1 | J42: ='Hidden calculation alter'!S34+'Hidden calculation alter'!AJ34 -> 78 | K42: ='Hidden calculation alter'!AV34*P42*B42 -> 56733.73197 | L42: 24.2451846 | M42: =K42*'Calving input'!J49/100 -> 15885.44495 | N42: =J42*'Calving input'!L49*B42 -> 17316 | O42: =N42*'Calving input'!K49 -> 3463.2 | P42: 1 | Q42: -25458.04886
A43: 2021-10-31 | B43: 31 | C43: ='Hidden calculation original'!S35+'Hidden calculation original'!AJ35 -> 130 | D43: ='Hidden calculation original'!AV35*Output!I43*B43 -> 84931.50685 | E43: 21.0748156 | F43: =D43*'Calving input'!E50/100 -> 23780.82192 | G43: =C43*'Calving input'!G50*B43 -> 29822 | H43: =G43*'Calving input'!F50 -> 5964.4 | I43: 1 | J43: ='Hidden calculation alter'!S35+'Hidden calculation alter'!AJ35 -> 78 | K43: ='Hidden calculation alter'!AV35*P43*B43 -> 58624.85637 | L43: 24.2451846 | M43: =K43*'Calving input'!J50/100 -> 16414.95978 | N43: =J43*'Calving input'!L50*B43 -> 17893.2 | O43: =N43*'Calving input'!K50 -> 3578.64 | P43: 1 | Q43: -26306.65048
A44: 2021-11-30 | B44: 30 | C44: ='Hidden calculation original'!S36+'Hidden calculation original'!AJ36 -> 130 | D44: ='Hidden calculation original'!AV36*Output!I44*B44 -> 82191.78082 | E44: 21.0748156 | F44: =D44*'Calving input'!E51/100 -> 23013.69863 | G44: =C44*'Calving input'!G51*B44 -> 28860 | H44: =G44*'Calving input'!F51 -> 5772 | I44: 1 | J44: ='Hidden calculation alter'!S36+'Hidden calculation alter'!AJ36 -> 78 | K44: ='Hidden calculation alter'!AV36*P44*B44 -> 56733.73197 | L44: 24.2451846 | M44: =K44*'Calving input'!J51/100 -> 15885.44495 | N44: =J44*'Calving input'!L51*B44 -> 17316 | O44: =N44*'Calving input'!K51 -> 3463.2 | P44: 1 | Q44: -25458.04886
A45: 2021-12-31 | B45: 31 | C45: ='Hidden calculation original'!S37+'Hidden calculation original'!AJ37 -> 130 | D45: ='Hidden calculation original'!AV37*Output!I45*B45 -> 84931.50685 | E45: 21.0748156 | F45: =D45*'Calving input'!E52/100 -> 23780.82192 | G45: =C45*'Calving input'!G52*B45 -> 29822 | H45: =G45*'Calving input'!F52 -> 5964.4 | I45: 1 | J45: ='Hidden calculation alter'!S37+'Hidden calculation alter'!AJ37 -> 78 | K45: ='Hidden calculation alter'!AV37*P45*B45 -> 58624.85637 | L45: 24.2451846 | M45: =K45*'Calving input'!J52/100 -> 16414.95978 | N45: =J45*'Calving input'!L52*B45 -> 17893.2 | O45: =N45*'Calving input'!K52 -> 3578.64 | P45: 1 | Q45: -26306.65048
A46: 2022-01-31 | B46: 31 | C46: ='Hidden calculation original'!S38+'Hidden calculation original'!AJ38 -> 130 | D46: ='Hidden calculation original'!AV38*Output!I46*B46 -> 84931.50685 | E46: 21.0748156 | F46: =D46*'Calving input'!E53/100 -> 23780.82192 | G46: =C46*'Calving input'!G53*B46 -> 29822 | H46: =G46*'Calving input'!F53 -> 5964.4 | I46: 1 | J46: ='Hidden calculation alter'!S38+'Hidden calculation alter'!AJ38 -> 78 | K46: ='Hidden calculation alter'!AV38*P46*B46 -> 58624.85637 | L46: 24.2451846 | M46: =K46*'Calving input'!J53/100 -> 16414.95978 | N46: =J46*'Calving input'!L53*B46 -> 17893.2 | O46: =N46*'Calving input'!K53 -> 3578.64 | P46: 1 | Q46: -26306.65048
A47: 2022-02-28 | B47: 28 | C47: ='Hidden calculation original'!S39+'Hidden calculation original'!AJ39 -> 130 | D47: ='Hidden calculation original'!AV39*Output!I47*B47 -> 76712.32877 | E47: 21.0748156 | F47: =D47*'Calving input'!E54/100 -> 21479.45205 | G47: =C47*'Calving input'!G54*B47 -> 26936 | H47: =G47*'Calving input'!F54 -> 5387.2 | I47: 1 | J47: ='Hidden calculation alter'!S39+'Hidden calculation alter'!AJ39 -> 78 | K47: ='Hidden calculation alter'!AV39*P47*B47 -> 52951.48317 | L47: 24.2451846 | M47: =K47*'Calving input'!J54/100 -> 14826.41529 | N47: =J47*'Calving input'!L54*B47 -> 16161.6 | O47: =N47*'Calving input'!K54 -> 3232.32 | P47: 1 | Q47: -23760.8456
A48: 2022-03-31 | B48: 31 | C48: ='Hidden calculation original'!S40+'Hidden calculation original'!AJ40 -> 130 | D48: ='Hidden calculation original'!AV40*Output!I48*B48 -> 84931.50685 | E48: 21.0748156 | F48: =D48*'Calving input'!E55/100 -> 23780.82192 | G48: =C48*'Calving input'!G55*B48 -> 29822 | H48: =G48*'Calving input'!F55 -> 5964.4 | I48: 1 | J48: ='Hidden calculation alter'!S40+'Hidden calculation alter'!AJ40 -> 78 | K48: ='Hidden calculation alter'!AV40*P48*B48 -> 58624.85637 | L48: 24.2451846 | M48: =K48*'Calving input'!J55/100 -> 16414.95978 | N48: =J48*'Calving input'!L55*B48 -> 17893.2 | O48: =N48*'Calving input'!K55 -> 3578.64 | P48: 1 | Q48: -26306.65048
A49: Year 3 | B49: =SUM(B37:B48) -> 365 | C49: =AVERAGE(C37:C48) -> 130 | D49: =SUM(D37:D48) -> 1000000 | E49: 21.0748156 | F49: =SUM(F37:F48) -> 280000 | G49: =SUM(G37:G48) -> 351130 | H49: =SUM(H37:H48) -> 70226 | I49: =AVERAGE(I37:I48) -> 1 | J49: =AVERAGE(J37:J48) -> 78 | K49: =SUM(K37:K48) -> 690260.4056 | L49: 24.2451846 | M49: =SUM(M37:M48) -> 193272.9136 | N49: =SUM(N37:N48) -> 210678 | O49: =SUM(O37:O48) -> 42135.6 | P49: =AVERAGE(P37:P48) -> 1 | Q49: -309739.5944
E50: =E49*B49 -> 7692.307692 | F50: Forecast annual yield per cow in milk | L50: =L49*B49 -> 8849.492379 | M50: Forecast annual yield per cow in milk

Sheet Output charts
A1: Milk Forecasting Calculator Outputs

Sheet Outputs for chart (hidden)
C1: Current scenario | D1: Alternative scenario | E1: Current scenario | F1: Alternative scenario | G1: Current scenario | H1: Alternative scenario | I1: Current scenario | J1: Alternative scenario | K1: Current scenario | L1: Alternative scenario | M1: Current scenario | N1: Alternative scenario
C2: Total milk produced (litres) | D2: Total milk produced (litres) | E2: Daily production | F2: Daily production | G2: Daily yield per cow in milk (litres) | H2: Daily yield per cow in milk (litres) | I2: Total Milk Value (£) | J2: Total Milk Value (£) | K2: Feed costs (£) | L2: Feed costs (£) | M2: Margin over feed (£) | N2: Margin over feed (£)
A3: =Output!A7 -> 2019-04-30 | B3: =DAY(A3) -> 30 | C3: =Output!D7 -> 82191.78082 | D3: =Output!K7 -> 56733.73197 | E3: =C3/$B3 -> 2739.726027 | F3: =D3/$B3 -> 1891.124399 | G3: =Output!E7 -> 21.0748156 | H3: =Output!L7 -> 24.2451846 | I3: =Output!F7 -> 23013.69863 | J3: =Output!M7 -> 15885.44495 | K3: =Output!H7 -> 5772 | L3: =Output!O7 -> 3463.2 | M3: =I3-K3 -> 17241.69863 | N3: =J3-L3 -> 12422.24495
A4: =Output!A8 -> 2019-05-31 | B4: =DAY(A4) -> 31 | C4: =Output!D8 -> 84931.50685 | D4: =Output!K8 -> 58624.85637 | E4: =C4/$B4 -> 2739.726027 | F4: 1891.124399 | G4: =Output!E8 -> 21.0748156 | H4: =Output!L8 -> 24.2451846 | I4: =Output!F8 -> 23780.82192 | J4: =Output!M8 -> 16414.95978 | K4: =Output!H8 -> 5964.4 | L4: =Output!O8 -> 3578.64 | M4: =I4-K4 -> 17816.42192 | N4: =J4-L4 -> 12836.31978
A5: =Output!A9 -> 2019-06-30 | B5: 30 | C5: =Output!D9 -> 82191.78082 | D5: =Output!K9 -> 56733.73197 | E5: 2739.726027 | F5: 1891.124399 | G5: =Output!E9 -> 21.0748156 | H5: =Output!L9 -> 24.2451846 | I5: =Output!F9 -> 23013.69863 | J5: =Output!M9 -> 15885.44495 | K5: =Output!H9 -> 5772 | L5: =Output!O9 -> 3463.2 | M5: 17241.69863 | N5: 12422.24495
A6: =Output!A10 -> 2019-07-31 | B6: 31 | C6: =Output!D10 -> 84931.50685 | D6: =Output!K10 -> 58624.85637 | E6: 2739.726027 | F6: 1891.124399 | G6: =Output!E10 -> 21.0748156 | H6: =Output!L10 -> 24.2451846 | I6: =Output!F10 -> 23780.82192 | J6: =Output!M10 -> 16414.95978 | K6: =Output!H10 -> 5964.4 | L6: =Output!O10 -> 3578.64 | M6: 17816.42192 | N6: 12836.31978
A7: =Output!A11 -> 2019-08-31 | B7: 31 | C7: =Output!D11 -> 84931.50685 | D7: =Output!K11 -> 58624.85637 | E7: 2739.726027 | F7: 1891.124399 | G7: =Output!E11 -> 21.0748156 | H7: =Output!L11 -> 24.2451846 | I7: =Output!F11 -> 23780.82192 | J7: =Output!M11 -> 16414.95978 | K7: =Output!H11 -> 5964.4 | L7: =Output!O11 -> 3578.64 | M7: 17816.42192 | N7: 12836.31978
A8: =Output!A12 -> 2019-09-30 | B8: 30 | C8: =Output!D12 -> 82191.78082 | D8: =Output!K12 -> 56733.73197 | E8: 2739.726027 | F8: 1891.124399 | G8: =Output!E12 -> 21.0748156 | H8: =Output!L12 -> 24.2451846 | I8: =Output!F12 -> 23013.69863 | J8: =Output!M12 -> 15885.44495 | K8: =Output!H12 -> 5772 | L8: =Output!O12 -> 3463.2 | M8: 17241.69863 | N8: 12422.24495
A9: =Output!A13 -> 2019-10-31 | B9: 31 | C9: =Output!D13 -> 84931.50685 | D9: =Output!K13 -> 58624.85637 | E9: 2739.726027 | F9: 1891.124399 | G9: =Output!E13 -> 21.0748156 | H9: =Output!L13 -> 24.2451846 | I9: =Output!F13 -> 23780.82192 | J9: =Output!M13 -> 16414.95978 | K9: =Output!H13 -> 5964.4 | L9: =Output!O13 -> 3578.64 | M9: 17816.42192 | N9: 12836.31978
A10: =Output!A14 -> 2019-11-30 | B10: 30 | C10: =Output!D14 -> 82191.78082 | D10: =Output!K14 -> 56733.73197 | E10: 2739.726027 | F10: 1891.124399 | G10: =Output!E14 -> 21.0748156 | H10: =Output!L14 -> 24.2451846 | I10: =Output!F14 -> 23013.69863 | J10: =Output!M14 -> 15885.44495 | K10: =Output!H14 -> 5772 | L10: =Output!O14 -> 3463.2 | M10: 17241.69863 | N10: 12422.24495
A11: =Output!A15 -> 2019-12-31 | B11: 31 | C11: =Output!D15 -> 84931.50685 | D11: =Output!K15 -> 58624.85637 | E11: 2739.726027 | F11: 1891.124399 | G11: =Output!E15 -> 21.0748156 | H11: =Output!L15 -> 24.2451846 | I11: =Output!F15 -> 23780.82192 | J11: =Output!M15 -> 16414.95978 | K11: =Output!H15 -> 5964.4 | L11: =Output!O15 -> 3578.64 | M11: 17816.42192 | N11: 12836.31978
A12: =Output!A16 -> 2020-01-31 | B12: 31 | C12: =Output!D16 -> 84931.50685 | D12: =Output!K16 -> 58624.85637 | E12: 2739.726027 | F12: 1891.124399 | G12: =Output!E16 -> 21.0748156 | H12: =Output!L16 -> 24.2451846 | I12: =Output!F16 -> 23780.82192 | J12: =Output!M16 -> 16414.95978 | K12: =Output!H16 -> 5964.4 | L12: =Output!O16 -> 3578.64 | M12: 17816.42192 | N12: 12836.31978
A13: =Output!A17 -> 2020-02-29 | B13: 29 | C13: =Output!D17 -> 79452.05479 | D13: =Output!K17 -> 54842.60757 | E13: 2739.726027 | F13: 1891.124399 | G13: =Output!E17 -> 21.0748156 | H13: =Output!L17 -> 24.2451846 | I13: =Output!F17 -> 22246.57534 | J13: =Output!M17 -> 15355.93012 | K13: =Output!H17 -> 5579.6 | L13: =Output!O17 -> 3347.76 | M13: 16666.97534 | N13: 12008.17012
A14: =Output!A18 -> 2020-03-31 | B14: 31 | C14: =Output!D18 -> 84931.50685 | D14: =Output!K18 -> 58624.85637 | E14: 2739.726027 | F14: 1891.124399 | G14: =Output!E18 -> 21.0748156 | H14: =Output!L18 -> 24.2451846 | I14: =Output!F18 -> 23780.82192 | J14: =Output!M18 -> 16414.95978 | K14: =Output!H18 -> 5964.4 | L14: =Output!O18 -> 3578.64 | M14: 17816.42192 | N14: 12836.31978
A15: =Output!A22 -> 2020-04-30 | B15: 30 | C15: =Output!D22 -> 82191.78082 | D15: =Output!K22 -> 56733.73197 | E15: 2739.726027 | F15: 1891.124399 | G15: =Output!E22 -> 21.0748156 | H15: =Output!L22 -> 24.2451846 | I15: =Output!F22 -> 23013.69863 | J15: =Output!M22 -> 15885.44495 | K15: =Output!H22 -> 5772 | L15: =Output!O22 -> 3463.2 | M15: 17241.69863 | N15: 12422.24495
A16: =Output!A23 -> 2020-05-31 | B16: 31 | C16: =Output!D23 -> 84931.50685 | D16: =Output!K23 -> 58624.85637 | E16: 2739.726027 | F16: 1891.124399 | G16: =Output!E23 -> 21.0748156 | H16: =Output!L23 -> 24.2451846 | I16: =Output!F23 -> 23780.82192 | J16: =Output!M23 -> 16414.95978 | K16: =Output!H23 -> 5964.4 | L16: =Output!O23 -> 3578.64 | M16: =I16-K16 -> 17816.42192 | N16: =J16-L16 -> 12836.31978
A17: =Output!A24 -> 2020-06-30 | B17: 30 | C17: =Output!D24 -> 82191.78082 | D17: =Output!K24 -> 56733.73197 | E17: 2739.726027 | F17: 1891.124399 | G17: =Output!E24 -> 21.0748156 | H17: =Output!L24 -> 24.2451846 | I17: =Output!F24 -> 23013.69863 | J17: =Output!M24 -> 15885.44495 | K17: =Output!H24 -> 5772 | L17: =Output!O24 -> 3463.2 | M17: 17241.69863 | N17: 12422.24495
A18: =Output!A25 -> 2020-07-31 | B18: 31 | C18: =Output!D25 -> 84931.50685 | D18: =Output!K25 -> 58624.85637 | E18: 2739.726027 | F18: 1891.124399 | G18: =Output!E25 -> 21.0748156 | H18: =Output!L25 -> 24.2451846 | I18: =Output!F25 -> 23780.82192 | J18: =Output!M25 -> 16414.95978 | K18: =Output!H25 -> 5964.4 | L18: =Output!O25 -> 3578.64 | M18: 17816.42192 | N18: 12836.31978
A19: =Output!A26 -> 2020-08-31 | B19: 31 | C19: =Output!D26 -> 84931.50685 | D19: =Output!K26 -> 58624.85637 | E19: 2739.726027 | F19: 1891.124399 | G19: =Output!E26 -> 21.0748156 | H19: =Output!L26 -> 24.2451846 | I19: =Output!F26 -> 23780.82192 | J19: =Output!M26 -> 16414.95978 | K19: =Output!H26 -> 5964.4 | L19: =Output!O26 -> 3578.64 | M19: 17816.42192 | N19: 12836.31978
A20: =Output!A27 -> 2020-09-30 | B20: 30 | C20: =Output!D27 -> 82191.78082 | D20: =Output!K27 -> 56733.73197 | E20: 2739.726027 | F20: 1891.124399 | G20: =Output!E27 -> 21.0748156 | H20: =Output!L27 -> 24.2451846 | I20: =Output!F27 -> 23013.69863 | J20: =Output!M27 -> 15885.44495 | K20: =Output!H27 -> 5772 | L20: =Output!O27 -> 3463.2 | M20: 17241.69863 | N20: 12422.24495
A21: =Output!A28 -> 2020-10-31 | B21: 31 | C21: =Output!D28 -> 84931.50685 | D21: =Output!K28 -> 58624.85637 | E21: 2739.726027 | F21: 1891.124399 | G21: =Output!E28 -> 21.0748156 | H21: =Output!L28 -> 24.2451846 | I21: =Output!F28 -> 23780.82192 | J21: =Output!M28 -> 16414.95978 | K21: =Output!H28 -> 5964.4 | L21: =Output!O28 -> 3578.64 | M21: 17816.42192 | N21: 12836.31978
A22: =Output!A29 -> 2020-11-30 | B22: 30 | C22: =Output!D29 -> 82191.78082 | D22: =Output!K29 -> 56733.73197 | E22: 2739.726027 | F22: 1891.124399 | G22: =Output!E29 -> 21.0748156 | H22: =Output!L29 -> 24.2451846 | I22: =Output!F29 -> 23013.69863 | J22: =Output!M29 -> 15885.44495 | K22: =Output!H29 -> 5772 | L22: =Output!O29 -> 3463.2 | M22: 17241.69863 | N22: 12422.24495
A23: =Output!A30 -> 2020-12-31 | B23: 31 | C23: =Output!D30 -> 84931.50685 | D23: =Output!K30 -> 58624.85637 | E23: 2739.726027 | F23: 1891.124399 | G23: =Output!E30 -> 21.0748156 | H23: =Output!L30 -> 24.2451846 | I23: =Output!F30 -> 23780.82192 | J23: =Output!M30 -> 16414.95978 | K23: =Output!H30 -> 5964.4 | L23: =Output!O30 -> 3578.64 | M23: 17816.42192 | N23: 12836.31978
A24: =Output!A31 -> 2021-01-31 | B24: 31 | C24: =Output!D31 -> 84931.50685 | D24: =Output!K31 -> 58624.85637 | E24: 2739.726027 | F24: 1891.124399 | G24: =Output!E31 -> 21.0748156 | H24: =Output!L31 -> 24.2451846 | I24: =Output!F31 -> 23780.82192 | J24: =Output!M31 -> 16414.95978 | K24: =Output!H31 -> 5964.4 | L24: =Output!O31 -> 3578.64 | M24: 17816.42192 | N24: 12836.31978
A25: =Output!A32 -> 2021-02-28 | B25: 28 | C25: =Output!D32 -> 76712.32877 | D25: =Output!K32 -> 52951.48317 | E25: 2739.726027 | F25: 1891.124399 | G25: =Output!E32 -> 21.0748156 | H25: =Output!L32 -> 24.2451846 | I25: =Output!F32 -> 21479.45205 | J25: =Output!M32 -> 14826.41529 | K25: =Output!H32 -> 5387.2 | L25: =Output!O32 -> 3232.32 | M25: 16092.25205 | N25: 11594.09529
A26: =Output!A33 -> 2021-03-31 | B26: 31 | C26: =Output!D33 -> 84931.50685 | D26: =Output!K33 -> 58624.85637 | E26: 2739.726027 | F26: 1891.124399 | G26: =Output!E33 -> 21.0748156 | H26: =Output!L33 -> 24.2451846 | I26: =Output!F33 -> 23780.82192 | J26: =Output!M33 -> 16414.95978 | K26: =Output!H33 -> 5964.4 | L26: =Output!O33 -> 3578.64 | M26: 17816.42192 | N26: 12836.31978
A27: =Output!A37 -> 2021-04-30 | B27: 30 | C27: =Output!D37 -> 82191.78082 | D27: =Output!K37 -> 56733.73197 | E27: 2739.726027 | F27: 1891.124399 | G27: =Output!E37 -> 21.0748156 | H27: =Output!L37 -> 24.2451846 | I27: =Output!F37 -> 23013.69863 | J27: =Output!M37 -> 15885.44495 | K27: =Output!H37 -> 5772 | L27: =Output!O37 -> 3463.2 | M27: 17241.69863 | N27: 12422.24495
A28: =Output!A38 -> 2021-05-31 | B28: 31 | C28: =Output!D38 -> 84931.50685 | D28: =Output!K38 -> 58624.85637 | E28: 2739.726027 | F28: 1891.124399 | G28: =Output!E38 -> 21.0748156 | H28: =Output!L38 -> 24.2451846 | I28: =Output!F38 -> 23780.82192 | J28: =Output!M38 -> 16414.95978 | K28: =Output!H38 -> 5964.4 | L28: =Output!O38 -> 3578.64 | M28: =I28-K28 -> 17816.42192 | N28: =J28-L28 -> 12836.31978
A29: =Output!A39 -> 2021-06-30 | B29: 30 | C29: =Output!D39 -> 82191.78082 | D29: =Output!K39 -> 56733.73197 | E29: 2739.726027 | F29: 1891.124399 | G29: =Output!E39 -> 21.0748156 | H29: =Output!L39 -> 24.2451846 | I29: =Output!F39 -> 23013.69863 | J29: =Output!M39 -> 15885.44495 | K29: =Output!H39 -> 5772 | L29: =Output!O39 -> 3463.2 | M29: 17241.69863 | N29: 12422.24495
A30: =Output!A40 -> 2021-07-31 | B30: 31 | C30: =Output!D40 -> 84931.50685 | D30: =Output!K40 -> 58624.85637 | E30: 2739.726027 | F30: 1891.124399 | G30: =Output!E40 -> 21.0748156 | H30: =Output!L40 -> 24.2451846 | I30: =Output!F40 -> 23780.82192 | J30: =Output!M40 -> 16414.95978 | K30: =Output!H40 -> 5964.4 | L30: =Output!O40 -> 3578.64 | M30: 17816.42192 | N30: 12836.31978
A31: =Output!A41 -> 2021-08-31 | B31: 31 | C31: =Output!D41 -> 84931.50685 | D31: =Output!K41 -> 58624.85637 | E31: 2739.726027 | F31: 1891.124399 | G31: =Output!E41 -> 21.0748156 | H31: =Output!L41 -> 24.2451846 | I31: =Output!F41 -> 23780.82192 | J31: =Output!M41 -> 16414.95978 | K31: =Output!H41 -> 5964.4 | L31: =Output!O41 -> 3578.64 | M31: 17816.42192 | N31: 12836.31978
A32: =Output!A42 -> 2021-09-30 | B32: 30 | C32: =Output!D42 -> 82191.78082 | D32: =Output!K42 -> 56733.73197 | E32: 2739.726027 | F32: 1891.124399 | G32: =Output!E42 -> 21.0748156 | H32: =Output!L42 -> 24.2451846 | I32: =Output!F42 -> 23013.69863 | J32: =Output!M42 -> 15885.44495 | K32: =Output!H42 -> 5772 | L32: =Output!O42 -> 3463.2 | M32: 17241.69863 | N32: 12422.24495
A33: =Output!A43 -> 2021-10-31 | B33: 31 | C33: =Output!D43 -> 84931.50685 | D33: =Output!K43 -> 58624.85637 | E33: 2739.726027 | F33: 1891.124399 | G33: =Output!E43 -> 21.0748156 | H33: =Output!L43 -> 24.2451846 | I33: =Output!F43 -> 23780.82192 | J33: =Output!M43 -> 16414.95978 | K33: =Output!H43 -> 5964.4 | L33: =Output!O43 -> 3578.64 | M33: 17816.42192 | N33: 12836.31978
A34: =Output!A44 -> 2021-11-30 | B34: 30 | C34: =Output!D44 -> 82191.78082 | D34: =Output!K44 -> 56733.73197 | E34: 2739.726027 | F34: 1891.124399 | G34: =Output!E44 -> 21.0748156 | H34: =Output!L44 -> 24.2451846 | I34: =Output!F44 -> 23013.69863 | J34: =Output!M44 -> 15885.44495 | K34: =Output!H44 -> 5772 | L34: =Output!O44 -> 3463.2 | M34: 17241.69863 | N34: 12422.24495
A35: =Output!A45 -> 2021-12-31 | B35: 31 | C35: =Output!D45 -> 84931.50685 | D35: =Output!K45 -> 58624.85637 | E35: 2739.726027 | F35: 1891.124399 | G35: =Output!E45 -> 21.0748156 | H35: =Output!L45 -> 24.2451846 | I35: =Output!F45 -> 23780.82192 | J35: =Output!M45 -> 16414.95978 | K35: =Output!H45 -> 5964.4 | L35: =Output!O45 -> 3578.64 | M35: 17816.42192 | N35: 12836.31978
A36: =Output!A46 -> 2022-01-31 | B36: 31 | C36: =Output!D46 -> 84931.50685 | D36: =Output!K46 -> 58624.85637 | E36: 2739.726027 | F36: 1891.124399 | G36: =Output!E46 -> 21.0748156 | H36: =Output!L46 -> 24.2451846 | I36: =Output!F46 -> 23780.82192 | J36: =Output!M46 -> 16414.95978 | K36: =Output!H46 -> 5964.4 | L36: =Output!O46 -> 3578.64 | M36: 17816.42192 | N36: 12836.31978
A37: =Output!A47 -> 2022-02-28 | B37: 28 | C37: =Output!D47 -> 76712.32877 | D37: =Output!K47 -> 52951.48317 | E37: 2739.726027 | F37: 1891.124399 | G37: =Output!E47 -> 21.0748156 | H37: =Output!L47 -> 24.2451846 | I37: =Output!F47 -> 21479.45205 | J37: =Output!M47 -> 14826.41529 | K37: =Output!H47 -> 5387.2 | L37: =Output!O47 -> 3232.32 | M37: 16092.25205 | N37: 11594.09529
A38: =Output!A48 -> 2022-03-31 | B38: 31 | C38: =Output!D48 -> 84931.50685 | D38: =Output!K48 -> 58624.85637 | E38: 2739.726027 | F38: 1891.124399 | G38: =Output!E48 -> 21.0748156 | H38: =Output!L48 -> 24.2451846 | I38: =Output!F48 -> 23780.82192 | J38: =Output!M48 -> 16414.95978 | K38: =Output!H48 -> 5964.4 | L38: =Output!O48 -> 3578.64 | M38: 17816.42192 | N38: 12836.31978

Sheet Hidden calculation original (hidden)
A1: Targets given | D1: Days | E1: 30 | F1: 61 | G1: 91 | H1: 122 | I1: 152 | J1: 183 | K1: 213 | L1: 244 | M1: 274 | N1: 305 | O1: 335 | P1: 365 | Q1: 395 | R1: 425
B2: start yield | D2: Retention | E2: ='Culling rate'!F5 -> 1 | F2: =IF(Input!$F$12-Input!F13>=F1,'Culling rate'!F6,IF(Input!$F$12-Input!F13<E1,0,(Input!$F$12-Input!F13-E1)/30)) -> 1 | G2: =IF(Input!$F$12-Input!F13>=G1,'Culling rate'!F7,IF(Input!$F$12-Input!F13<F1,0,(Input!$F$12-Input!F13-F1)/30)) -> 1 | H2: =IF(Input!$F$12-Input!F13>=H1,'Culling rate'!F8,IF(Input!$F$12-Input!F13<G1,0,(Input!$F$12-Input!F13-G1)/30)) -> 1 | I2: =IF(Input!$F$12-Input!F13>=I1,'Culling rate'!F9,IF(Input!$F$12-Input!F13<H1,0,(Input!$F$12-Input!F13-H1)/30)) -> 1 | J2: =IF(Input!$F$12-Input!F13>=J1,'Culling rate'!F10,IF(Input!$F$12-Input!F13<I1,0,(Input!$F$12-Input!F13-I1)/30)) -> 1 | K2: =IF(Input!$F$12-Input!F13>=K1,'Culling rate'!F11,IF(Input!$F$12-Input!F13<J1,0,(Input!$F$12-Input!F13-J1)/30)) -> 1 | L2: =IF(Input!$F$12-Input!F13>=L1,'Culling rate'!F12,IF(Input!$F$12-Input!F13<K1,0,(Input!$F$12-Input!F13-K1)/30)) -> 1 | M2: =IF(Input!$F$12-Input!F13>=M1,'Culling rate'!F13,IF(Input!$F$12-Input!F13<L1,0,(Input!$F$12-Input!F13-L1)/30)) -> 1 | N2: =IF(Input!$F$12-Input!F13>=N1,'Culling rate'!F14,IF(Input!$F$12-Input!F13<M1,0,(Input!$F$12-Input!F13-M1)/30)) -> 1 | O2: =IF(Input!$F$12-Input!F13>=O1,'Culling rate'!F15,IF(Input!$F$12-Input!F13<N1,0,(Input!$F$12-Input!F13-N1)/30)) -> 0 | P2: =IF(Input!$F$12-Input!F13>=P1,'Culling rate'!F16,IF(Input!$F$12-Input!F13<O1,0,(Input!$F$12-Input!F13-O1)/30)) -> 0 | Q2: =IF(Input!$F$12-Input!F13>=Q1,'Culling rate'!F17,IF(Input!$F$12-Input!F13<P1,0,(Input!$F$12-Input!F13-P1)/30)) -> 0 | R2: =IF(Input!$F$12-Input!F13>=R1,'Culling rate'!F18,IF(Input!$F$12-Input!F13<Q1,0,(Input!$F$12-Input!F13-Q1)/30)) -> 0 | U2: Retention | V2: ='Culling rate'!G5 -> 1 | W2: =IF(Input!$F$12-Input!F13>=F1,'Culling rate'!G6,IF(Input!$F$12-Input!F13<E1,0,(Input!$F$12-Input!F13-E1)/30)) -> 1 | X2: =IF(Input!$F$12-Input!F13>=G1,'Culling rate'!$G7,IF(Input!$F$12-Input!F13<F1,0,(Input!$F$12-Input!F13-F1)/30)) -> 1 | Y2: =IF(Input!$F$12-Input!F13>=H1,'Culling rate'!$G8,IF(Input!$F$12-Input!F13<G1,0,(Input!$F$12-Input!F13-G1)/30)) -> 1 | Z2: =IF(Input!$F$12-Input!F13>=I1,'Culling rate'!$G9,IF(Input!$F$12-Input!F13<H1,0,(Input!$F$12-Input!F13-H1)/30)) -> 1 | AA2: =IF(Input!$F$12-Input!F13>=J1,'Culling rate'!$G10,IF(Input!$F$12-Input!F13<I1,0,(Input!$F$12-Input!F13-I1)/30)) -> 1 | AB2: =IF(Input!$F$12-Input!F13>=K1,'Culling rate'!$G11,IF(Input!$F$12-Input!F13<J1,0,(Input!$F$12-Input!F13-J1)/30)) -> 1 | AC2: =IF(Input!$F$12-Input!F13>=L1,'Culling rate'!$G12,IF(Input!$F$12-Input!F13<K1,0,(Input!$F$12-Input!F13-K1)/30)) -> 1 | AD2: =IF(Input!$F$12-Input!F13>=M1,'Culling rate'!$G13,IF(Input!$F$12-Input!F13<L1,0,(Input!$F$12-Input!F13-L1)/30)) -> 1 | AE2: =IF(Input!$F$12-Input!F13>=N1,'Culling rate'!$G14,IF(Input!$F$12-Input!F13<M1,0,(Input!$F$12-Input!F13-M1)/30)) -> 1 | AF2: =IF(Input!$F$12-Input!F13>=O1,'Culling rate'!$G15,IF(Input!$F$12-Input!F13<N1,0,(Input!$F$12-Input!F13-N1)/30)) -> 0 | AG2: =IF(Input!$F$12-Input!F13>=P1,'Culling rate'!$G16,IF(Input!$F$12-Input!F13<O1,0,(Input!$F$12-Input!F13-O1)/30)) -> 0 | AH2: =IF(Input!$F$12-Input!F13>=Q1,'Culling rate'!$G17,IF(Input!$F$12-Input!F13<P1,0,(Input!$F$12-Input!F13-P1)/30)) -> 0 | AI2: =IF(Input!$F$12-Input!F13>=R1,'Culling rate'!$G18,IF(Input!$F$12-Input!F13<Q1,0,(Input!$F$12-Input!F13-Q1)/30)) -> 0 | AM2: Used lookup | AN2: =IF(Input!$F$14='Hidden calculation original'!AN4,1,0) -> 1 | AO2: =IF(Input!$F$14='Hidden calculation original'!AO4,1,0) -> 0 | AP2: =IF(Input!$F$14='Hidden calculation original'!AP4,1,0) -> 0 | AQ2: =IF(Input!$F$14='Hidden calculation original'!AQ4,1,0) -> 0 | AR2: =IF(Input!$F$14='Hidden calculation original'!AR4,1,0) -> 0 | AS2: =IF(Input!$F$14='Hidden calculation original'!AS4,1,0) -> 0 | AT2: =IF(Input!$F$14='Hidden calculation original'!AT4,1,0) -> 0 | AU2: =IF(Input!$F$14='Hidden calculation original'!AU4,1,0) -> 0
A3: yield target | B3: =Input!F18 -> 7692.307692 | D3: Heifers | E3: Lactation | U3: Cows | V3: Lactation | AN3: 1 | AO3: 2 | AP3: 3 | AQ3: 4 | AR3: 5 | AS3: 6 | AT3: 7 | AU3: 8
A4: Heifer yield as % of cows yield | B4: =Input!F15*100 -> 85 | D4: Month production | E4: 1 | F4: 2 | G4: 3 | H4: 4 | I4: 5 | J4: 6 | K4: 7 | L4: 8 | M4: 9 | N4: 10 | O4: 11 | P4: 12 | Q4: 13 | R4: 14 | S4: Heifers-in-milk | U4: Month production | V4: 1 | W4: 2 | X4: 3 | Y4: 4 | Z4: 5 | AA4: 6 | AB4: 7 | AC4: 8 | AD4: 9 | AE4: 10 | AF4: 11 | AG4: 12 | AH4: 13 | AI4: 14 | AJ4: Cows-in-milk | AM4: Month production | AN4: Feed to yield | AO4: Step rate | AP4: Flat rate | AQ4: Total mixed ration | AR4: Three times a day milking | AS4: Once a day milking | AT4: Spring block | AU4: Autumn block | AV4: Yield used | AW4: Yield per month | AX4: Yield for cows | AY4: Yield for heifers
A5: No cows | B5: ='Calving input'!D17 -> 120 | D5: 1 | E5: ='Calving input'!C$16/2+'Calving input'!C$18/2 -> 3 | F5: ='Calving input'!C$15/2+'Calving input'!C$16/2 -> 3 | G5: ='Calving input'!C$14/2+'Calving input'!C$15/2 -> 3 | H5: ='Calving input'!C$13/2+'Calving input'!C$14/2 -> 3 | I5: ='Calving input'!C$12/2+'Calving input'!C$13/2 -> 3 | J5: ='Calving input'!C$11/2+'Calving input'!C$12/2 -> 3 | K5: ='Calving input'!C$10/2+'Calving input'!C$11/2 -> 3 | L5: ='Calving input'!C$9/2+'Calving input'!C$10/2 -> 3 | M5: ='Calving input'!C$8/2+'Calving input'!C$9/2 -> 3 | N5: ='Calving input'!C$7/2+'Calving input'!C$8/2 -> 3 | O5: ='Calving input'!C$6/2+'Calving input'!C$7/2 -> 3 | P5: ='Calving input'!C$5/2+'Calving input'!C$6/2 -> 3 | Q5: ='Calving input'!C$16/2+'Calving input'!C$5/2 -> 3 | R5: ='Calving input'!C$15/2+'Calving input'!C$16/2 -> 3 | S5: =ROUND(SUMPRODUCT(E5:R5,$E$2:$R$2),0) -> 30 | U5: 1 | V5: ='Calving input'!D$16/2+'Calving input'!D$18/2 -> 10 | W5: ='Calving input'!D$15/2+'Calving input'!D$16/2 -> 10 | X5: ='Calving input'!D$14/2+'Calving input'!D$15/2 -> 10 | Y5: ='Calving input'!D$13/2+'Calving input'!D$14/2 -> 10 | Z5: ='Calving input'!D$12/2+'Calving input'!D$13/2 -> 10 | AA5: ='Calving input'!D$11/2+'Calving input'!D$12/2 -> 10 | AB5: ='Calving input'!D$10/2+'Calving input'!D$11/2 -> 10 | AC5: ='Calving input'!D$9/2+'Calving input'!D$10/2 -> 10 | AD5: ='Calving input'!D$8/2+'Calving input'!D$9/2 -> 10 | AE5: ='Calving input'!D$7/2+'Calving input'!D$8/2 -> 10 | AF5: ='Calving input'!D$6/2+'Calving input'!D$7/2 -> 10 | AG5: ='Calving input'!D$5/2+'Calving input'!D$6/2 -> 10 | AH5: ='Calving input'!D$16/2+'Calving input'!D$5/2 -> 10 | AI5: ='Calving input'!D$15/2+'Calving input'!D$16/2 -> 10 | AJ5: =ROUND(SUMPRODUCT(V5:AI5,$V$2:$AI$2),0) -> 100 | AL5: =Input!F9 -> 2019-04-30 | AM5: 1 | AN5: =(SUMPRODUCT($E$43:$R$43,$E$2:$R$2,$E5:$R5)*$AY5+SUMPRODUCT($E$44:$R$44,$V$2:$AI$2,$V5:$AI5)*$AX5)/365 -> 2739.726027 | AO5: =(SUMPRODUCT($E$45:$R$45,$E$2:$R$2,$E5:$R5)*$AY5+SUMPRODUCT($E$46:$R$46,$V$2:$AI$2,$V5:$AI5)*$AX5)/365 -> 2739.726027 | AP5: =(SUMPRODUCT($E$47:$R$47,$E$2:$R$2,$E5:$R5)*$AY5+SUMPRODUCT($E$48:$R$48,$V$2:$AI$2,$V5:$AI5)*$AX5)/365 -> 2739.726027 | AQ5: =(SUMPRODUCT($E$49:$R$49,$E$2:$R$2,$E5:$R5)*$AY5+SUMPRODUCT($E$50:$R$50,$V$2:$AI$2,$V5:$AI5)*$AX5)/365 -> 2739.726027 | AR5: =(SUMPRODUCT($E$51:$R$51,$E$2:$R$2,$E5:$R5)*$AY5+SUMPRODUCT($E$52:$R$52,$V$2:$AI$2,$V5:$AI5)*$AX5)/365 -> 2739.726027 | AS5: =(SUMPRODUCT($E$53:$R$53,$E$2:$R$2,$E5:$R5)*$AY5+SUMPRODUCT($E$54:$R$54,$V$2:$AI$2,$V5:$AI5)*$AX5)/365 -> 2739.726027 | AT5: =(SUMPRODUCT($E$55:$R$55,$E$2:$R$2,$E5:$R5)*$AY5+SUMPRODUCT($E$56:$R$56,$V$2:$AI$2,$V5:$AI5)*$AX5)/365 -> 2739.67036 | AU5: =(SUMPRODUCT($E$57:$R$57,$E$2:$R$2,$E5:$R5)*$AY5+SUMPRODUCT($E$58:$R$58,$V$2:$AI$2,$V5:$AI5)*$AX5)/365 -> 2739.726027 | AV5: =SUMPRODUCT(AN5:AU5,$AN$2:$AU$2) -> 2739.726027 | AW5: =AV5*DAY(AL5) -> 82191.78082 | AX5: =$B$11*(1+$B$17*6.62) -> 7968.12749 | AY5: =$B$12*(1+$B$17*6.62) -> 6772.908367 | AZ5: =1000000/365*30 -> 82191.78082
A6: No heifers | B6: ='Calving input'!C17 -> 36 | D6: 2 | E6: ='Calving input'!C18/2+'Calving input'!C19/2 -> 3 | F6: =E5 -> 3 | G6: =F5 -> 3 | H6: 3 | I6: 3 | J6: 3 | K6: 3 | L6: 3 | M6: 3 | N6: 3 | O6: 3 | P6: 3 | Q6: 3 | R6: 3 | S6: =ROUND(SUMPRODUCT(E6:R6,$E$2:$R$2),0) -> 30 | U6: 2 | V6: ='Calving input'!D18/2+'Calving input'!D19/2 -> 10 | W6: =V5 -> 10 | X6: =W5 -> 10 | Y6: 10 | Z6: 10 | AA6: 10 | AB6: 10 | AC6: 10 | AD6: 10 | AE6: 10 | AF6: 10 | AG6: 10 | AH6: 10 | AI6: 10 | AJ6: =ROUND(SUMPRODUCT(V6:AI6,$V$2:$AI$2),0) -> 100 | AL6: =EOMONTH(AL5,1) -> 2019-05-31 | AM6: 2 | AN6: =(SUMPRODUCT($E$43:$R$43,$E$2:$R$2,$E6:$R6)*$AY6+SUMPRODUCT($E$44:$R$44,$V$2:$AI$2,$V6:$AI6)*$AX6)/365 -> 2739.726027 | AO6: =(SUMPRODUCT($E$45:$R$45,$E$2:$R$2,$E6:$R6)*$AY6+SUMPRODUCT($E$46:$R$46,$V$2:$AI$2,$V6:$AI6)*$AX6)/365 -> 2739.726027 | AP6: =(SUMPRODUCT($E$47:$R$47,$E$2:$R$2,$E6:$R6)*$AY6+SUMPRODUCT($E$48:$R$48,$V$2:$AI$2,$V6:$AI6)*$AX6)/365 -> 2739.726027 | AQ6: =(SUMPRODUCT($E$49:$R$49,$E$2:$R$2,$E6:$R6)*$AY6+SUMPRODUCT($E$50:$R$50,$V$2:$AI$2,$V6:$AI6)*$AX6)/365 -> 2739.726027 | AR6: =(SUMPRODUCT($E$51:$R$51,$E$2:$R$2,$E6:$R6)*$AY6+SUMPRODUCT($E$52:$R$52,$V$2:$AI$2,$V6:$AI6)*$AX6)/365 -> 2739.726027 | AS6: =(SUMPRODUCT($E$53:$R$53,$E$2:$R$2,$E6:$R6)*$AY6+SUMPRODUCT($E$54:$R$54,$V$2:$AI$2,$V6:$AI6)*$AX6)/365 -> 2739.726027 | AT6: =(SUMPRODUCT($E$55:$R$55,$E$2:$R$2,$E6:$R6)*$AY6+SUMPRODUCT($E$56:$R$56,$V$2:$AI$2,$V6:$AI6)*$AX6)/365 -> 2739.67036 | AU6: =(SUMPRODUCT($E$57:$R$57,$E$2:$R$2,$E6:$R6)*$AY6+SUMPRODUCT($E$58:$R$58,$V$2:$AI$2,$V6:$AI6)*$AX6)/365 -> 2739.726027 | AV6: =SUMPRODUCT(AN6:AU6,$AN$2:$AU$2) -> 2739.726027 | AW6: =AV6*DAY(AL6) -> 84931.50685 | AX6: =AX5*(1+$B$17) -> 7968.12749 | AY6: =AY5*(1+$B$17) -> 6772.908367 | AZ6: =1000000/365*31 -> 84931.50685
A7: heifers as cow | B7: =B6*B4/100 -> 30.6 | D7: 3 | E7: ='Calving input'!C19/2+'Calving input'!C20/2 -> 3 | F7: 3 | G7: 3 | H7: 3 | I7: 3 | J7: 3 | K7: 3 | L7: 3 | M7: 3 | N7: 3 | O7: 3 | P7: 3 | Q7: 3 | R7: 3 | S7: 30 | U7: 3 | V7: ='Calving input'!D19/2+'Calving input'!D20/2 -> 10 | W7: 10 | X7: 10 | Y7: 10 | Z7: 10 | AA7: 10 | AB7: 10 | AC7: 10 | AD7: 10 | AE7: 10 | AF7: 10 | AG7: 10 | AH7: 10 | AI7: 10 | AJ7: 100 | AL7: =EOMONTH(AL6,1) -> 2019-06-30 | AM7: 3 | AN7: 2739.726027 | AO7: 2739.726027 | AP7: 2739.726027 | AQ7: 2739.726027 | AR7: 2739.726027 | AS7: 2739.726027 | AT7: 2739.67036 | AU7: 2739.726027 | AV7: 2739.726027 | AW7: 82191.78082 | AX7: =AX6*(1+$B$17) -> 7968.12749 | AY7: =AY6*(1+$B$17) -> 6772.908367 | AZ7: =1000000/365*30 -> 82191.78082
A8: equivalents | D8: 4 | E8: ='Calving input'!C20/2+'Calving input'!C21/2 -> 3 | F8: 3 | G8: 3 | H8: 3 | I8: 3 | J8: 3 | K8: 3 | L8: 3 | M8: 3 | N8: 3 | O8: 3 | P8: 3 | Q8: 3 | R8: 3 | S8: 30 | U8: 4 | V8: ='Calving input'!D20/2+'Calving input'!D21/2 -> 10 | W8: 10 | X8: 10 | Y8: 10 | Z8: 10 | AA8: 10 | AB8: 10 | AC8: 10 | AD8: 10 | AE8: 10 | AF8: 10 | AG8: 10 | AH8: 10 | AI8: 10 | AJ8: 100 | AL8: 2019-07-31 | AM8: 4 | AN8: 2739.726027 | AO8: 2739.726027 | AP8: 2739.726027 | AQ8: 2739.726027 | AR8: 2739.726027 | AS8: 2739.726027 | AT8: 2739.67036 | AU8: 2739.726027 | AV8: 2739.726027 | AW8: 84931.50685 | AX8: 7968.12749 | AY8: 6772.908367 | AZ8: =1000000/365*31 -> 84931.50685
A9: Total cow equivalents | B9: =B7+B5 -> 150.6 | D9: 5 | E9: ='Calving input'!C21/2+'Calving input'!C22/2 -> 3 | F9: 3 | G9: 3 | H9: 3 | I9: 3 | J9: 3 | K9: 3 | L9: 3 | M9: 3 | N9: 3 | O9: 3 | P9: 3 | Q9: 3 | R9: 3 | S9: 30 | U9: 5 | V9: ='Calving input'!D21/2+'Calving input'!D22/2 -> 10 | W9: 10 | X9: 10 | Y9: 10 | Z9: 10 | AA9: 10 | AB9: 10 | AC9: 10 | AD9: 10 | AE9: 10 | AF9: 10 | AG9: 10 | AH9: 10 | AI9: 10 | AJ9: 100 | AL9: 2019-08-31 | AM9: 5 | AN9: 2739.726027 | AO9: 2739.726027 | AP9: 2739.726027 | AQ9: 2739.726027 | AR9: 2739.726027 | AS9: 2739.726027 | AT9: 2739.67036 | AU9: 2739.726027 | AV9: 2739.726027 | AW9: 84931.50685 | AX9: 7968.12749 | AY9: 6772.908367
A10: yield per cow equiv | B10: =IF(B9>0,((B5+B6)*B3)/B9,0) -> 7968.12749 | D10: 6 | E10: ='Calving input'!C22/2+'Calving input'!C23/2 -> 3 | F10: 3 | G10: 3 | H10: 3 | I10: 3 | J10: 3 | K10: 3 | L10: 3 | M10: 3 | N10: 3 | O10: 3 | P10: 3 | Q10: 3 | R10: 3 | S10: 30 | U10: 6 | V10: ='Calving input'!D22/2+'Calving input'!D23/2 -> 10 | W10: 10 | X10: 10 | Y10: 10 | Z10: 10 | AA10: 10 | AB10: 10 | AC10: 10 | AD10: 10 | AE10: 10 | AF10: 10 | AG10: 10 | AH10: 10 | AI10: 10 | AJ10: 100 | AL10: 2019-09-30 | AM10: 6 | AN10: 2739.726027 | AO10: 2739.726027 | AP10: 2739.726027 | AQ10: 2739.726027 | AR10: 2739.726027 | AS10: 2739.726027 | AT10: 2739.67036 | AU10: 2739.726027 | AV10: 2739.726027 | AW10: 82191.78082 | AX10: 7968.12749 | AY10: 6772.908367
A11: Cow yield | B11: =B10 -> 7968.12749 | D11: 7 | E11: ='Calving input'!C23/2+'Calving input'!C24/2 -> 3 | F11: 3 | G11: 3 | H11: 3 | I11: 3 | J11: 3 | K11: 3 | L11: 3 | M11: 3 | N11: 3 | O11: 3 | P11: 3 | Q11: 3 | R11: 3 | S11: 30 | U11: 7 | V11: ='Calving input'!D23/2+'Calving input'!D24/2 -> 10 | W11: 10 | X11: 10 | Y11: 10 | Z11: 10 | AA11: 10 | AB11: 10 | AC11: 10 | AD11: 10 | AE11: 10 | AF11: 10 | AG11: 10 | AH11: 10 | AI11: 10 | AJ11: 100 | AL11: 2019-10-31 | AM11: 7 | AN11: 2739.726027 | AO11: 2739.726027 | AP11: 2739.726027 | AQ11: 2739.726027 | AR11: 2739.726027 | AS11: 2739.726027 | AT11: 2739.67036 | AU11: 2739.726027 | AV11: 2739.726027 | AW11: 84931.50685 | AX11: 7968.12749 | AY11: 6772.908367
A12: Heifer yield | B12: =B11*B4/100 -> 6772.908367 | D12: 8 | E12: ='Calving input'!C24/2+'Calving input'!C25/2 -> 3 | F12: 3 | G12: 3 | H12: 3 | I12: 3 | J12: 3 | K12: 3 | L12: 3 | M12: 3 | N12: 3 | O12: 3 | P12: 3 | Q12: 3 | R12: 3 | S12: 30 | U12: 8 | V12: ='Calving input'!D24/2+'Calving input'!D25/2 -> 10 | W12: 10 | X12: 10 | Y12: 10 | Z12: 10 | AA12: 10 | AB12: 10 | AC12: 10 | AD12: 10 | AE12: 10 | AF12: 10 | AG12: 10 | AH12: 10 | AI12: 10 | AJ12: 100 | AL12: 2019-11-30 | AM12: 8 | AN12: 2739.726027 | AO12: 2739.726027 | AP12: 2739.726027 | AQ12: 2739.726027 | AR12: 2739.726027 | AS12: 2739.726027 | AT12: 2739.67036 | AU12: 2739.726027 | AV12: 2739.726027 | AW12: 82191.78082 | AX12: 7968.12749 | AY12: 6772.908367 | BA12: =(AX7*120+AY7*36)*305/365 -> 1002739.726
D13: 9 | E13: ='Calving input'!C25/2+'Calving input'!C26/2 -> 3 | F13: 3 | G13: 3 | H13: 3 | I13: 3 | J13: 3 | K13: 3 | L13: 3 | M13: 3 | N13: 3 | O13: 3 | P13: 3 | Q13: 3 | R13: 3 | S13: 30 | U13: 9 | V13: ='Calving input'!D25/2+'Calving input'!D26/2 -> 10 | W13: 10 | X13: 10 | Y13: 10 | Z13: 10 | AA13: 10 | AB13: 10 | AC13: 10 | AD13: 10 | AE13: 10 | AF13: 10 | AG13: 10 | AH13: 10 | AI13: 10 | AJ13: 100 | AL13: 2019-12-31 | AM13: 9 | AN13: 2739.726027 | AO13: 2739.726027 | AP13: 2739.726027 | AQ13: 2739.726027 | AR13: 2739.726027 | AS13: 2739.726027 | AT13: 2739.67036 | AU13: 2739.726027 | AV13: 2739.726027 | AW13: 84931.50685 | AX13: 7968.12749 | AY13: 6772.908367
A14: Av cows-in-milk | B14: =SUM($S5:$S16,$AJ5:$AJ16)/12 -> 130 | D14: 10 | E14: ='Calving input'!C26/2+'Calving input'!C27/2 -> 3 | F14: 3 | G14: 3 | H14: 3 | I14: 3 | J14: 3 | K14: 3 | L14: 3 | M14: 3 | N14: 3 | O14: 3 | P14: 3 | Q14: 3 | R14: 3 | S14: 30 | U14: 10 | V14: ='Calving input'!D26/2+'Calving input'!D27/2 -> 10 | W14: 10 | X14: 10 | Y14: 10 | Z14: 10 | AA14: 10 | AB14: 10 | AC14: 10 | AD14: 10 | AE14: 10 | AF14: 10 | AG14: 10 | AH14: 10 | AI14: 10 | AJ14: 100 | AL14: 2020-01-31 | AM14: 10 | AN14: 2739.726027 | AO14: 2739.726027 | AP14: 2739.726027 | AQ14: 2739.726027 | AR14: 2739.726027 | AS14: 2739.726027 | AT14: 2739.67036 | AU14: 2739.726027 | AV14: 2739.726027 | AW14: 84931.50685 | AX14: 7968.12749 | AY14: 6772.908367
D15: 11 | E15: ='Calving input'!C27/2+'Calving input'!C28/2 -> 3 | F15: 3 | G15: 3 | H15: 3 | I15: 3 | J15: 3 | K15: 3 | L15: 3 | M15: 3 | N15: 3 | O15: 3 | P15: 3 | Q15: 3 | R15: 3 | S15: 30 | U15: 11 | V15: ='Calving input'!D27/2+'Calving input'!D28/2 -> 10 | W15: 10 | X15: 10 | Y15: 10 | Z15: 10 | AA15: 10 | AB15: 10 | AC15: 10 | AD15: 10 | AE15: 10 | AF15: 10 | AG15: 10 | AH15: 10 | AI15: 10 | AJ15: 100 | AL15: 2020-02-29 | AM15: 11 | AN15: 2739.726027 | AO15: 2739.726027 | AP15: 2739.726027 | AQ15: 2739.726027 | AR15: 2739.726027 | AS15: 2739.726027 | AT15: 2739.67036 | AU15: 2739.726027 | AV15: 2739.726027 | AW15: 79452.05479 | AX15: 7968.12749 | AY15: 6772.908367
D16: 12 | E16: ='Calving input'!C28/2+'Calving input'!C29/2 -> 3 | F16: 3 | G16: 3 | H16: 3 | I16: 3 | J16: 3 | K16: 3 | L16: 3 | M16: 3 | N16: 3 | O16: 3 | P16: 3 | Q16: 3 | R16: 3 | S16: 30 | U16: 12 | V16: ='Calving input'!D28/2+'Calving input'!D29/2 -> 10 | W16: 10 | X16: 10 | Y16: 10 | Z16: 10 | AA16: 10 | AB16: 10 | AC16: 10 | AD16: 10 | AE16: 10 | AF16: 10 | AG16: 10 | AH16: 10 | AI16: 10 | AJ16: 100 | AL16: 2020-03-31 | AM16: 12 | AN16: 2739.726027 | AO16: 2739.726027 | AP16: 2739.726027 | AQ16: 2739.726027 | AR16: 2739.726027 | AS16: 2739.726027 | AT16: 2739.67036 | AU16: 2739.726027 | AV16: 2739.726027 | AW16: 84931.50685 | AX16: 7968.12749 | AY16: 6772.908367
A17: Yield monthly change | B17: =IF(Input!F19=0,0,IF(Input!F19<0,Input!F19,NOMINAL(Input!F19,12)))/12 -> 0 | D17: 13 | E17: ='Calving input'!C29/2+'Calving input'!C31/2 -> 3 | F17: 3 | G17: 3 | H17: 3 | I17: 3 | J17: 3 | K17: 3 | L17: 3 | M17: 3 | N17: 3 | O17: 3 | P17: 3 | Q17: 3 | R17: 3 | S17: 30 | U17: 13 | V17: ='Calving input'!D29/2+'Calving input'!D31/2 -> 10 | W17: 10 | X17: 10 | Y17: 10 | Z17: 10 | AA17: 10 | AB17: 10 | AC17: 10 | AD17: 10 | AE17: 10 | AF17: 10 | AG17: 10 | AH17: 10 | AI17: 10 | AJ17: 100 | AL17: 2020-04-30 | AM17: 13 | AN17: 2739.726027 | AO17: 2739.726027 | AP17: 2739.726027 | AQ17: 2739.726027 | AR17: 2739.726027 | AS17: 2739.726027 | AT17: 2739.67036 | AU17: 2739.726027 | AV17: 2739.726027 | AW17: 82191.78082 | AX17: 7968.12749 | AY17: 6772.908367
D18: 14 | E18: ='Calving input'!C31/2+'Calving input'!C32/2 -> 3 | F18: 3 | G18: 3 | H18: 3 | I18: 3 | J18: 3 | K18: 3 | L18: 3 | M18: 3 | N18: 3 | O18: 3 | P18: 3 | Q18: 3 | R18: 3 | S18: 30 | U18: 14 | V18: ='Calving input'!D31/2+'Calving input'!D32/2 -> 10 | W18: 10 | X18: 10 | Y18: 10 | Z18: 10 | AA18: 10 | AB18: 10 | AC18: 10 | AD18: 10 | AE18: 10 | AF18: 10 | AG18: 10 | AH18: 10 | AI18: 10 | AJ18: 100 | AL18: 2020-05-31 | AM18: 14 | AN18: 2739.726027 | AO18: 2739.726027 | AP18: 2739.726027 | AQ18: 2739.726027 | AR18: 2739.726027 | AS18: 2739.726027 | AT18: 2739.67036 | AU18: 2739.726027 | AV18: 2739.726027 | AW18: 84931.50685 | AX18: 7968.12749 | AY18: 6772.908367
A19: Yield for charts | D19: 15 | E19: ='Calving input'!C32/2+'Calving input'!C33/2 -> 3 | F19: 3 | G19: 3 | H19: 3 | I19: 3 | J19: 3 | K19: 3 | L19: 3 | M19: 3 | N19: 3 | O19: 3 | P19: 3 | Q19: 3 | R19: 3 | S19: 30 | U19: 15 | V19: ='Calving input'!D32/2+'Calving input'!D33/2 -> 10 | W19: 10 | X19: 10 | Y19: 10 | Z19: 10 | AA19: 10 | AB19: 10 | AC19: 10 | AD19: 10 | AE19: 10 | AF19: 10 | AG19: 10 | AH19: 10 | AI19: 10 | AJ19: 100 | AL19: 2020-06-30 | AM19: 15 | AN19: 2739.726027 | AO19: 2739.726027 | AP19: 2739.726027 | AQ19: 2739.726027 | AR19: 2739.726027 | AS19: 2739.726027 | AT19: 2739.67036 | AU19: 2739.726027 | AV19: 2739.726027 | AW19: 82191.78082 | AX19: 7968.12749 | AY19: 6772.908367
A20: Cow yield | B20: =IF(B11<>0,B11,Input!F18) -> 7968.12749 | D20: 16 | E20: ='Calving input'!C33/2+'Calving input'!C34/2 -> 3 | F20: 3 | G20: 3 | H20: 3 | I20: 3 | J20: 3 | K20: 3 | L20: 3 | M20: 3 | N20: 3 | O20: 3 | P20: 3 | Q20: 3 | R20: 3 | S20: 30 | U20: 16 | V20: ='Calving input'!D33/2+'Calving input'!D34/2 -> 10 | W20: 10 | X20: 10 | Y20: 10 | Z20: 10 | AA20: 10 | AB20: 10 | AC20: 10 | AD20: 10 | AE20: 10 | AF20: 10 | AG20: 10 | AH20: 10 | AI20: 10 | AJ20: 100 | AL20: 2020-07-31 | AM20: 16 | AN20: 2739.726027 | AO20: 2739.726027 | AP20: 2739.726027 | AQ20: 2739.726027 | AR20: 2739.726027 | AS20: 2739.726027 | AT20: 2739.67036 | AU20: 2739.726027 | AV20: 2739.726027 | AW20: 84931.50685 | AX20: 7968.12749 | AY20: 6772.908367
A21: Heifer yield | B21: =IF(B12<>0,B12,Input!F18*Input!F15) -> 6772.908367 | D21: 17 | E21: ='Calving input'!C34/2+'Calving input'!C35/2 -> 3 | F21: 3 | G21: 3 | H21: 3 | I21: 3 | J21: 3 | K21: 3 | L21: 3 | M21: 3 | N21: 3 | O21: 3 | P21: 3 | Q21: 3 | R21: 3 | S21: 30 | U21: 17 | V21: ='Calving input'!D34/2+'Calving input'!D35/2 -> 10 | W21: 10 | X21: 10 | Y21: 10 | Z21: 10 | AA21: 10 | AB21: 10 | AC21: 10 | AD21: 10 | AE21: 10 | AF21: 10 | AG21: 10 | AH21: 10 | AI21: 10 | AJ21: 100 | AL21: 2020-08-31 | AM21: 17 | AN21: 2739.726027 | AO21: 2739.726027 | AP21: 2739.726027 | AQ21: 2739.726027 | AR21: 2739.726027 | AS21: 2739.726027 | AT21: 2739.67036 | AU21: 2739.726027 | AV21: 2739.726027 | AW21: 84931.50685 | AX21: 7968.12749 | AY21: 6772.908367
D22: 18 | E22: ='Calving input'!C35/2+'Calving input'!C36/2 -> 3 | F22: 3 | G22: =F21 -> 3 | H22: 3 | I22: 3 | J22: 3 | K22: 3 | L22: 3 | M22: 3 | N22: 3 | O22: 3 | P22: 3 | Q22: 3 | R22: 3 | S22: 30 | U22: 18 | V22: ='Calving input'!D35/2+'Calving input'!D36/2 -> 10 | W22: 10 | X22: =W21 -> 10 | Y22: 10 | Z22: 10 | AA22: 10 | AB22: 10 | AC22: 10 | AD22: 10 | AE22: 10 | AF22: 10 | AG22: 10 | AH22: 10 | AI22: 10 | AJ22: 100 | AL22: 2020-09-30 | AM22: 18 | AN22: 2739.726027 | AO22: 2739.726027 | AP22: 2739.726027 | AQ22: 2739.726027 | AR22: 2739.726027 | AS22: 2739.726027 | AT22: 2739.67036 | AU22: 2739.726027 | AV22: 2739.726027 | AW22: 82191.78082 | AX22: 7968.12749 | AY22: 6772.908367
D23: 19 | E23: ='Calving input'!C36/2+'Calving input'!C37/2 -> 3 | F23: =E22 -> 3 | G23: 3 | H23: 3 | I23: 3 | J23: 3 | K23: 3 | L23: 3 | M23: 3 | N23: 3 | O23: 3 | P23: 3 | Q23: 3 | R23: 3 | S23: 30 | U23: 19 | V23: ='Calving input'!D36/2+'Calving input'!D37/2 -> 10 | W23: =V22 -> 10 | X23: 10 | Y23: 10 | Z23: 10 | AA23: 10 | AB23: 10 | AC23: 10 | AD23: 10 | AE23: 10 | AF23: 10 | AG23: 10 | AH23: 10 | AI23: 10 | AJ23: 100 | AL23: 2020-10-31 | AM23: 19 | AN23: 2739.726027 | AO23: 2739.726027 | AP23: 2739.726027 | AQ23: 2739.726027 | AR23: 2739.726027 | AS23: 2739.726027 | AT23: 2739.67036 | AU23: 2739.726027 | AV23: 2739.726027 | AW23: 84931.50685 | AX23: 7968.12749 | AY23: 6772.908367
D24: 20 | E24: ='Calving input'!C37/2+'Calving input'!C38/2 -> 3 | F24: 3 | G24: 3 | H24: 3 | I24: 3 | J24: 3 | K24: 3 | L24: 3 | M24: 3 | N24: 3 | O24: 3 | P24: 3 | Q24: 3 | R24: 3 | S24: 30 | U24: 20 | V24: ='Calving input'!D37/2+'Calving input'!D38/2 -> 10 | W24: 10 | X24: 10 | Y24: 10 | Z24: 10 | AA24: 10 | AB24: 10 | AC24: 10 | AD24: 10 | AE24: 10 | AF24: 10 | AG24: 10 | AH24: 10 | AI24: 10 | AJ24: 100 | AL24: 2020-11-30 | AM24: 20 | AN24: 2739.726027 | AO24: 2739.726027 | AP24: 2739.726027 | AQ24: 2739.726027 | AR24: 2739.726027 | AS24: 2739.726027 | AT24: 2739.67036 | AU24: 2739.726027 | AV24: 2739.726027 | AW24: 82191.78082 | AX24: 7968.12749 | AY24: 6772.908367
D25: 21 | E25: ='Calving input'!C38/2+'Calving input'!C39/2 -> 3 | F25: 3 | G25: 3 | H25: 3 | I25: 3 | J25: 3 | K25: 3 | L25: 3 | M25: 3 | N25: 3 | O25: 3 | P25: 3 | Q25: 3 | R25: 3 | S25: 30 | U25: 21 | V25: ='Calving input'!D38/2+'Calving input'!D39/2 -> 10 | W25: 10 | X25: 10 | Y25: 10 | Z25: 10 | AA25: 10 | AB25: 10 | AC25: 10 | AD25: 10 | AE25: 10 | AF25: 10 | AG25: 10 | AH25: 10 | AI25: 10 | AJ25: 100 | AL25: 2020-12-31 | AM25: 21 | AN25: 2739.726027 | AO25: 2739.726027 | AP25: 2739.726027 | AQ25: 2739.726027 | AR25: 2739.726027 | AS25: 2739.726027 | AT25: 2739.67036 | AU25: 2739.726027 | AV25: 2739.726027 | AW25: 84931.50685 | AX25: 7968.12749 | AY25: 6772.908367
D26: 22 | E26: ='Calving input'!C39/2+'Calving input'!C40/2 -> 3 | F26: 3 | G26: 3 | H26: 3 | I26: 3 | J26: 3 | K26: 3 | L26: 3 | M26: 3 | N26: 3 | O26: 3 | P26: 3 | Q26: 3 | R26: 3 | S26: 30 | U26: 22 | V26: ='Calving input'!D39/2+'Calving input'!D40/2 -> 10 | W26: 10 | X26: 10 | Y26: 10 | Z26: 10 | AA26: 10 | AB26: 10 | AC26: 10 | AD26: 10 | AE26: 10 | AF26: 10 | AG26: 10 | AH26: 10 | AI26: 10 | AJ26: 100 | AL26: 2021-01-31 | AM26: 22 | AN26: 2739.726027 | AO26: 2739.726027 | AP26: 2739.726027 | AQ26: 2739.726027 | AR26: 2739.726027 | AS26: 2739.726027 | AT26: 2739.67036 | AU26: 2739.726027 | AV26: 2739.726027 | AW26: 84931.50685 | AX26: 7968.12749 | AY26: 6772.908367
D27: 23 | E27: ='Calving input'!C40/2+'Calving input'!C41/2 -> 3 | F27: 3 | G27: 3 | H27: 3 | I27: 3 | J27: 3 | K27: 3 | L27: 3 | M27: 3 | N27: 3 | O27: 3 | P27: 3 | Q27: 3 | R27: 3 | S27: 30 | U27: 23 | V27: ='Calving input'!D40/2+'Calving input'!D41/2 -> 10 | W27: 10 | X27: 10 | Y27: 10 | Z27: 10 | AA27: 10 | AB27: 10 | AC27: 10 | AD27: 10 | AE27: 10 | AF27: 10 | AG27: 10 | AH27: 10 | AI27: 10 | AJ27: 100 | AL27: 2021-02-28 | AM27: 23 | AN27: 2739.726027 | AO27: 2739.726027 | AP27: 2739.726027 | AQ27: 2739.726027 | AR27: 2739.726027 | AS27: 2739.726027 | AT27: 2739.67036 | AU27: 2739.726027 | AV27: 2739.726027 | AW27: 76712.32877 | AX27: 7968.12749 | AY27: 6772.908367
D28: 24 | E28: ='Calving input'!C41/2+'Calving input'!C42/2 -> 3 | F28: 3 | G28: 3 | H28: 3 | I28: 3 | J28: 3 | K28: 3 | L28: 3 | M28: 3 | N28: 3 | O28: 3 | P28: 3 | Q28: 3 | R28: 3 | S28: 30 | U28: 24 | V28: ='Calving input'!D41/2+'Calving input'!D42/2 -> 10 | W28: 10 | X28: 10 | Y28: 10 | Z28: 10 | AA28: 10 | AB28: 10 | AC28: 10 | AD28: 10 | AE28: 10 | AF28: 10 | AG28: 10 | AH28: 10 | AI28: 10 | AJ28: 100 | AL28: 2021-03-31 | AM28: 24 | AN28: 2739.726027 | AO28: 2739.726027 | AP28: 2739.726027 | AQ28: 2739.726027 | AR28: 2739.726027 | AS28: 2739.726027 | AT28: 2739.67036 | AU28: 2739.726027 | AV28: 2739.726027 | AW28: 84931.50685 | AX28: 7968.12749 | AY28: 6772.908367
D29: 25 | E29: ='Calving input'!C42/2+'Calving input'!C44/2 -> 3 | F29: 3 | G29: 3 | H29: 3 | I29: 3 | J29: 3 | K29: 3 | L29: 3 | M29: 3 | N29: 3 | O29: 3 | P29: 3 | Q29: 3 | R29: 3 | S29: 30 | U29: 25 | V29: ='Calving input'!D42/2+'Calving input'!D44/2 -> 10 | W29: 10 | X29: 10 | Y29: 10 | Z29: 10 | AA29: 10 | AB29: 10 | AC29: 10 | AD29: 10 | AE29: 10 | AF29: 10 | AG29: 10 | AH29: 10 | AI29: 10 | AJ29: 100 | AL29: 2021-04-30 | AM29: 25 | AN29: 2739.726027 | AO29: 2739.726027 | AP29: 2739.726027 | AQ29: 2739.726027 | AR29: 2739.726027 | AS29: 2739.726027 | AT29: 2739.67036 | AU29: 2739.726027 | AV29: 2739.726027 | AW29: 82191.78082 | AX29: 7968.12749 | AY29: 6772.908367
D30: 26 | E30: ='Calving input'!C44/2+'Calving input'!C45/2 -> 3 | F30: 3 | G30: 3 | H30: 3 | I30: 3 | J30: 3 | K30: 3 | L30: 3 | M30: 3 | N30: 3 | O30: 3 | P30: 3 | Q30: 3 | R30: 3 | S30: 30 | U30: 26 | V30: ='Calving input'!D44/2+'Calving input'!D45/2 -> 10 | W30: 10 | X30: 10 | Y30: 10 | Z30: 10 | AA30: 10 | AB30: 10 | AC30: 10 | AD30: 10 | AE30: 10 | AF30: 10 | AG30: 10 | AH30: 10 | AI30: 10 | AJ30: 100 | AL30: 2021-05-31 | AM30: 26 | AN30: 2739.726027 | AO30: 2739.726027 | AP30: 2739.726027 | AQ30: 2739.726027 | AR30: 2739.726027 | AS30: 2739.726027 | AT30: 2739.67036 | AU30: 2739.726027 | AV30: 2739.726027 | AW30: 84931.50685 | AX30: 7968.12749 | AY30: 6772.908367
D31: 27 | E31: ='Calving input'!C45/2+'Calving input'!C46/2 -> 3 | F31: 3 | G31: 3 | H31: 3 | I31: 3 | J31: 3 | K31: 3 | L31: 3 | M31: 3 | N31: 3 | O31: 3 | P31: 3 | Q31: 3 | R31: 3 | S31: 30 | U31: 27 | V31: ='Calving input'!D45/2+'Calving input'!D46/2 -> 10 | W31: 10 | X31: 10 | Y31: 10 | Z31: 10 | AA31: 10 | AB31: 10 | AC31: 10 | AD31: 10 | AE31: 10 | AF31: 10 | AG31: 10 | AH31: 10 | AI31: 10 | AJ31: 100 | AL31: 2021-06-30 | AM31: 27 | AN31: 2739.726027 | AO31: 2739.726027 | AP31: 2739.726027 | AQ31: 2739.726027 | AR31: 2739.726027 | AS31: 2739.726027 | AT31: 2739.67036 | AU31: 2739.726027 | AV31: 2739.726027 | AW31: 82191.78082 | AX31: 7968.12749 | AY31: 6772.908367
D32: 28 | E32: ='Calving input'!C46/2+'Calving input'!C47/2 -> 3 | F32: 3 | G32: 3 | H32: 3 | I32: 3 | J32: 3 | K32: 3 | L32: 3 | M32: 3 | N32: 3 | O32: 3 | P32: 3 | Q32: 3 | R32: 3 | S32: 30 | U32: 28 | V32: ='Calving input'!D46/2+'Calving input'!D47/2 -> 10 | W32: 10 | X32: 10 | Y32: 10 | Z32: 10 | AA32: 10 | AB32: 10 | AC32: 10 | AD32: 10 | AE32: 10 | AF32: 10 | AG32: 10 | AH32: 10 | AI32: 10 | AJ32: 100 | AL32: 2021-07-31 | AM32: 28 | AN32: 2739.726027 | AO32: 2739.726027 | AP32: 2739.726027 | AQ32: 2739.726027 | AR32: 2739.726027 | AS32: 2739.726027 | AT32: 2739.67036 | AU32: 2739.726027 | AV32: 2739.726027 | AW32: 84931.50685 | AX32: 7968.12749 | AY32: 6772.908367
D33: 29 | E33: ='Calving input'!C47/2+'Calving input'!C48/2 -> 3 | F33: 3 | G33: 3 | H33: 3 | I33: 3 | J33: 3 | K33: 3 | L33: 3 | M33: 3 | N33: 3 | O33: 3 | P33: 3 | Q33: 3 | R33: 3 | S33: 30 | U33: 29 | V33: ='Calving input'!D47/2+'Calving input'!D48/2 -> 10 | W33: 10 | X33: 10 | Y33: 10 | Z33: 10 | AA33: 10 | AB33: 10 | AC33: 10 | AD33: 10 | AE33: 10 | AF33: 10 | AG33: 10 | AH33: 10 | AI33: 10 | AJ33: 100 | AL33: 2021-08-31 | AM33: 29 | AN33: 2739.726027 | AO33: 2739.726027 | AP33: 2739.726027 | AQ33: 2739.726027 | AR33: 2739.726027 | AS33: 2739.726027 | AT33: 2739.67036 | AU33: 2739.726027 | AV33: 2739.726027 | AW33: 84931.50685 | AX33: 7968.12749 | AY33: 6772.908367
D34: 30 | E34: ='Calving input'!C48/2+'Calving input'!C49/2 -> 3 | F34: 3 | G34: 3 | H34: 3 | I34: 3 | J34: 3 | K34: 3 | L34: 3 | M34: 3 | N34: 3 | O34: 3 | P34: 3 | Q34: 3 | R34: 3 | S34: 30 | U34: 30 | V34: ='Calving input'!D48/2+'Calving input'!D49/2 -> 10 | W34: 10 | X34: 10 | Y34: 10 | Z34: 10 | AA34: 10 | AB34: 10 | AC34: 10 | AD34: 10 | AE34: 10 | AF34: 10 | AG34: 10 | AH34: 10 | AI34: 10 | AJ34: 100 | AL34: 2021-09-30 | AM34: 30 | AN34: 2739.726027 | AO34: 2739.726027 | AP34: 2739.726027 | AQ34: 2739.726027 | AR34: 2739.726027 | AS34: 2739.726027 | AT34: 2739.67036 | AU34: 2739.726027 | AV34: 2739.726027 | AW34: 82191.78082 | AX34: 7968.12749 | AY34: 6772.908367
D35: 31 | E35: ='Calving input'!C49/2+'Calving input'!C50/2 -> 3 | F35: 3 | G35: 3 | H35: 3 | I35: 3 | J35: 3 | K35: 3 | L35: 3 | M35: 3 | N35: 3 | O35: 3 | P35: 3 | Q35: 3 | R35: 3 | S35: 30 | U35: 31 | V35: ='Calving input'!D49/2+'Calving input'!D50/2 -> 10 | W35: 10 | X35: 10 | Y35: 10 | Z35: 10 | AA35: 10 | AB35: 10 | AC35: 10 | AD35: 10 | AE35: 10 | AF35: 10 | AG35: 10 | AH35: 10 | AI35: 10 | AJ35: 100 | AL35: 2021-10-31 | AM35: 31 | AN35: 2739.726027 | AO35: 2739.726027 | AP35: 2739.726027 | AQ35: 2739.726027 | AR35: 2739.726027 | AS35: 2739.726027 | AT35: 2739.67036 | AU35: 2739.726027 | AV35: 2739.726027 | AW35: 84931.50685 | AX35: 7968.12749 | AY35: 6772.908367
D36: 32 | E36: ='Calving input'!C50/2+'Calving input'!C51/2 -> 3 | F36: 3 | G36: 3 | H36: 3 | I36: 3 | J36: 3 | K36: 3 | L36: 3 | M36: 3 | N36: 3 | O36: 3 | P36: 3 | Q36: 3 | R36: 3 | S36: 30 | U36: 32 | V36: ='Calving input'!D50/2+'Calving input'!D51/2 -> 10 | W36: 10 | X36: 10 | Y36: 10 | Z36: 10 | AA36: 10 | AB36: 10 | AC36: 10 | AD36: 10 | AE36: 10 | AF36: 10 | AG36: 10 | AH36: 10 | AI36: 10 | AJ36: 100 | AL36: 2021-11-30 | AM36: 32 | AN36: 2739.726027 | AO36: 2739.726027 | AP36: 2739.726027 | AQ36: 2739.726027 | AR36: 2739.726027 | AS36: 2739.726027 | AT36: 2739.67036 | AU36: 2739.726027 | AV36: 2739.726027 | AW36: 82191.78082 | AX36: 7968.12749 | AY36: 6772.908367
D37: 33 | E37: ='Calving input'!C51/2+'Calving input'!C52/2 -> 3 | F37: 3 | G37: 3 | H37: 3 | I37: 3 | J37: 3 | K37: 3 | L37: 3 | M37: 3 | N37: 3 | O37: 3 | P37: 3 | Q37: 3 | R37: 3 | S37: 30 | U37: 33 | V37: ='Calving input'!D51/2+'Calving input'!D52/2 -> 10 | W37: 10 | X37: 10 | Y37: 10 | Z37: 10 | AA37: 10 | AB37: 10 | AC37: 10 | AD37: 10 | AE37: 10 | AF37: 10 | AG37: 10 | AH37: 10 | AI37: 10 | AJ37: 100 | AL37: 2021-12-31 | AM37: 33 | AN37: 2739.726027 | AO37: 2739.726027 | AP37: 2739.726027 | AQ37: 2739.726027 | AR37: 2739.726027 | AS37: 2739.726027 | AT37: 2739.67036 | AU37: 2739.726027 | AV37: 2739.726027 | AW37: 84931.50685 | AX37: 7968.12749 | AY37: 6772.908367
D38: 34 | E38: ='Calving input'!C52/2+'Calving input'!C53/2 -> 3 | F38: 3 | G38: 3 | H38: 3 | I38: 3 | J38: 3 | K38: 3 | L38: 3 | M38: 3 | N38: 3 | O38: 3 | P38: 3 | Q38: 3 | R38: 3 | S38: 30 | U38: 34 | V38: ='Calving input'!D52/2+'Calving input'!D53/2 -> 10 | W38: 10 | X38: 10 | Y38: 10 | Z38: 10 | AA38: 10 | AB38: 10 | AC38: 10 | AD38: 10 | AE38: 10 | AF38: 10 | AG38: 10 | AH38: 10 | AI38: 10 | AJ38: 100 | AL38: 2022-01-31 | AM38: 34 | AN38: 2739.726027 | AO38: 2739.726027 | AP38: 2739.726027 | AQ38: 2739.726027 | AR38: 2739.726027 | AS38: 2739.726027 | AT38: 2739.67036 | AU38: 2739.726027 | AV38: 2739.726027 | AW38: 84931.50685 | AX38: 7968.12749 | AY38: 6772.908367
D39: 35 | E39: ='Calving input'!C53/2+'Calving input'!C54/2 -> 3 | F39: 3 | G39: 3 | H39: 3 | I39: 3 | J39: 3 | K39: 3 | L39: 3 | M39: 3 | N39: 3 | O39: 3 | P39: 3 | Q39: 3 | R39: 3 | S39: 30 | U39: 35 | V39: ='Calving input'!D53/2+'Calving input'!D54/2 -> 10 | W39: 10 | X39: 10 | Y39: 10 | Z39: 10 | AA39: 10 | AB39: 10 | AC39: 10 | AD39: 10 | AE39: 10 | AF39: 10 | AG39: 10 | AH39: 10 | AI39: 10 | AJ39: 100 | AL39: 2022-02-28 | AM39: 35 | AN39: 2739.726027 | AO39: 2739.726027 | AP39: 2739.726027 | AQ39: 2739.726027 | AR39: 2739.726027 | AS39: 2739.726027 | AT39: 2739.67036 | AU39: 2739.726027 | AV39: 2739.726027 | AW39: 76712.32877 | AX39: 7968.12749 | AY39: 6772.908367
D40: 36 | E40: ='Calving input'!C54/2+'Calving input'!C55/2 -> 3 | F40: 3 | G40: 3 | H40: 3 | I40: 3 | J40: 3 | K40: 3 | L40: 3 | M40: 3 | N40: 3 | O40: 3 | P40: 3 | Q40: 3 | R40: 3 | S40: 30 | U40: 36 | V40: ='Calving input'!D54/2+'Calving input'!D55/2 -> 10 | W40: 10 | X40: 10 | Y40: 10 | Z40: 10 | AA40: 10 | AB40: 10 | AC40: 10 | AD40: 10 | AE40: 10 | AF40: 10 | AG40: 10 | AH40: 10 | AI40: 10 | AJ40: 100 | AL40: 2022-03-31 | AM40: 36 | AN40: 2739.726027 | AO40: 2739.726027 | AP40: 2739.726027 | AQ40: 2739.726027 | AR40: 2739.726027 | AS40: 2739.726027 | AT40: 2739.67036 | AU40: 2739.726027 | AV40: 2739.726027 | AW40: 84931.50685 | AX40: 7968.12749 | AY40: 6772.908367
C42: Month of | D42: Lactation | E42: 1 | F42: 2 | G42: 3 | H42: 4 | I42: 5 | J42: 6 | K42: 7 | L42: 8 | M42: 9 | N42: 10 | O42: 11 | P42: 12 | Q42: 13 | R42: 14 | S42: Mth 1-10 av
C43: To yield | D43: Heifers | E43: 0.85 | F43: 1.1 | G43: 1.25 | H43: 1.23 | I43: 1.14 | J43: 1.05 | K43: 0.97 | L43: 0.88 | M43: 0.8 | N43: 0.73 | O43: 0.65 | P43: 0.59 | Q43: 0.54 | R43: 0.49 | S43: =AVERAGE(E43:N43) -> 1 | T43: Feed to yield | U43: High peak yield and reduced feed as milk yields fall, e.g. normal parlour feeding
D44: Cows | E44: 0.998003992 | F44: 1.417165669 | G44: 1.377245509 | H44: 1.22754491 | I44: 1.117764471 | J44: 0.998003992 | K44: 0.878243513 | L44: 0.7684630739 | M44: 0.6586826347 | N44: 0.5588822355 | O44: 0.4690618762 | P44: 0.3992015968 | Q44: 0.3592814371 | R44: 0.3293413174 | S44: =AVERAGE(E44:N44) -> 1
C45: Step rate | D45: Heifers | E45: 0.85 | F45: 1.14 | G45: 1.21 | H45: 1.16 | I45: 1.1 | J45: 1.05 | K45: 0.98 | L45: 0.91 | M45: 0.82 | N45: 0.78 | O45: 0.72 | P45: 0.67 | Q45: 0.62 | R45: 0.58 | S45: 1 | T45: Step rate | U45: High peaks but cows fed in steps according to stage of lactation not yield
D46: Cows | E46: 1 | F46: 1.29 | G46: 1.28 | H46: 1.21 | I46: 1.11 | J46: 1.01 | K46: 0.91 | L46: 0.82 | M46: 0.73 | N46: 0.64 | O46: 0.55 | P46: 0.47 | Q46: 0.41 | R46: 0.35 | S46: 1
C47: Flat rate | D47: Heifers | E47: 0.85 | F47: 1.04 | G47: 1.13 | H47: 1.13 | I47: 1.07 | J47: 1.03 | K47: 1 | L47: 0.96 | M47: 0.92 | N47: 0.87 | O47: 0.82 | P47: 0.76 | Q47: 0.7 | R47: 0.64 | S47: 1 | T47: Flat rate | U47: Lower peaks with one fixed level of concentrates fed to all cows
D48: Cows | E48: 1.001001001 | F48: 1.161161161 | G48: 1.181181181 | H48: 1.181181181 | I48: 1.091091091 | J48: 1.021021021 | K48: 0.950950951 | L48: 0.8808808809 | M48: 0.8108108108 | N48: 0.7207207207 | O48: 0.6406406406 | P48: 0.5605605606 | Q48: 0.4904904905 | R48: 0.4404404404 | S48: 1
C49: total mixed diet | D49: Heifers | E49: 0.8491508492 | F49: 0.9490509491 | G49: 1.038961039 | H49: 1.088911089 | I49: 1.118881119 | J49: 1.098901099 | K49: 1.068931069 | L49: 1.008991009 | M49: 0.9290709291 | N49: 0.8491508492 | O49: 0.7592407592 | P49: 0.6893106893 | Q49: 0.6393606394 | R49: 0.5994005994 | S49: 1 | T49: Total mixed ration | U49: One mixed ration fed to all milking cows
D50: Cows | E50: 0.9960159363 | F50: 1.145418327 | G50: 1.225099602 | H50: 1.215139442 | I50: 1.145418327 | J50: 1.045816733 | K50: 0.9561752988 | L50: 0.8565737052 | M50: 0.7569721116 | N50: 0.6573705179 | O50: 0.5278884462 | P50: 0.4282868526 | Q50: 0.328685259 | R50: 0.2290836653 | S50: 1
C51: 3x milking | D51: Heifers | E51: 0.85 | F51: 1.04 | G51: 1.12 | H51: 1.12 | I51: 1.08 | J51: 1.04 | K51: 1 | L51: 0.96 | M51: 0.92 | N51: 0.87 | O51: 0.81 | P51: 0.75 | Q51: 0.67 | R51: 0.6 | S51: 1 | T51: Three times a day milking | U51: TMR or partial mixed diet plus cake with 3x a day or robotic milking
D52: Cows | E52: 0.999000999 | F52: 1.198801199 | G52: 1.208791209 | H52: 1.138861139 | I52: 1.068931069 | J52: 0.999000999 | K52: 0.9490509491 | L52: 0.8791208791 | M52: 0.8091908092 | N52: 0.7492507493 | O52: 0.7092907093 | P52: 0.6493506494 | Q52: 0.5994005994 | R52: 0.5494505495 | S52: 1
C53: once a day | D53: Heifers | E53: 0.8508508509 | F53: 1.181181181 | G53: 1.241241241 | H53: 1.241241241 | I53: 1.171171171 | J53: 1.061061061 | K53: 0.970970971 | L53: 0.8608608609 | M53: 0.7607607608 | N53: 0.6606606607 | O53: 0.5505505506 | P53: 0.4404404404 | Q53: 0.3603603604 | R53: 0.2802802803 | S53: 1 | T53: Once a day milking | U53: Predominantly grazing system but cows only milked once per day
D54: Cows | E54: 0.9950248756 | F54: 1.134328358 | G54: 1.213930348 | H54: 1.223880597 | I54: 1.154228856 | J54: 1.054726368 | K54: 0.9552238806 | L54: 0.855721393 | M54: 0.7562189055 | N54: 0.6567164179 | O54: 0.5472636816 | P54: 0.4378109453 | Q54: 0.3582089552 | R54: 0.2786069652 | S54: 1
C55: Spring block | D55: Heifers | E55: 1.119 | F55: 1.224 | G55: 1.195 | H55: 1.134 | I55: 1.053 | J55: 0.987 | K55: 0.924 | L55: 0.847 | M55: 0.783 | N55: 0.733 | O55: 0.6637037815 | P55: 0.6005672269 | Q55: 0.5435903361 | R55: 0.4912331933 | S55: 0.9999 | T55: Spring block | U55: Intensively grazed, grass based system
D56: Cows | E56: 1.247 | F56: 1.326 | G56: 1.255 | H56: 1.151 | I56: 1.05 | J56: 0.959 | K56: 0.874 | L56: 0.782 | M56: 0.705 | N56: 0.651 | O56: 0.5628947368 | P56: 0.4813157895 | Q56: 0.4160526316 | R56: 0.3556842105 | S56: 1
C57: Autumn block | D57: Heifers | E57: 1.008532529 | F57: 1.113407125 | G57: 1.103420858 | H57: 1.079534508 | I57: 1.057994327 | J57: 1.024918661 | K57: 0.9860795426 | L57: 0.9446754807 | M57: 0.8800532356 | N57: 0.8013837325 | O57: 0.7256226653 | P57: 0.6565959153 | Q57: 0.5943034823 | R57: 0.5370617871 | S57: 1 | T57: Autumn block | U57: Herd fed to achieve maximum yield in winter and maximise grazing in spring
D58: Cows | E58: 1.146127071 | F58: 1.23653255 | G58: 1.187475005 | H58: 1.12319293 | I58: 1.062603436 | J58: 1.00124652 | K58: 0.937450994 | L58: 0.8598818107 | M58: 0.7671502533 | N58: 0.6783394292 | O58: 0.5865340929 | P58: 0.5015291519 | Q58: 0.4335251991 | R58: 0.3706215427 | S58: 1

Sheet Hidden calculation alter (hidden)
A1: Targets given | D1: Days | E1: 30 | F1: 61 | G1: 91 | H1: 122 | I1: 152 | J1: 183 | K1: 213 | L1: 244 | M1: 274 | N1: 305 | O1: 335 | P1: 365 | Q1: 395 | R1: 425
B2: start yield | D2: Retention | E2: ='Culling rate'!H5 -> 1 | F2: =IF(Input!$F$25-Input!F26>=F1,'Culling rate'!H6,IF(Input!$F$25-Input!F26<E1,0,(Input!$F$25-Input!F26-E1)/30)) -> 1 | G2: =IF(Input!$F$25-Input!F26>=G1,'Culling rate'!H7,IF(Input!$F$25-Input!F26<F1,0,(Input!$F$25-Input!F26-F1)/30)) -> 1 | H2: =IF(Input!$F$25-Input!F26>=H1,'Culling rate'!H8,IF(Input!$F$25-Input!F26<G1,0,(Input!$F$25-Input!F26-G1)/30)) -> 1 | I2: =IF(Input!$F$25-Input!F26>=I1,'Culling rate'!H9,IF(Input!$F$25-Input!F26<H1,0,(Input!$F$25-Input!F26-H1)/30)) -> 0.8 | J2: =IF(Input!$F$25-Input!F26>=J1,'Culling rate'!H10,IF(Input!$F$25-Input!F26<I1,0,(Input!$F$25-Input!F26-I1)/30)) -> 0.64 | K2: =IF(Input!$F$25-Input!F26>=K1,'Culling rate'!H11,IF(Input!$F$25-Input!F26<J1,0,(Input!$F$25-Input!F26-J1)/30)) -> 0.512 | L2: =IF(Input!$F$25-Input!F26>=L1,'Culling rate'!H12,IF(Input!$F$25-Input!F26<K1,0,(Input!$F$25-Input!F26-K1)/30)) -> 0 | M2: =IF(Input!$F$25-Input!F26>=M1,'Culling rate'!H13,IF(Input!$F$25-Input!F26<L1,0,(Input!$F$25-Input!F26-L1)/30)) -> 0 | N2: =IF(Input!$F$25-Input!F26>=N1,'Culling rate'!H14,IF(Input!$F$25-Input!F26<M1,0,(Input!$F$25-Input!F26-M1)/30)) -> 0 | O2: =IF(Input!$F$25-Input!F26>=O1,'Culling rate'!H15,IF(Input!$F$25-Input!F26<N1,0,(Input!$F$25-Input!F26-N1)/30)) -> 0 | P2: =IF(Input!$F$25-Input!F26>=P1,'Culling rate'!H16,IF(Input!$F$25-Input!F26<O1,0,(Input!$F$25-Input!F26-O1)/30)) -> 0 | Q2: =IF(Input!$F$25-Input!F26>=Q1,'Culling rate'!H17,IF(Input!$F$25-Input!F26<P1,0,(Input!$F$25-Input!F26-P1)/30)) -> 0 | R2: =IF(Input!$F$25-Input!F26>=R1,'Culling rate'!H18,IF(Input!$F$25-Input!F26<Q1,0,(Input!$F$25-Input!F26-Q1)/30)) -> 0 | U2: Retention | V2: ='Culling rate'!I5 -> 1 | W2: =IF(Input!$F$25-Input!F26>=F1,'Culling rate'!$I6,IF(Input!$F$25-Input!F26<E1,0,(Input!$F$25-Input!F26-E1)/30)) -> 1 | X2: =IF(Input!$F$25-Input!F26>=G1,'Culling rate'!$I7,IF(Input!$F$25-Input!F26<F1,0,(Input!$F$25-Input!F26-F1)/30)) -> 1 | Y2: =IF(Input!$F$25-Input!F26>=H1,'Culling rate'!$I8,IF(Input!$F$25-Input!F26<G1,0,(Input!$F$25-Input!F26-G1)/30)) -> 1 | Z2: =IF(Input!$F$25-Input!F26>=I1,'Culling rate'!$I9,IF(Input!$F$25-Input!F26<H1,0,(Input!$F$25-Input!F26-H1)/30)) -> 0.8 | AA2: =IF(Input!$F$25-Input!F26>=J1,'Culling rate'!$I10,IF(Input!$F$25-Input!F26<I1,0,(Input!$F$25-Input!F26-I1)/30)) -> 0.64 | AB2: =IF(Input!$F$25-Input!F26>=K1,'Culling rate'!$I11,IF(Input!$F$25-Input!F26<J1,0,(Input!$F$25-Input!F26-J1)/30)) -> 0.512 | AC2: =IF(Input!$F$25-Input!F26>=L1,'Culling rate'!$I12,IF(Input!$F$25-Input!F26<K1,0,(Input!$F$25-Input!F26-K1)/30)) -> 0 | AD2: =IF(Input!$F$25-Input!F26>=M1,'Culling rate'!$I13,IF(Input!$F$25-Input!F26<L1,0,(Input!$F$25-Input!F26-L1)/30)) -> 0 | AE2: =IF(Input!$F$25-Input!F26>=N1,'Culling rate'!$I14,IF(Input!$F$25-Input!F26<M1,0,(Input!$F$25-Input!F26-M1)/30)) -> 0 | AF2: =IF(Input!$F$25-Input!F26>=O1,'Culling rate'!$I15,IF(Input!$F$25-Input!F26<N1,0,(Input!$F$25-Input!F26-N1)/30)) -> 0 | AG2: =IF(Input!$F$25-Input!F26>=P1,'Culling rate'!$I16,IF(Input!$F$25-Input!F26<O1,0,(Input!$F$25-Input!F26-O1)/30)) -> 0 | AH2: =IF(Input!$F$25-Input!F26>=Q1,'Culling rate'!$I17,IF(Input!$F$25-Input!F26<P1,0,(Input!$F$25-Input!F26-P1)/30)) -> 0 | AI2: =IF(Input!$F$25-Input!F26>=R1,'Culling rate'!$I18,IF(Input!$F$25-Input!F26<Q1,0,(Input!$F$25-Input!F26-Q1)/30)) -> 0 | AM2: Used lookup | AN2: =IF(Input!$F$27='Hidden calculation alter'!AN4,1,0) -> 1 | AO2: =IF(Input!$F$27='Hidden calculation alter'!AO4,1,0) -> 0 | AP2: =IF(Input!$F$27='Hidden calculation alter'!AP4,1,0) -> 0 | AQ2: =IF(Input!$F$27='Hidden calculation alter'!AQ4,1,0) -> 0 | AR2: =IF(Input!$F$27='Hidden calculation alter'!AR4,1,0) -> 0 | AS2: =IF(Input!$F$27='Hidden calculation alter'!AS4,1,0) -> 0 | AT2: =IF(Input!$F$27='Hidden calculation alter'!AT4,1,0) -> 0 | AU2: =IF(Input!$F$27='Hidden calculation alter'!AU4,1,0) -> 0
A3: yield target | B3: =Input!F30 -> 7692.307692 | D3: Heifers | E3: Lactation | U3: Cows | V3: Lactation | AN3: 1 | AO3: 2 | AP3: 3 | AQ3: 4 | AR3: 5 | AS3: 6 | AT3: 7 | AU3: 8
A4: Heifer yield as % of cows yield | B4: =Input!F15*100 -> 85 | D4: Month production | E4: 1 | F4: 2 | G4: 3 | H4: 4 | I4: 5 | J4: 6 | K4: 7 | L4: 8 | M4: 9 | N4: 10 | O4: 11 | P4: 12 | Q4: 13 | R4: 14 | S4: Heifers-in-milk | U4: Month production | V4: 1 | W4: 2 | X4: 3 | Y4: 4 | Z4: 5 | AA4: 6 | AB4: 7 | AC4: 8 | AD4: 9 | AE4: 10 | AF4: 11 | AG4: 12 | AH4: 13 | AI4: 14 | AJ4: Cows-in-milk | AM4: Month production | AN4: Feed to yield | AO4: Step rate | AP4: Flat rate | AQ4: Total mixed ration | AR4: Three times a day milking | AS4: Once a day milking | AT4: Spring Block | AU4: Autumn block | AV4: Yield used | AW4: Yield per month | AX4: Yield for cows | AY4: Yield for heifers
A5: No cows | B5: ='Calving input'!I17 -> 120 | D5: 1 | E5: ='Calving input'!H$16/2+'Calving input'!H$18/2 -> 3 | F5: ='Calving input'!H$15/2+'Calving input'!H$16/2 -> 3 | G5: ='Calving input'!H$14/2+'Calving input'!H$15/2 -> 3 | H5: ='Calving input'!H$13/2+'Calving input'!H$14/2 -> 3 | I5: ='Calving input'!H$12/2+'Calving input'!H$13/2 -> 3 | J5: ='Calving input'!H$11/2+'Calving input'!H$12/2 -> 3 | K5: ='Calving input'!H$10/2+'Calving input'!H$11/2 -> 3 | L5: ='Calving input'!H$9/2+'Calving input'!H$10/2 -> 3 | M5: ='Calving input'!H$8/2+'Calving input'!H$9/2 -> 3 | N5: ='Calving input'!H$7/2+'Calving input'!H$8/2 -> 3 | O5: ='Calving input'!H$6/2+'Calving input'!H$7/2 -> 3 | P5: ='Calving input'!H$5/2+'Calving input'!H$6/2 -> 3 | Q5: ='Calving input'!H$16/2+'Calving input'!H$5/2 -> 3 | R5: ='Calving input'!H$15/2+'Calving input'!H$16/2 -> 3 | S5: =ROUND(SUMPRODUCT(E5:R5,$E$2:$R$2),0) -> 18 | U5: 1 | V5: ='Calving input'!I$16/2+'Calving input'!I$18/2 -> 10 | W5: ='Calving input'!I$15/2+'Calving input'!I$16/2 -> 10 | X5: ='Calving input'!I$14/2+'Calving input'!I$15/2 -> 10 | Y5: ='Calving input'!I$13/2+'Calving input'!I$14/2 -> 10 | Z5: ='Calving input'!I$12/2+'Calving input'!I$13/2 -> 10 | AA5: ='Calving input'!I$11/2+'Calving input'!I$12/2 -> 10 | AB5: ='Calving input'!I$10/2+'Calving input'!I$11/2 -> 10 | AC5: ='Calving input'!I$9/2+'Calving input'!I$10/2 -> 10 | AD5: ='Calving input'!I$8/2+'Calving input'!I$9/2 -> 10 | AE5: ='Calving input'!I$7/2+'Calving input'!I$8/2 -> 10 | AF5: ='Calving input'!I$6/2+'Calving input'!I$7/2 -> 10 | AG5: ='Calving input'!I$5/2+'Calving input'!I$6/2 -> 10 | AH5: ='Calving input'!I$16/2+'Calving input'!I$5/2 -> 10 | AI5: ='Calving input'!I$15/2+'Calving input'!I$16/2 -> 10 | AJ5: =ROUND(SUMPRODUCT(V5:AI5,$V$2:$AI$2),0) -> 60 | AL5: =Input!F9 -> 2019-04-30 | AM5: 1 | AN5: =(SUMPRODUCT($E$43:$R$43,$E$2:$R$2,$E5:$R5)*$AY5+SUMPRODUCT($E$44:$R$44,$V$2:$AI$2,$V5:$AI5)*$AX5)/365 -> 1891.124399 | AO5: =(SUMPRODUCT($E$45:$R$45,$E$2:$R$2,$E5:$R5)*$AY5+SUMPRODUCT($E$46:$R$46,$V$2:$AI$2,$V5:$AI5)*$AX5)/365 -> 1837.216351 | AP5: =(SUMPRODUCT($E$47:$R$47,$E$2:$R$2,$E5:$R5)*$AY5+SUMPRODUCT($E$48:$R$48,$V$2:$AI$2,$V5:$AI5)*$AX5)/365 -> 1771.090703 | AQ5: =(SUMPRODUCT($E$49:$R$49,$E$2:$R$2,$E5:$R5)*$AY5+SUMPRODUCT($E$50:$R$50,$V$2:$AI$2,$V5:$AI5)*$AX5)/365 -> 1791.233604 | AR5: =(SUMPRODUCT($E$51:$R$51,$E$2:$R$2,$E5:$R5)*$AY5+SUMPRODUCT($E$52:$R$52,$V$2:$AI$2,$V5:$AI5)*$AX5)/365 -> 1768.189079 | AS5: =(SUMPRODUCT($E$53:$R$53,$E$2:$R$2,$E5:$R5)*$AY5+SUMPRODUCT($E$54:$R$54,$V$2:$AI$2,$V5:$AI5)*$AX5)/365 -> 1821.689029 | AT5: =(SUMPRODUCT($E$55:$R$55,$E$2:$R$2,$E5:$R5)*$AY5+SUMPRODUCT($E$56:$R$56,$V$2:$AI$2,$V5:$AI5)*$AX5)/365 -> 1870.465718 | AU5: =(SUMPRODUCT($E$57:$R$57,$E$2:$R$2,$E5:$R5)*$AY5+SUMPRODUCT($E$58:$R$58,$V$2:$AI$2,$V5:$AI5)*$AX5)/365 -> 1806.204515 | AV5: =SUMPRODUCT(AN5:AU5,$AN$2:$AU$2) -> 1891.124399 | AW5: =AV5*DAY(AL5) -> 56733.73197 | AX5: =$B$11*(1+$B$17*6.62) -> 7968.12749 | AY5: =$B$12*(1+$B$17*6.62) -> 6772.908367
A6: No heifers | B6: ='Calving input'!H17 -> 36 | D6: 2 | E6: ='Calving input'!H18/2+'Calving input'!H19/2 -> 3 | F6: =E5 -> 3 | G6: =F5 -> 3 | H6: 3 | I6: 3 | J6: 3 | K6: 3 | L6: 3 | M6: 3 | N6: 3 | O6: 3 | P6: 3 | Q6: 3 | R6: 3 | S6: =ROUND(SUMPRODUCT(E6:R6,$E$2:$R$2),0) -> 18 | U6: 2 | V6: ='Calving input'!I18/2+'Calving input'!I19/2 -> 10 | W6: =V5 -> 10 | X6: =W5 -> 10 | Y6: 10 | Z6: 10 | AA6: 10 | AB6: 10 | AC6: 10 | AD6: 10 | AE6: 10 | AF6: 10 | AG6: 10 | AH6: 10 | AI6: 10 | AJ6: =ROUND(SUMPRODUCT(V6:AI6,$V$2:$AI$2),0) -> 60 | AL6: =EOMONTH(AL5,1) -> 2019-05-31 | AM6: 2 | AN6: =(SUMPRODUCT($E$43:$R$43,$E$2:$R$2,$E6:$R6)*$AY6+SUMPRODUCT($E$44:$R$44,$V$2:$AI$2,$V6:$AI6)*$AX6)/365 -> 1891.124399 | AO6: =(SUMPRODUCT($E$45:$R$45,$E$2:$R$2,$E6:$R6)*$AY6+SUMPRODUCT($E$46:$R$46,$V$2:$AI$2,$V6:$AI6)*$AX6)/365 -> 1837.216351 | AP6: =(SUMPRODUCT($E$47:$R$47,$E$2:$R$2,$E6:$R6)*$AY6+SUMPRODUCT($E$48:$R$48,$V$2:$AI$2,$V6:$AI6)*$AX6)/365 -> 1771.090703 | AQ6: =(SUMPRODUCT($E$49:$R$49,$E$2:$R$2,$E6:$R6)*$AY6+SUMPRODUCT($E$50:$R$50,$V$2:$AI$2,$V6:$AI6)*$AX6)/365 -> 1791.233604 | AR6: =(SUMPRODUCT($E$51:$R$51,$E$2:$R$2,$E6:$R6)*$AY6+SUMPRODUCT($E$52:$R$52,$V$2:$AI$2,$V6:$AI6)*$AX6)/365 -> 1768.189079 | AS6: =(SUMPRODUCT($E$53:$R$53,$E$2:$R$2,$E6:$R6)*$AY6+SUMPRODUCT($E$54:$R$54,$V$2:$AI$2,$V6:$AI6)*$AX6)/365 -> 1821.689029 | AT6: =(SUMPRODUCT($E$55:$R$55,$E$2:$R$2,$E6:$R6)*$AY6+SUMPRODUCT($E$56:$R$56,$V$2:$AI$2,$V6:$AI6)*$AX6)/365 -> 1870.465718 | AU6: =(SUMPRODUCT($E$57:$R$57,$E$2:$R$2,$E6:$R6)*$AY6+SUMPRODUCT($E$58:$R$58,$V$2:$AI$2,$V6:$AI6)*$AX6)/365 -> 1806.204515 | AV6: =SUMPRODUCT(AN6:AU6,$AN$2:$AU$2) -> 1891.124399 | AW6: =AV6*DAY(AL6) -> 58624.85637 | AX6: =AX5*(1+$B$17) -> 7968.12749 | AY6: =AY5*(1+$B$17) -> 6772.908367
A7: heifers as cow | B7: =B6*B4/100 -> 30.6 | D7: 3 | E7: ='Calving input'!H19/2+'Calving input'!H20/2 -> 3 | F7: 3 | G7: 3 | H7: 3 | I7: 3 | J7: 3 | K7: 3 | L7: 3 | M7: 3 | N7: 3 | O7: 3 | P7: 3 | Q7: 3 | R7: 3 | S7: 18 | U7: 3 | V7: ='Calving input'!I19/2+'Calving input'!I20/2 -> 10 | W7: 10 | X7: 10 | Y7: 10 | Z7: 10 | AA7: 10 | AB7: 10 | AC7: 10 | AD7: 10 | AE7: 10 | AF7: 10 | AG7: 10 | AH7: 10 | AI7: 10 | AJ7: 60 | AL7: =EOMONTH(AL6,1) -> 2019-06-30 | AM7: 3 | AN7: 1891.124399 | AO7: 1837.216351 | AP7: 1771.090703 | AQ7: 1791.233604 | AR7: 1768.189079 | AS7: 1821.689029 | AT7: 1870.465718 | AU7: 1806.204515 | AV7: 1891.124399 | AW7: 56733.73197 | AX7: =AX6*(1+$B$17) -> 7968.12749 | AY7: =AY6*(1+$B$17) -> 6772.908367
A8: equivalents | D8: 4 | E8: ='Calving input'!H20/2+'Calving input'!H21/2 -> 3 | F8: 3 | G8: 3 | H8: 3 | I8: 3 | J8: 3 | K8: 3 | L8: 3 | M8: 3 | N8: 3 | O8: 3 | P8: 3 | Q8: 3 | R8: 3 | S8: 18 | U8: 4 | V8: ='Calving input'!I20/2+'Calving input'!I21/2 -> 10 | W8: 10 | X8: 10 | Y8: 10 | Z8: 10 | AA8: 10 | AB8: 10 | AC8: 10 | AD8: 10 | AE8: 10 | AF8: 10 | AG8: 10 | AH8: 10 | AI8: 10 | AJ8: 60 | AL8: 2019-07-31 | AM8: 4 | AN8: 1891.124399 | AO8: 1837.216351 | AP8: 1771.090703 | AQ8: 1791.233604 | AR8: 1768.189079 | AS8: 1821.689029 | AT8: 1870.465718 | AU8: 1806.204515 | AV8: 1891.124399 | AW8: 58624.85637 | AX8: 7968.12749 | AY8: 6772.908367
A9: Total cow equivalents | B9: =B7+B5 -> 150.6 | D9: 5 | E9: ='Calving input'!H21/2+'Calving input'!H22/2 -> 3 | F9: 3 | G9: 3 | H9: 3 | I9: 3 | J9: 3 | K9: 3 | L9: 3 | M9: 3 | N9: 3 | O9: 3 | P9: 3 | Q9: 3 | R9: 3 | S9: 18 | U9: 5 | V9: ='Calving input'!I21/2+'Calving input'!I22/2 -> 10 | W9: 10 | X9: 10 | Y9: 10 | Z9: 10 | AA9: 10 | AB9: 10 | AC9: 10 | AD9: 10 | AE9: 10 | AF9: 10 | AG9: 10 | AH9: 10 | AI9: 10 | AJ9: 60 | AL9: 2019-08-31 | AM9: 5 | AN9: 1891.124399 | AO9: 1837.216351 | AP9: 1771.090703 | AQ9: 1791.233604 | AR9: 1768.189079 | AS9: 1821.689029 | AT9: 1870.465718 | AU9: 1806.204515 | AV9: 1891.124399 | AW9: 58624.85637 | AX9: 7968.12749 | AY9: 6772.908367
A10: yield per cow equiv | B10: =IF(B9>0,((B5+B6)*B3)/B9,0) -> 7968.12749 | D10: 6 | E10: ='Calving input'!H22/2+'Calving input'!H23/2 -> 3 | F10: 3 | G10: 3 | H10: 3 | I10: 3 | J10: 3 | K10: 3 | L10: 3 | M10: 3 | N10: 3 | O10: 3 | P10: 3 | Q10: 3 | R10: 3 | S10: 18 | U10: 6 | V10: ='Calving input'!I22/2+'Calving input'!I23/2 -> 10 | W10: 10 | X10: 10 | Y10: 10 | Z10: 10 | AA10: 10 | AB10: 10 | AC10: 10 | AD10: 10 | AE10: 10 | AF10: 10 | AG10: 10 | AH10: 10 | AI10: 10 | AJ10: 60 | AL10: 2019-09-30 | AM10: 6 | AN10: 1891.124399 | AO10: 1837.216351 | AP10: 1771.090703 | AQ10: 1791.233604 | AR10: 1768.189079 | AS10: 1821.689029 | AT10: 1870.465718 | AU10: 1806.204515 | AV10: 1891.124399 | AW10: 56733.73197 | AX10: 7968.12749 | AY10: 6772.908367
A11: Cow yield | B11: =B10 -> 7968.12749 | D11: 7 | E11: ='Calving input'!H23/2+'Calving input'!H24/2 -> 3 | F11: 3 | G11: 3 | H11: 3 | I11: 3 | J11: 3 | K11: 3 | L11: 3 | M11: 3 | N11: 3 | O11: 3 | P11: 3 | Q11: 3 | R11: 3 | S11: 18 | U11: 7 | V11: ='Calving input'!I23/2+'Calving input'!I24/2 -> 10 | W11: 10 | X11: 10 | Y11: 10 | Z11: 10 | AA11: 10 | AB11: 10 | AC11: 10 | AD11: 10 | AE11: 10 | AF11: 10 | AG11: 10 | AH11: 10 | AI11: 10 | AJ11: 60 | AL11: 2019-10-31 | AM11: 7 | AN11: 1891.124399 | AO11: 1837.216351 | AP11: 1771.090703 | AQ11: 1791.233604 | AR11: 1768.189079 | AS11: 1821.689029 | AT11: 1870.465718 | AU11: 1806.204515 | AV11: 1891.124399 | AW11: 58624.85637 | AX11: 7968.12749 | AY11: 6772.908367
A12: Heifer yield | B12: =B11*B4/100 -> 6772.908367 | D12: 8 | E12: ='Calving input'!H24/2+'Calving input'!H25/2 -> 3 | F12: 3 | G12: 3 | H12: 3 | I12: 3 | J12: 3 | K12: 3 | L12: 3 | M12: 3 | N12: 3 | O12: 3 | P12: 3 | Q12: 3 | R12: 3 | S12: 18 | U12: 8 | V12: ='Calving input'!I24/2+'Calving input'!I25/2 -> 10 | W12: 10 | X12: 10 | Y12: 10 | Z12: 10 | AA12: 10 | AB12: 10 | AC12: 10 | AD12: 10 | AE12: 10 | AF12: 10 | AG12: 10 | AH12: 10 | AI12: 10 | AJ12: 60 | AL12: 2019-11-30 | AM12: 8 | AN12: 1891.124399 | AO12: 1837.216351 | AP12: 1771.090703 | AQ12: 1791.233604 | AR12: 1768.189079 | AS12: 1821.689029 | AT12: 1870.465718 | AU12: 1806.204515 | AV12: 1891.124399 | AW12: 56733.73197 | AX12: 7968.12749 | AY12: 6772.908367
D13: 9 | E13: ='Calving input'!H25/2+'Calving input'!H26/2 -> 3 | F13: 3 | G13: 3 | H13: 3 | I13: 3 | J13: 3 | K13: 3 | L13: 3 | M13: 3 | N13: 3 | O13: 3 | P13: 3 | Q13: 3 | R13: 3 | S13: 18 | U13: 9 | V13: ='Calving input'!I25/2+'Calving input'!I26/2 -> 10 | W13: 10 | X13: 10 | Y13: 10 | Z13: 10 | AA13: 10 | AB13: 10 | AC13: 10 | AD13: 10 | AE13: 10 | AF13: 10 | AG13: 10 | AH13: 10 | AI13: 10 | AJ13: 60 | AL13: 2019-12-31 | AM13: 9 | AN13: 1891.124399 | AO13: 1837.216351 | AP13: 1771.090703 | AQ13: 1791.233604 | AR13: 1768.189079 | AS13: 1821.689029 | AT13: 1870.465718 | AU13: 1806.204515 | AV13: 1891.124399 | AW13: 58624.85637 | AX13: 7968.12749 | AY13: 6772.908367
A14: Av cows-in-milk | B14: =SUM($S5:$S16,$AJ5:$AJ16)/12 -> 78 | D14: 10 | E14: ='Calving input'!H26/2+'Calving input'!H27/2 -> 3 | F14: 3 | G14: 3 | H14: 3 | I14: 3 | J14: 3 | K14: 3 | L14: 3 | M14: 3 | N14: 3 | O14: 3 | P14: 3 | Q14: 3 | R14: 3 | S14: 18 | U14: 10 | V14: ='Calving input'!I26/2+'Calving input'!I27/2 -> 10 | W14: 10 | X14: 10 | Y14: 10 | Z14: 10 | AA14: 10 | AB14: 10 | AC14: 10 | AD14: 10 | AE14: 10 | AF14: 10 | AG14: 10 | AH14: 10 | AI14: 10 | AJ14: 60 | AL14: 2020-01-31 | AM14: 10 | AN14: 1891.124399 | AO14: 1837.216351 | AP14: 1771.090703 | AQ14: 1791.233604 | AR14: 1768.189079 | AS14: 1821.689029 | AT14: 1870.465718 | AU14: 1806.204515 | AV14: 1891.124399 | AW14: 58624.85637 | AX14: 7968.12749 | AY14: 6772.908367
D15: 11 | E15: ='Calving input'!H27/2+'Calving input'!H28/2 -> 3 | F15: 3 | G15: 3 | H15: 3 | I15: 3 | J15: 3 | K15: 3 | L15: 3 | M15: 3 | N15: 3 | O15: 3 | P15: 3 | Q15: 3 | R15: 3 | S15: 18 | U15: 11 | V15: ='Calving input'!I27/2+'Calving input'!I28/2 -> 10 | W15: 10 | X15: 10 | Y15: 10 | Z15: 10 | AA15: 10 | AB15: 10 | AC15: 10 | AD15: 10 | AE15: 10 | AF15: 10 | AG15: 10 | AH15: 10 | AI15: 10 | AJ15: 60 | AL15: 2020-02-29 | AM15: 11 | AN15: 1891.124399 | AO15: 1837.216351 | AP15: 1771.090703 | AQ15: 1791.233604 | AR15: 1768.189079 | AS15: 1821.689029 | AT15: 1870.465718 | AU15: 1806.204515 | AV15: 1891.124399 | AW15: 54842.60757 | AX15: 7968.12749 | AY15: 6772.908367
D16: 12 | E16: ='Calving input'!H28/2+'Calving input'!H29/2 -> 3 | F16: 3 | G16: 3 | H16: 3 | I16: 3 | J16: 3 | K16: 3 | L16: 3 | M16: 3 | N16: 3 | O16: 3 | P16: 3 | Q16: 3 | R16: 3 | S16: 18 | U16: 12 | V16: ='Calving input'!I28/2+'Calving input'!I29/2 -> 10 | W16: 10 | X16: 10 | Y16: 10 | Z16: 10 | AA16: 10 | AB16: 10 | AC16: 10 | AD16: 10 | AE16: 10 | AF16: 10 | AG16: 10 | AH16: 10 | AI16: 10 | AJ16: 60 | AL16: 2020-03-31 | AM16: 12 | AN16: 1891.124399 | AO16: 1837.216351 | AP16: 1771.090703 | AQ16: 1791.233604 | AR16: 1768.189079 | AS16: 1821.689029 | AT16: 1870.465718 | AU16: 1806.204515 | AV16: 1891.124399 | AW16: 58624.85637 | AX16: 7968.12749 | AY16: 6772.908367
A17: Yield monthly change | B17: =IF(Input!F31=0,0,IF(Input!F31<0,Input!F31,NOMINAL(Input!F31,12)))/12 -> 0 | D17: 13 | E17: ='Calving input'!H29/2+'Calving input'!H31/2 -> 3 | F17: 3 | G17: 3 | H17: 3 | I17: 3 | J17: 3 | K17: 3 | L17: 3 | M17: 3 | N17: 3 | O17: 3 | P17: 3 | Q17: 3 | R17: 3 | S17: 18 | U17: 13 | V17: ='Calving input'!I29/2+'Calving input'!I31/2 -> 10 | W17: 10 | X17: 10 | Y17: 10 | Z17: 10 | AA17: 10 | AB17: 10 | AC17: 10 | AD17: 10 | AE17: 10 | AF17: 10 | AG17: 10 | AH17: 10 | AI17: 10 | AJ17: 60 | AL17: 2020-04-30 | AM17: 13 | AN17: 1891.124399 | AO17: 1837.216351 | AP17: 1771.090703 | AQ17: 1791.233604 | AR17: 1768.189079 | AS17: 1821.689029 | AT17: 1870.465718 | AU17: 1806.204515 | AV17: 1891.124399 | AW17: 56733.73197 | AX17: 7968.12749 | AY17: 6772.908367
D18: 14 | E18: ='Calving input'!H31/2+'Calving input'!H32/2 -> 3 | F18: 3 | G18: 3 | H18: 3 | I18: 3 | J18: 3 | K18: 3 | L18: 3 | M18: 3 | N18: 3 | O18: 3 | P18: 3 | Q18: 3 | R18: 3 | S18: 18 | U18: 14 | V18: ='Calving input'!I31/2+'Calving input'!I32/2 -> 10 | W18: 10 | X18: 10 | Y18: 10 | Z18: 10 | AA18: 10 | AB18: 10 | AC18: 10 | AD18: 10 | AE18: 10 | AF18: 10 | AG18: 10 | AH18: 10 | AI18: 10 | AJ18: 60 | AL18: 2020-05-31 | AM18: 14 | AN18: 1891.124399 | AO18: 1837.216351 | AP18: 1771.090703 | AQ18: 1791.233604 | AR18: 1768.189079 | AS18: 1821.689029 | AT18: 1870.465718 | AU18: 1806.204515 | AV18: 1891.124399 | AW18: 58624.85637 | AX18: 7968.12749 | AY18: 6772.908367
A19: Yield for charts | D19: 15 | E19: ='Calving input'!H32/2+'Calving input'!H33/2 -> 3 | F19: 3 | G19: 3 | H19: 3 | I19: 3 | J19: 3 | K19: 3 | L19: 3 | M19: 3 | N19: 3 | O19: 3 | P19: 3 | Q19: 3 | R19: 3 | S19: 18 | U19: 15 | V19: ='Calving input'!I32/2+'Calving input'!I33/2 -> 10 | W19: 10 | X19: 10 | Y19: 10 | Z19: 10 | AA19: 10 | AB19: 10 | AC19: 10 | AD19: 10 | AE19: 10 | AF19: 10 | AG19: 10 | AH19: 10 | AI19: 10 | AJ19: 60 | AL19: 2020-06-30 | AM19: 15 | AN19: 1891.124399 | AO19: 1837.216351 | AP19: 1771.090703 | AQ19: 1791.233604 | AR19: 1768.189079 | AS19: 1821.689029 | AT19: 1870.465718 | AU19: 1806.204515 | AV19: 1891.124399 | AW19: 56733.73197 | AX19: 7968.12749 | AY19: 6772.908367
A20: Cow yield | B20: =IF(B11<>0,B11,Input!F30) -> 7968.12749 | D20: 16 | E20: ='Calving input'!H33/2+'Calving input'!H34/2 -> 3 | F20: 3 | G20: 3 | H20: 3 | I20: 3 | J20: 3 | K20: 3 | L20: 3 | M20: 3 | N20: 3 | O20: 3 | P20: 3 | Q20: 3 | R20: 3 | S20: 18 | U20: 16 | V20: ='Calving input'!I33/2+'Calving input'!I34/2 -> 10 | W20: 10 | X20: 10 | Y20: 10 | Z20: 10 | AA20: 10 | AB20: 10 | AC20: 10 | AD20: 10 | AE20: 10 | AF20: 10 | AG20: 10 | AH20: 10 | AI20: 10 | AJ20: 60 | AL20: 2020-07-31 | AM20: 16 | AN20: 1891.124399 | AO20: 1837.216351 | AP20: 1771.090703 | AQ20: 1791.233604 | AR20: 1768.189079 | AS20: 1821.689029 | AT20: 1870.465718 | AU20: 1806.204515 | AV20: 1891.124399 | AW20: 58624.85637 | AX20: 7968.12749 | AY20: 6772.908367
A21: Heifer yield | B21: =IF(B12<>0,B12,Input!F30*Input!F15) -> 6772.908367 | D21: 17 | E21: ='Calving input'!H34/2+'Calving input'!H35/2 -> 3 | F21: 3 | G21: 3 | H21: 3 | I21: 3 | J21: 3 | K21: 3 | L21: 3 | M21: 3 | N21: 3 | O21: 3 | P21: 3 | Q21: 3 | R21: 3 | S21: 18 | U21: 17 | V21: ='Calving input'!I34/2+'Calving input'!I35/2 -> 10 | W21: 10 | X21: 10 | Y21: 10 | Z21: 10 | AA21: 10 | AB21: 10 | AC21: 10 | AD21: 10 | AE21: 10 | AF21: 10 | AG21: 10 | AH21: 10 | AI21: 10 | AJ21: 60 | AL21: 2020-08-31 | AM21: 17 | AN21: 1891.124399 | AO21: 1837.216351 | AP21: 1771.090703 | AQ21: 1791.233604 | AR21: 1768.189079 | AS21: 1821.689029 | AT21: 1870.465718 | AU21: 1806.204515 | AV21: 1891.124399 | AW21: 58624.85637 | AX21: 7968.12749 | AY21: 6772.908367
D22: 18 | E22: ='Calving input'!H35/2+'Calving input'!H36/2 -> 3 | F22: 3 | G22: =F21 -> 3 | H22: 3 | I22: 3 | J22: 3 | K22: 3 | L22: 3 | M22: 3 | N22: 3 | O22: 3 | P22: 3 | Q22: 3 | R22: 3 | S22: 18 | U22: 18 | V22: ='Calving input'!I35/2+'Calving input'!I36/2 -> 10 | W22: 10 | X22: =W21 -> 10 | Y22: 10 | Z22: 10 | AA22: 10 | AB22: 10 | AC22: 10 | AD22: 10 | AE22: 10 | AF22: 10 | AG22: 10 | AH22: 10 | AI22: 10 | AJ22: 60 | AL22: 2020-09-30 | AM22: 18 | AN22: 1891.124399 | AO22: 1837.216351 | AP22: 1771.090703 | AQ22: 1791.233604 | AR22: 1768.189079 | AS22: 1821.689029 | AT22: 1870.465718 | AU22: 1806.204515 | AV22: 1891.124399 | AW22: 56733.73197 | AX22: 7968.12749 | AY22: 6772.908367
D23: 19 | E23: ='Calving input'!H36/2+'Calving input'!H37/2 -> 3 | F23: =E22 -> 3 | G23: 3 | H23: 3 | I23: 3 | J23: 3 | K23: 3 | L23: 3 | M23: 3 | N23: 3 | O23: 3 | P23: 3 | Q23: 3 | R23: 3 | S23: 18 | U23: 19 | V23: ='Calving input'!I36/2+'Calving input'!I37/2 -> 10 | W23: =V22 -> 10 | X23: 10 | Y23: 10 | Z23: 10 | AA23: 10 | AB23: 10 | AC23: 10 | AD23: 10 | AE23: 10 | AF23: 10 | AG23: 10 | AH23: 10 | AI23: 10 | AJ23: 60 | AL23: 2020-10-31 | AM23: 19 | AN23: 1891.124399 | AO23: 1837.216351 | AP23: 1771.090703 | AQ23: 1791.233604 | AR23: 1768.189079 | AS23: 1821.689029 | AT23: 1870.465718 | AU23: 1806.204515 | AV23: 1891.124399 | AW23: 58624.85637 | AX23: 7968.12749 | AY23: 6772.908367
D24: 20 | E24: ='Calving input'!H37/2+'Calving input'!H38/2 -> 3 | F24: 3 | G24: 3 | H24: 3 | I24: 3 | J24: 3 | K24: 3 | L24: 3 | M24: 3 | N24: 3 | O24: 3 | P24: 3 | Q24: 3 | R24: 3 | S24: 18 | U24: 20 | V24: ='Calving input'!I37/2+'Calving input'!I38/2 -> 10 | W24: 10 | X24: 10 | Y24: 10 | Z24: 10 | AA24: 10 | AB24: 10 | AC24: 10 | AD24: 10 | AE24: 10 | AF24: 10 | AG24: 10 | AH24: 10 | AI24: 10 | AJ24: 60 | AL24: 2020-11-30 | AM24: 20 | AN24: 1891.124399 | AO24: 1837.216351 | AP24: 1771.090703 | AQ24: 1791.233604 | AR24: 1768.189079 | AS24: 1821.689029 | AT24: 1870.465718 | AU24: 1806.204515 | AV24: 1891.124399 | AW24: 56733.73197 | AX24: 7968.12749 | AY24: 6772.908367
D25: 21 | E25: ='Calving input'!H38/2+'Calving input'!H39/2 -> 3 | F25: 3 | G25: 3 | H25: 3 | I25: 3 | J25: 3 | K25: 3 | L25: 3 | M25: 3 | N25: 3 | O25: 3 | P25: 3 | Q25: 3 | R25: 3 | S25: 18 | U25: 21 | V25: ='Calving input'!I38/2+'Calving input'!I39/2 -> 10 | W25: 10 | X25: 10 | Y25: 10 | Z25: 10 | AA25: 10 | AB25: 10 | AC25: 10 | AD25: 10 | AE25: 10 | AF25: 10 | AG25: 10 | AH25: 10 | AI25: 10 | AJ25: 60 | AL25: 2020-12-31 | AM25: 21 | AN25: 1891.124399 | AO25: 1837.216351 | AP25: 1771.090703 | AQ25: 1791.233604 | AR25: 1768.189079 | AS25: 1821.689029 | AT25: 1870.465718 | AU25: 1806.204515 | AV25: 1891.124399 | AW25: 58624.85637 | AX25: 7968.12749 | AY25: 6772.908367
D26: 22 | E26: ='Calving input'!H39/2+'Calving input'!H40/2 -> 3 | F26: 3 | G26: 3 | H26: 3 | I26: 3 | J26: 3 | K26: 3 | L26: 3 | M26: 3 | N26: 3 | O26: 3 | P26: 3 | Q26: 3 | R26: 3 | S26: 18 | U26: 22 | V26: ='Calving input'!I39/2+'Calving input'!I40/2 -> 10 | W26: 10 | X26: 10 | Y26: 10 | Z26: 10 | AA26: 10 | AB26: 10 | AC26: 10 | AD26: 10 | AE26: 10 | AF26: 10 | AG26: 10 | AH26: 10 | AI26: 10 | AJ26: 60 | AL26: 2021-01-31 | AM26: 22 | AN26: 1891.124399 | AO26: 1837.216351 | AP26: 1771.090703 | AQ26: 1791.233604 | AR26: 1768.189079 | AS26: 1821.689029 | AT26: 1870.465718 | AU26: 1806.204515 | AV26: 1891.124399 | AW26: 58624.85637 | AX26: 7968.12749 | AY26: 6772.908367
D27: 23 | E27: ='Calving input'!H40/2+'Calving input'!H41/2 -> 3 | F27: 3 | G27: 3 | H27: 3 | I27: 3 | J27: 3 | K27: 3 | L27: 3 | M27: 3 | N27: 3 | O27: 3 | P27: 3 | Q27: 3 | R27: 3 | S27: 18 | U27: 23 | V27: ='Calving input'!I40/2+'Calving input'!I41/2 -> 10 | W27: 10 | X27: 10 | Y27: 10 | Z27: 10 | AA27: 10 | AB27: 10 | AC27: 10 | AD27: 10 | AE27: 10 | AF27: 10 | AG27: 10 | AH27: 10 | AI27: 10 | AJ27: 60 | AL27: 2021-02-28 | AM27: 23 | AN27: 1891.124399 | AO27: 1837.216351 | AP27: 1771.090703 | AQ27: 1791.233604 | AR27: 1768.189079 | AS27: 1821.689029 | AT27: 1870.465718 | AU27: 1806.204515 | AV27: 1891.124399 | AW27: 52951.48317 | AX27: 7968.12749 | AY27: 6772.908367
D28: 24 | E28: ='Calving input'!H41/2+'Calving input'!H42/2 -> 3 | F28: 3 | G28: 3 | H28: 3 | I28: 3 | J28: 3 | K28: 3 | L28: 3 | M28: 3 | N28: 3 | O28: 3 | P28: 3 | Q28: 3 | R28: 3 | S28: 18 | U28: 24 | V28: ='Calving input'!I41/2+'Calving input'!I42/2 -> 10 | W28: 10 | X28: 10 | Y28: 10 | Z28: 10 | AA28: 10 | AB28: 10 | AC28: 10 | AD28: 10 | AE28: 10 | AF28: 10 | AG28: 10 | AH28: 10 | AI28: 10 | AJ28: 60 | AL28: 2021-03-31 | AM28: 24 | AN28: 1891.124399 | AO28: 1837.216351 | AP28: 1771.090703 | AQ28: 1791.233604 | AR28: 1768.189079 | AS28: 1821.689029 | AT28: 1870.465718 | AU28: 1806.204515 | AV28: 1891.124399 | AW28: 58624.85637 | AX28: 7968.12749 | AY28: 6772.908367
D29: 25 | E29: ='Calving input'!H42/2+'Calving input'!H44/2 -> 3 | F29: 3 | G29: 3 | H29: 3 | I29: 3 | J29: 3 | K29: 3 | L29: 3 | M29: 3 | N29: 3 | O29: 3 | P29: 3 | Q29: 3 | R29: 3 | S29: 18 | U29: 25 | V29: ='Calving input'!I42/2+'Calving input'!I44/2 -> 10 | W29: 10 | X29: 10 | Y29: 10 | Z29: 10 | AA29: 10 | AB29: 10 | AC29: 10 | AD29: 10 | AE29: 10 | AF29: 10 | AG29: 10 | AH29: 10 | AI29: 10 | AJ29: 60 | AL29: 2021-04-30 | AM29: 25 | AN29: 1891.124399 | AO29: 1837.216351 | AP29: 1771.090703 | AQ29: 1791.233604 | AR29: 1768.189079 | AS29: 1821.689029 | AT29: 1870.465718 | AU29: 1806.204515 | AV29: 1891.124399 | AW29: 56733.73197 | AX29: 7968.12749 | AY29: 6772.908367
D30: 26 | E30: ='Calving input'!H44/2+'Calving input'!H45/2 -> 3 | F30: 3 | G30: 3 | H30: 3 | I30: 3 | J30: 3 | K30: 3 | L30: 3 | M30: 3 | N30: 3 | O30: 3 | P30: 3 | Q30: 3 | R30: 3 | S30: 18 | U30: 26 | V30: ='Calving input'!I44/2+'Calving input'!I45/2 -> 10 | W30: 10 | X30: 10 | Y30: 10 | Z30: 10 | AA30: 10 | AB30: 10 | AC30: 10 | AD30: 10 | AE30: 10 | AF30: 10 | AG30: 10 | AH30: 10 | AI30: 10 | AJ30: 60 | AL30: 2021-05-31 | AM30: 26 | AN30: 1891.124399 | AO30: 1837.216351 | AP30: 1771.090703 | AQ30: 1791.233604 | AR30: 1768.189079 | AS30: 1821.689029 | AT30: 1870.465718 | AU30: 1806.204515 | AV30: 1891.124399 | AW30: 58624.85637 | AX30: 7968.12749 | AY30: 6772.908367
D31: 27 | E31: ='Calving input'!H45/2+'Calving input'!H46/2 -> 3 | F31: 3 | G31: 3 | H31: 3 | I31: 3 | J31: 3 | K31: 3 | L31: 3 | M31: 3 | N31: 3 | O31: 3 | P31: 3 | Q31: 3 | R31: 3 | S31: 18 | U31: 27 | V31: ='Calving input'!I45/2+'Calving input'!I46/2 -> 10 | W31: 10 | X31: 10 | Y31: 10 | Z31: 10 | AA31: 10 | AB31: 10 | AC31: 10 | AD31: 10 | AE31: 10 | AF31: 10 | AG31: 10 | AH31: 10 | AI31: 10 | AJ31: 60 | AL31: 2021-06-30 | AM31: 27 | AN31: 1891.124399 | AO31: 1837.216351 | AP31: 1771.090703 | AQ31: 1791.233604 | AR31: 1768.189079 | AS31: 1821.689029 | AT31: 1870.465718 | AU31: 1806.204515 | AV31: 1891.124399 | AW31: 56733.73197 | AX31: 7968.12749 | AY31: 6772.908367
D32: 28 | E32: ='Calving input'!H46/2+'Calving input'!H47/2 -> 3 | F32: 3 | G32: 3 | H32: 3 | I32: 3 | J32: 3 | K32: 3 | L32: 3 | M32: 3 | N32: 3 | O32: 3 | P32: 3 | Q32: 3 | R32: 3 | S32: 18 | U32: 28 | V32: ='Calving input'!I46/2+'Calving input'!I47/2 -> 10 | W32: 10 | X32: 10 | Y32: 10 | Z32: 10 | AA32: 10 | AB32: 10 | AC32: 10 | AD32: 10 | AE32: 10 | AF32: 10 | AG32: 10 | AH32: 10 | AI32: 10 | AJ32: 60 | AL32: 2021-07-31 | AM32: 28 | AN32: 1891.124399 | AO32: 1837.216351 | AP32: 1771.090703 | AQ32: 1791.233604 | AR32: 1768.189079 | AS32: 1821.689029 | AT32: 1870.465718 | AU32: 1806.204515 | AV32: 1891.124399 | AW32: 58624.85637 | AX32: 7968.12749 | AY32: 6772.908367
D33: 29 | E33: ='Calving input'!H47/2+'Calving input'!H48/2 -> 3 | F33: 3 | G33: 3 | H33: 3 | I33: 3 | J33: 3 | K33: 3 | L33: 3 | M33: 3 | N33: 3 | O33: 3 | P33: 3 | Q33: 3 | R33: 3 | S33: 18 | U33: 29 | V33: ='Calving input'!I47/2+'Calving input'!I48/2 -> 10 | W33: 10 | X33: 10 | Y33: 10 | Z33: 10 | AA33: 10 | AB33: 10 | AC33: 10 | AD33: 10 | AE33: 10 | AF33: 10 | AG33: 10 | AH33: 10 | AI33: 10 | AJ33: 60 | AL33: 2021-08-31 | AM33: 29 | AN33: 1891.124399 | AO33: 1837.216351 | AP33: 1771.090703 | AQ33: 1791.233604 | AR33: 1768.189079 | AS33: 1821.689029 | AT33: 1870.465718 | AU33: 1806.204515 | AV33: 1891.124399 | AW33: 58624.85637 | AX33: 7968.12749 | AY33: 6772.908367
D34: 30 | E34: ='Calving input'!H48/2+'Calving input'!H49/2 -> 3 | F34: 3 | G34: 3 | H34: 3 | I34: 3 | J34: 3 | K34: 3 | L34: 3 | M34: 3 | N34: 3 | O34: 3 | P34: 3 | Q34: 3 | R34: 3 | S34: 18 | U34: 30 | V34: ='Calving input'!I48/2+'Calving input'!I49/2 -> 10 | W34: 10 | X34: 10 | Y34: 10 | Z34: 10 | AA34: 10 | AB34: 10 | AC34: 10 | AD34: 10 | AE34: 10 | AF34: 10 | AG34: 10 | AH34: 10 | AI34: 10 | AJ34: 60 | AL34: 2021-09-30 | AM34: 30 | AN34: 1891.124399 | AO34: 1837.216351 | AP34: 1771.090703 | AQ34: 1791.233604 | AR34: 1768.189079 | AS34: 1821.689029 | AT34: 1870.465718 | AU34: 1806.204515 | AV34: 1891.124399 | AW34: 56733.73197 | AX34: 7968.12749 | AY34: 6772.908367
D35: 31 | E35: ='Calving input'!H49/2+'Calving input'!H50/2 -> 3 | F35: 3 | G35: 3 | H35: 3 | I35: 3 | J35: 3 | K35: 3 | L35: 3 | M35: 3 | N35: 3 | O35: 3 | P35: 3 | Q35: 3 | R35: 3 | S35: 18 | U35: 31 | V35: ='Calving input'!I49/2+'Calving input'!I50/2 -> 10 | W35: 10 | X35: 10 | Y35: 10 | Z35: 10 | AA35: 10 | AB35: 10 | AC35: 10 | AD35: 10 | AE35: 10 | AF35: 10 | AG35: 10 | AH35: 10 | AI35: 10 | AJ35: 60 | AL35: 2021-10-31 | AM35: 31 | AN35: 1891.124399 | AO35: 1837.216351 | AP35: 1771.090703 | AQ35: 1791.233604 | AR35: 1768.189079 | AS35: 1821.689029 | AT35: 1870.465718 | AU35: 1806.204515 | AV35: 1891.124399 | AW35: 58624.85637 | AX35: 7968.12749 | AY35: 6772.908367
D36: 32 | E36: ='Calving input'!H50/2+'Calving input'!H51/2 -> 3 | F36: 3 | G36: 3 | H36: 3 | I36: 3 | J36: 3 | K36: 3 | L36: 3 | M36: 3 | N36: 3 | O36: 3 | P36: 3 | Q36: 3 | R36: 3 | S36: 18 | U36: 32 | V36: ='Calving input'!I50/2+'Calving input'!I51/2 -> 10 | W36: 10 | X36: 10 | Y36: 10 | Z36: 10 | AA36: 10 | AB36: 10 | AC36: 10 | AD36: 10 | AE36: 10 | AF36: 10 | AG36: 10 | AH36: 10 | AI36: 10 | AJ36: 60 | AL36: 2021-11-30 | AM36: 32 | AN36: 1891.124399 | AO36: 1837.216351 | AP36: 1771.090703 | AQ36: 1791.233604 | AR36: 1768.189079 | AS36: 1821.689029 | AT36: 1870.465718 | AU36: 1806.204515 | AV36: 1891.124399 | AW36: 56733.73197 | AX36: 7968.12749 | AY36: 6772.908367
D37: 33 | E37: ='Calving input'!H51/2+'Calving input'!H52/2 -> 3 | F37: 3 | G37: 3 | H37: 3 | I37: 3 | J37: 3 | K37: 3 | L37: 3 | M37: 3 | N37: 3 | O37: 3 | P37: 3 | Q37: 3 | R37: 3 | S37: 18 | U37: 33 | V37: ='Calving input'!I51/2+'Calving input'!I52/2 -> 10 | W37: 10 | X37: 10 | Y37: 10 | Z37: 10 | AA37: 10 | AB37: 10 | AC37: 10 | AD37: 10 | AE37: 10 | AF37: 10 | AG37: 10 | AH37: 10 | AI37: 10 | AJ37: 60 | AL37: 2021-12-31 | AM37: 33 | AN37: 1891.124399 | AO37: 1837.216351 | AP37: 1771.090703 | AQ37: 1791.233604 | AR37: 1768.189079 | AS37: 1821.689029 | AT37: 1870.465718 | AU37: 1806.204515 | AV37: 1891.124399 | AW37: 58624.85637 | AX37: 7968.12749 | AY37: 6772.908367
D38: 34 | E38: ='Calving input'!H52/2+'Calving input'!H53/2 -> 3 | F38: 3 | G38: 3 | H38: 3 | I38: 3 | J38: 3 | K38: 3 | L38: 3 | M38: 3 | N38: 3 | O38: 3 | P38: 3 | Q38: 3 | R38: 3 | S38: 18 | U38: 34 | V38: ='Calving input'!I52/2+'Calving input'!I53/2 -> 10 | W38: 10 | X38: 10 | Y38: 10 | Z38: 10 | AA38: 10 | AB38: 10 | AC38: 10 | AD38: 10 | AE38: 10 | AF38: 10 | AG38: 10 | AH38: 10 | AI38: 10 | AJ38: 60 | AL38: 2022-01-31 | AM38: 34 | AN38: 1891.124399 | AO38: 1837.216351 | AP38: 1771.090703 | AQ38: 1791.233604 | AR38: 1768.189079 | AS38: 1821.689029 | AT38: 1870.465718 | AU38: 1806.204515 | AV38: 1891.124399 | AW38: 58624.85637 | AX38: 7968.12749 | AY38: 6772.908367
D39: 35 | E39: ='Calving input'!H53/2+'Calving input'!H54/2 -> 3 | F39: 3 | G39: 3 | H39: 3 | I39: 3 | J39: 3 | K39: 3 | L39: 3 | M39: 3 | N39: 3 | O39: 3 | P39: 3 | Q39: 3 | R39: 3 | S39: 18 | U39: 35 | V39: ='Calving input'!I53/2+'Calving input'!I54/2 -> 10 | W39: 10 | X39: 10 | Y39: 10 | Z39: 10 | AA39: 10 | AB39: 10 | AC39: 10 | AD39: 10 | AE39: 10 | AF39: 10 | AG39: 10 | AH39: 10 | AI39: 10 | AJ39: 60 | AL39: 2022-02-28 | AM39: 35 | AN39: 1891.124399 | AO39: 1837.216351 | AP39: 1771.090703 | AQ39: 1791.233604 | AR39: 1768.189079 | AS39: 1821.689029 | AT39: 1870.465718 | AU39: 1806.204515 | AV39: 1891.124399 | AW39: 52951.48317 | AX39: 7968.12749 | AY39: 6772.908367
D40: 36 | E40: ='Calving input'!H54/2+'Calving input'!H55/2 -> 3 | F40: 3 | G40: 3 | H40: 3 | I40: 3 | J40: 3 | K40: 3 | L40: 3 | M40: 3 | N40: 3 | O40: 3 | P40: 3 | Q40: 3 | R40: 3 | S40: 18 | U40: 36 | V40: ='Calving input'!I54/2+'Calving input'!I55/2 -> 10 | W40: 10 | X40: 10 | Y40: 10 | Z40: 10 | AA40: 10 | AB40: 10 | AC40: 10 | AD40: 10 | AE40: 10 | AF40: 10 | AG40: 10 | AH40: 10 | AI40: 10 | AJ40: 60 | AL40: 2022-03-31 | AM40: 36 | AN40: 1891.124399 | AO40: 1837.216351 | AP40: 1771.090703 | AQ40: 1791.233604 | AR40: 1768.189079 | AS40: 1821.689029 | AT40: 1870.465718 | AU40: 1806.204515 | AV40: 1891.124399 | AW40: 58624.85637 | AX40: 7968.12749 | AY40: 6772.908367
C42: Month of | D42: Lactation | E42: 1 | F42: 2 | G42: 3 | H42: 4 | I42: 5 | J42: 6 | K42: 7 | L42: 8 | M42: 9 | N42: 10 | O42: 11 | P42: 12 | Q42: 13 | R42: 14 | S42: Mth 1-10 av
C43: To yield | D43: Heifers | E43: 0.85 | F43: 1.1 | G43: 1.25 | H43: 1.23 | I43: 1.14 | J43: 1.05 | K43: 0.97 | L43: 0.88 | M43: 0.8 | N43: 0.73 | O43: 0.65 | P43: 0.59 | Q43: 0.54 | R43: 0.49 | S43: =AVERAGE(E43:N43) -> 1 | T43: Feed to yield | U43: High peak yield and reduced feed as milk yields fall, e.g. normal parlour feeding
D44: Cows | E44: 0.998003992 | F44: 1.417165669 | G44: 1.377245509 | H44: 1.22754491 | I44: 1.117764471 | J44: 0.998003992 | K44: 0.878243513 | L44: 0.7684630739 | M44: 0.6586826347 | N44: 0.5588822355 | O44: 0.4690618762 | P44: 0.3992015968 | Q44: 0.3592814371 | R44: 0.3293413174 | S44: =AVERAGE(E44:N44) -> 1
C45: Step rate | D45: Heifers | E45: 0.85 | F45: 1.14 | G45: 1.21 | H45: 1.16 | I45: 1.1 | J45: 1.05 | K45: 0.98 | L45: 0.91 | M45: 0.82 | N45: 0.78 | O45: 0.72 | P45: 0.67 | Q45: 0.62 | R45: 0.58 | S45: 1 | T45: Step rate | U45: High peaks but cows fed in steps according to stage of lactation not yield
D46: Cows | E46: 1 | F46: 1.29 | G46: 1.28 | H46: 1.21 | I46: 1.11 | J46: 1.01 | K46: 0.91 | L46: 0.82 | M46: 0.73 | N46: 0.64 | O46: 0.55 | P46: 0.47 | Q46: 0.41 | R46: 0.35 | S46: 1
C47: Flat rate | D47: Heifers | E47: 0.85 | F47: 1.04 | G47: 1.13 | H47: 1.13 | I47: 1.07 | J47: 1.03 | K47: 1 | L47: 0.96 | M47: 0.92 | N47: 0.87 | O47: 0.82 | P47: 0.76 | Q47: 0.7 | R47: 0.64 | S47: 1 | T47: Flat rate | U47: Lower peaks with one fixed level of concentrates fed to all cows
D48: Cows | E48: 1.001001001 | F48: 1.161161161 | G48: 1.181181181 | H48: 1.181181181 | I48: 1.091091091 | J48: 1.021021021 | K48: 0.950950951 | L48: 0.8808808809 | M48: 0.8108108108 | N48: 0.7207207207 | O48: 0.6406406406 | P48: 0.5605605606 | Q48: 0.4904904905 | R48: 0.4404404404 | S48: 1
C49: total mixed diet | D49: Heifers | E49: 0.8491508492 | F49: 0.9490509491 | G49: 1.038961039 | H49: 1.088911089 | I49: 1.118881119 | J49: 1.098901099 | K49: 1.068931069 | L49: 1.008991009 | M49: 0.9290709291 | N49: 0.8491508492 | O49: 0.7592407592 | P49: 0.6893106893 | Q49: 0.6393606394 | R49: 0.5994005994 | S49: 1 | T49: Total mixed ration | U49: One mixed ration fed to all milking cows
D50: Cows | E50: 0.9960159363 | F50: 1.145418327 | G50: 1.225099602 | H50: 1.215139442 | I50: 1.145418327 | J50: 1.045816733 | K50: 0.9561752988 | L50: 0.8565737052 | M50: 0.7569721116 | N50: 0.6573705179 | O50: 0.5278884462 | P50: 0.4282868526 | Q50: 0.328685259 | R50: 0.2290836653 | S50: 1
C51: 3x milking | D51: Heifers | E51: 0.85 | F51: 1.04 | G51: 1.12 | H51: 1.12 | I51: 1.08 | J51: 1.04 | K51: 1 | L51: 0.96 | M51: 0.92 | N51: 0.87 | O51: 0.81 | P51: 0.75 | Q51: 0.67 | R51: 0.6 | S51: 1 | T51: Three times a day milking | U51: TMR or partial mixed diet plus cake with 3x a day or robotic milking
D52: Cows | E52: 0.999000999 | F52: 1.198801199 | G52: 1.208791209 | H52: 1.138861139 | I52: 1.068931069 | J52: 0.999000999 | K52: 0.9490509491 | L52: 0.8791208791 | M52: 0.8091908092 | N52: 0.7492507493 | O52: 0.7092907093 | P52: 0.6493506494 | Q52: 0.5994005994 | R52: 0.5494505495 | S52: 1
C53: once a day | D53: Heifers | E53: 0.8508508509 | F53: 1.181181181 | G53: 1.241241241 | H53: 1.241241241 | I53: 1.171171171 | J53: 1.061061061 | K53: 0.970970971 | L53: 0.8608608609 | M53: 0.7607607608 | N53: 0.6606606607 | O53: 0.5505505506 | P53: 0.4404404404 | Q53: 0.3603603604 | R53: 0.2802802803 | S53: 1 | T53: Once a day milking | U53: Predominantly grazing system but cows only milked once per day
D54: Cows | E54: 0.9950248756 | F54: 1.134328358 | G54: 1.213930348 | H54: 1.223880597 | I54: 1.154228856 | J54: 1.054726368 | K54: 0.9552238806 | L54: 0.855721393 | M54: 0.7562189055 | N54: 0.6567164179 | O54: 0.5472636816 | P54: 0.4378109453 | Q54: 0.3582089552 | R54: 0.2786069652 | S54: 1
C55: Spring block | D55: Heifers | E55: 1.119 | F55: 1.224 | G55: 1.195 | H55: 1.134 | I55: 1.053 | J55: 0.987 | K55: 0.924 | L55: 0.847 | M55: 0.783 | N55: 0.733 | O55: 0.6637037815 | P55: 0.6005672269 | Q55: 0.5435903361 | R55: 0.4912331933 | S55: 0.9999 | T55: Spring block | U55: Intensively grazed, grass based system
D56: Cows | E56: 1.247 | F56: 1.326 | G56: 1.255 | H56: 1.151 | I56: 1.05 | J56: 0.959 | K56: 0.874 | L56: 0.782 | M56: 0.705 | N56: 0.651 | O56: 0.5628947368 | P56: 0.4813157895 | Q56: 0.4160526316 | R56: 0.3556842105 | S56: 1
C57: Autumn block | D57: Heifers | E57: 1.008532529 | F57: 1.113407125 | G57: 1.103420858 | H57: 1.079534508 | I57: 1.057994327 | J57: 1.024918661 | K57: 0.9860795426 | L57: 0.9446754807 | M57: 0.8800532356 | N57: 0.8013837325 | O57: 0.7256226653 | P57: 0.6565959153 | Q57: 0.5943034823 | R57: 0.5370617871 | S57: =AVERAGE(E57:N57) -> 1 | T57: Autumn block | U57: Herd fed to achieve maximum yield in winter and maximise grazing in spring
D58: Cows | E58: 1.146127071 | F58: 1.23653255 | G58: 1.187475005 | H58: 1.12319293 | I58: 1.062603436 | J58: 1.00124652 | K58: 0.937450994 | L58: 0.8598818107 | M58: 0.7671502533 | N58: 0.6783394292 | O58: 0.5865340929 | P58: 0.5015291519 | Q58: 0.4335251991 | R58: 0.3706215427 | S58: 1

Sheet Yields for charts (hidden)
B1: Type | S1: Selected chart 1 | U1: To plot | X1: Alternative chart | Z1: To plot
A2: Month of | B2: Feed to yield | D2: Step rate | F2: Flat rate | H2: Total mixed diet | J2: 3x milking | L2: Once a day | N2: Spring block | P2: Autumn block
A3: Lactation | B3: Heifers | C3: Cows | D3: Heifers | E3: Cows | F3: Heifers | G3: Cows | H3: Heifers | I3: Cows | J3: Heifers | K3: Cows | L3: Heifers | M3: Cows | N3: Heifers | O3: Cows | P3: Heifers | Q3: Cows | R3: Days | S3: Heifers | T3: Cows | U3: Heifers | V3: Cows | X3: Heifers | Y3: Cows | Z3: Heifers | AA3: Cows
A4: 1 | B4: =B29 -> 0.85 | C4: =C29 -> 1 | D4: 0.85 | E4: 1 | F4: 0.85 | G4: 1 | H4: 0.85 | I4: 1 | J4: 0.85 | K4: 1 | L4: 0.85 | M4: 1 | N4: 1.119 | O4: 1.247 | P4: 1.008532529 | Q4: 1.146127071 | R4: =A4*30 -> 30 | S4: =B4*$B$23+D4*$D$23+F4*$F$23+H4*$H$23+J4*$J$23+L4*$L$23+N4*$N$23+P4*$P$23 -> 15.77252633 | T4: =C4*$C$23+E4*$E$23+G4*$G$23+I4*$I$23+K4*$K$23+M4*$M$23+O4*$O$23+Q4*$Q$23 -> 21.83048627 | U4: =IF(Input!$F$12-Input!$F$13>$R4-15,'Yields for charts'!S4,0) -> 15.77252633 | V4: =IF(Input!$F$12-Input!$F$13>$R4-15,'Yields for charts'!T4,0) -> 21.83048627 | X4: =B4*$B$24+D4*$D$24+F4*$F$24+H4*$H$24+J4*$J$24+L4*$L$24+N4*$N$24+P4*$P$24 -> 15.77252633 | Y4: =C4*$C$24+E4*$E$24+G4*$G$24+I4*$I$24+K4*$K$24+M4*$M$24+O4*$O$24+Q4*$Q$24 -> 21.83048627 | Z4: =IF(Input!$F$25-Input!$F$26>$R4-15,'Yields for charts'!X4,0) -> 15.77252633 | AA4: =IF(Input!$F$25-Input!$F$26>$R4-15,'Yields for charts'!Y4,0) -> 21.83048627
A5: 2 | B5: =B30 -> 1.1 | C5: 1.42 | D5: 1.14 | E5: 1.29 | F5: 1.04 | G5: 1.16 | H5: 0.95 | I5: 1.15 | J5: 1.04 | K5: 1.2 | L5: 1.18 | M5: 1.14 | N5: 1.224 | O5: 1.326 | P5: 1.113407125 | Q5: 1.23653255 | R5: =A5*30 -> 60 | S5: =B5*$B$23+D5*$D$23+F5*$F$23+H5*$H$23+J5*$J$23+L5*$L$23+N5*$N$23+P5*$P$23 -> 20.41150467 | T5: =C5*$C$23+E5*$E$23+G5*$G$23+I5*$I$23+K5*$K$23+M5*$M$23+O5*$O$23+Q5*$Q$23 -> 30.99929051 | U5: =IF(Input!$F$12-Input!$F$13>$R5-15,'Yields for charts'!S5,0) -> 20.41150467 | V5: =IF(Input!$F$12-Input!$F$13>$R5-15,'Yields for charts'!T5,0) -> 30.99929051 | X5: 20.41150467 | Y5: 30.99929051 | Z5: =IF(Input!$F$25-Input!$F$26>$R5-15,'Yields for charts'!X5,0) -> 20.41150467 | AA5: =IF(Input!$F$25-Input!$F$26>$R5-15,'Yields for charts'!Y5,0) -> 30.99929051
A6: 3 | B6: =B31 -> 1.25 | C6: 1.38 | D6: 1.21 | E6: 1.28 | F6: 1.13 | G6: 1.18 | H6: 1.04 | I6: 1.23 | J6: 1.12 | K6: 1.21 | L6: 1.24 | M6: 1.22 | N6: 1.195 | O6: 1.255 | P6: 1.103420858 | Q6: 1.187475005 | R6: 90 | S6: 23.19489167 | T6: 30.12607106 | U6: =IF(Input!$F$12-Input!$F$13>$R6-15,'Yields for charts'!S6,0) -> 23.19489167 | V6: =IF(Input!$F$12-Input!$F$13>$R6-15,'Yields for charts'!T6,0) -> 30.12607106 | X6: 23.19489167 | Y6: 30.12607106 | Z6: =IF(Input!$F$25-Input!$F$26>$R6-15,'Yields for charts'!X6,0) -> 23.19489167 | AA6: =IF(Input!$F$25-Input!$F$26>$R6-15,'Yields for charts'!Y6,0) -> 30.12607106
A7: 4 | B7: =B32 -> 1.23 | C7: 1.23 | D7: 1.16 | E7: 1.21 | F7: 1.13 | G7: 1.18 | H7: 1.09 | I7: 1.22 | J7: 1.12 | K7: 1.14 | L7: 1.24 | M7: 1.23 | N7: 1.134 | O7: 1.151 | P7: 1.079534508 | Q7: 1.12319293 | R7: 120 | S7: 22.8237734 | T7: 26.85149812 | U7: =IF(Input!$F$12-Input!$F$13>$R7-15,'Yields for charts'!S7,0) -> 22.8237734 | V7: =IF(Input!$F$12-Input!$F$13>$R7-15,'Yields for charts'!T7,0) -> 26.85149812 | X7: 22.8237734 | Y7: 26.85149812 | Z7: =IF(Input!$F$25-Input!$F$26>$R7-15,'Yields for charts'!X7,0) -> 22.8237734 | AA7: =IF(Input!$F$25-Input!$F$26>$R7-15,'Yields for charts'!Y7,0) -> 26.85149812
A8: 5 | B8: =B33 -> 1.14 | C8: 1.12 | D8: 1.1 | E8: 1.11 | F8: 1.07 | G8: 1.09 | H8: 1.12 | I8: 1.15 | J8: 1.08 | K8: 1.07 | L8: 1.17 | M8: 1.16 | N8: 1.053 | O8: 1.05 | P8: 1.057994327 | Q8: 1.062603436 | R8: 150 | S8: 21.1537412 | T8: 24.45014463 | U8: =IF(Input!$F$12-Input!$F$13>$R8-15,'Yields for charts'!S8,0) -> 21.1537412 | V8: =IF(Input!$F$12-Input!$F$13>$R8-15,'Yields for charts'!T8,0) -> 24.45014463 | X8: 21.1537412 | Y8: 24.45014463 | Z8: =IF(Input!$F$25-Input!$F$26>$R8-15,'Yields for charts'!X8,0) -> 21.1537412 | AA8: =IF(Input!$F$25-Input!$F$26>$R8-15,'Yields for charts'!Y8,0) -> 24.45014463
A9: 6 | B9: =B34 -> 1.05 | C9: 1 | D9: 1.05 | E9: 1.01 | F9: 1.03 | G9: 1.02 | H9: 1.1 | I9: 1.05 | J9: 1.04 | K9: 1 | L9: 1.06 | M9: 1.06 | N9: 0.987 | O9: 0.959 | P9: 1.024918661 | Q9: 1.00124652 | R9: 180 | S9: 19.483709 | T9: 21.83048627 | U9: =IF(Input!$F$12-Input!$F$13>$R9-15,'Yields for charts'!S9,0) -> 19.483709 | V9: =IF(Input!$F$12-Input!$F$13>$R9-15,'Yields for charts'!T9,0) -> 21.83048627 | X9: 19.483709 | Y9: 21.83048627 | Z9: =IF(Input!$F$25-Input!$F$26>$R9-15,'Yields for charts'!X9,0) -> 19.483709 | AA9: =IF(Input!$F$25-Input!$F$26>$R9-15,'Yields for charts'!Y9,0) -> 21.83048627
A10: 7 | B10: =B35 -> 0.97 | C10: 0.88 | D10: 0.98 | E10: 0.91 | F10: 1 | G10: 0.95 | H10: 1.07 | I10: 0.96 | J10: 1 | K10: 0.95 | L10: 0.97 | M10: 0.96 | N10: 0.924 | O10: 0.874 | P10: 0.9860795426 | Q10: 0.937450994 | R10: 210 | S10: 17.99923593 | T10: 19.21082792 | U10: =IF(Input!$F$12-Input!$F$13>$R10-15,'Yields for charts'!S10,0) -> 17.99923593 | V10: =IF(Input!$F$12-Input!$F$13>$R10-15,'Yields for charts'!T10,0) -> 19.21082792 | X10: 17.99923593 | Y10: 19.21082792 | Z10: =IF(Input!$F$25-Input!$F$26>$R10-15,'Yields for charts'!X10,0) -> 17.99923593 | AA10: =IF(Input!$F$25-Input!$F$26>$R10-15,'Yields for charts'!Y10,0) -> 19.21082792
A11: 8 | B11: =B36 -> 0.88 | C11: 0.77 | D11: 0.91 | E11: 0.82 | F11: 0.96 | G11: 0.88 | H11: 1.01 | I11: 0.86 | J11: 0.96 | K11: 0.88 | L11: 0.86 | M11: 0.86 | N11: 0.847 | O11: 0.782 | P11: 0.9446754807 | Q11: 0.8598818107 | R11: 240 | S11: 16.32920373 | T11: 16.80947443 | U11: =IF(Input!$F$12-Input!$F$13>$R11-15,'Yields for charts'!S11,0) -> 16.32920373 | V11: =IF(Input!$F$12-Input!$F$13>$R11-15,'Yields for charts'!T11,0) -> 16.80947443 | X11: 16.32920373 | Y11: 16.80947443 | Z11: =IF(Input!$F$25-Input!$F$26>$R11-15,'Yields for charts'!X11,0) -> 16.32920373 | AA11: =IF(Input!$F$25-Input!$F$26>$R11-15,'Yields for charts'!Y11,0) -> 16.80947443
A12: 9 | B12: =B37 -> 0.8 | C12: 0.66 | D12: 0.82 | E12: 0.73 | F12: 0.92 | G12: 0.81 | H12: 0.93 | I12: 0.76 | J12: 0.92 | K12: 0.81 | L12: 0.76 | M12: 0.76 | N12: 0.783 | O12: 0.705 | P12: 0.8800532356 | Q12: 0.7671502533 | R12: 270 | S12: 14.84473067 | T12: 14.40812094 | U12: =IF(Input!$F$12-Input!$F$13>$R12-15,'Yields for charts'!S12,0) -> 14.84473067 | V12: =IF(Input!$F$12-Input!$F$13>$R12-15,'Yields for charts'!T12,0) -> 14.40812094 | X12: 14.84473067 | Y12: 14.40812094 | Z12: =IF(Input!$F$25-Input!$F$26>$R12-15,'Yields for charts'!X12,0) -> 14.84473067 | AA12: =IF(Input!$F$25-Input!$F$26>$R12-15,'Yields for charts'!Y12,0) -> 14.40812094
A13: 10 | B13: =B38 -> 0.73 | C13: 0.56 | D13: 0.78 | E13: 0.64 | F13: 0.87 | G13: 0.72 | H13: 0.85 | I13: 0.66 | J13: 0.87 | K13: 0.75 | L13: 0.66 | M13: 0.66 | N13: 0.733 | O13: 0.651 | P13: 0.8013837325 | Q13: 0.6783394292 | R13: 300 | S13: 13.54581673 | T13: 12.22507231 | U13: =IF(Input!$F$12-Input!$F$13>$R13-15,'Yields for charts'!S13,0) -> 13.54581673 | V13: =IF(Input!$F$12-Input!$F$13>$R13-15,'Yields for charts'!T13,0) -> 12.22507231 | X13: 13.54581673 | Y13: 12.22507231 | Z13: =IF(Input!$F$25-Input!$F$26>$R13-15,'Yields for charts'!X13,0) -> 13.54581673 | AA13: =IF(Input!$F$25-Input!$F$26>$R13-15,'Yields for charts'!Y13,0) -> 12.22507231
A14: 11 | B14: =B39 -> 0.65 | C14: 0.47 | D14: 0.72 | E14: 0.55 | F14: 0.82 | G14: 0.64 | H14: 0.76 | I14: 0.53 | J14: 0.81 | K14: 0.71 | L14: 0.55 | M14: 0.55 | N14: 0.6637037815 | O14: 0.5628947368 | P14: 0.7256226653 | Q14: 0.5865340929 | R14: 330 | S14: 12.06134367 | T14: 10.26032855 | U14: =IF(Input!$F$12-Input!$F$13>$R14-15,'Yields for charts'!S14,0) -> 0 | V14: =IF(Input!$F$12-Input!$F$13>$R14-15,'Yields for charts'!T14,0) -> 0 | X14: 12.06134367 | Y14: 10.26032855 | Z14: =IF(Input!$F$25-Input!$F$26>$R14-15,'Yields for charts'!X14,0) -> 0 | AA14: =IF(Input!$F$25-Input!$F$26>$R14-15,'Yields for charts'!Y14,0) -> 0
A15: 12 | B15: =B40 -> 0.59 | C15: 0.4 | D15: 0.67 | E15: 0.47 | F15: 0.76 | G15: 0.56 | H15: 0.69 | I15: 0.43 | J15: 0.75 | K15: 0.65 | L15: 0.44 | M15: 0.44 | N15: 0.6005672269 | O15: 0.4813157895 | P15: 0.6565959153 | Q15: 0.5015291519 | R15: 360 | S15: 10.94798887 | T15: 8.73219451 | U15: =IF(Input!$F$12-Input!$F$13>$R15-15,'Yields for charts'!S15,0) -> 0 | V15: =IF(Input!$F$12-Input!$F$13>$R15-15,'Yields for charts'!T15,0) -> 0 | X15: 10.94798887 | Y15: 8.73219451 | Z15: =IF(Input!$F$25-Input!$F$26>$R15-15,'Yields for charts'!X15,0) -> 0 | AA15: =IF(Input!$F$25-Input!$F$26>$R15-15,'Yields for charts'!Y15,0) -> 0
A16: 13 | B16: =B41 -> 0.54 | C16: 0.36 | D16: 0.62 | E16: 0.41 | F16: 0.7 | G16: 0.49 | H16: 0.64 | I16: 0.33 | J16: 0.67 | K16: 0.6 | L16: 0.36 | M16: 0.36 | N16: 0.5435903361 | O16: 0.4160526316 | P16: 0.5943034823 | Q16: 0.4335251991 | R16: 390 | S16: 10.0201932 | T16: 7.858975059 | U16: =IF(Input!$F$12-Input!$F$13>$R16-15,'Yields for charts'!S16,0) -> 0 | V16: =IF(Input!$F$12-Input!$F$13>$R16-15,'Yields for charts'!T16,0) -> 0 | X16: 10.0201932 | Y16: 7.858975059 | Z16: =IF(Input!$F$25-Input!$F$26>$R16-15,'Yields for charts'!X16,0) -> 0 | AA16: =IF(Input!$F$25-Input!$F$26>$R16-15,'Yields for charts'!Y16,0) -> 0
A17: 14 | B17: =B42 -> 0.49 | C17: 0.33 | D17: 0.58 | E17: 0.35 | F17: 0.64 | G17: 0.44 | H17: 0.6 | I17: 0.23 | J17: 0.6 | K17: 0.55 | L17: 0.28 | M17: 0.28 | N17: 0.4912331933 | O17: 0.3556842105 | P17: 0.5370617871 | Q17: 0.3706215427 | R17: 420 | S17: 9.092397533 | T17: 7.20406047 | U17: =IF(Input!$F$12-Input!$F$13>$R17-15,'Yields for charts'!S17,0) -> 0 | V17: =IF(Input!$F$12-Input!$F$13>$R17-15,'Yields for charts'!T17,0) -> 0 | X17: 9.092397533 | Y17: 7.20406047 | Z17: =IF(Input!$F$25-Input!$F$26>$R17-15,'Yields for charts'!X17,0) -> 0 | AA17: =IF(Input!$F$25-Input!$F$26>$R17-15,'Yields for charts'!Y17,0) -> 0
B20: Feed to yield | D20: Step rate | F20: Flat rate | H20: Total mixed ration | J20: Three times a day milking | L20: Once a day milking | N20: Spring block | P20: Autumn block
B21: High Peak yield and reduce feed as milk yields fall, e.g. normal parlour feeding | D21: High peaks but cows fed in steps according to stage of lactation not yield | F21: Lower peaks with one fixed level of concentrates fed to all cows | H21: One mixed ration fed to all milking cows | J21: TMR or partial mixed diet plus cake with 3x a day or robotic milking | L21: Predominantly grazing system but cows only milked once per day | N21: Intensively grazed, grass based system | P21: Herd fed to achieve maximum yield in winter and maximise grazing in spring
A23: Current | B23: =IF(Input!$F$14=B20,'Hidden calculation original'!$B$21/365,0) -> 18.55591333 | C23: =IF(Input!$F$14=B20,'Hidden calculation original'!$B$20/365,0) -> 21.83048627 | D23: =IF(Input!$F$14=D20,'Hidden calculation original'!$B$21/365,0) -> 0 | E23: =IF(Input!$F$14=D20,'Hidden calculation original'!$B$20/365,0) -> 0 | F23: =IF(Input!$F$14=F20,'Hidden calculation original'!$B$21/365,0) -> 0 | G23: =IF(Input!$F$14=F20,'Hidden calculation original'!$B$20/365,0) -> 0 | H23: =IF(Input!$F$14=H20,'Hidden calculation original'!$B$21/365,0) -> 0 | I23: =IF(Input!$F$14=H20,'Hidden calculation original'!$B$20/365,0) -> 0 | J23: =IF(Input!$F$14=J20,'Hidden calculation original'!$B$21/365,0) -> 0 | K23: =IF(Input!$F$14=J20,'Hidden calculation original'!$B$20/365,0) -> 0 | L23: =IF(Input!$F$14=L20,'Hidden calculation original'!$B$21/365,0) -> 0 | M23: =IF(Input!$F$14=L20,'Hidden calculation original'!$B$20/365,0) -> 0 | N23: =IF(Input!$F$14=N20,'Hidden calculation original'!$B$21/365,0) -> 0 | O23: =IF(Input!$F$14=N20,'Hidden calculation original'!$B$20/365,0) -> 0 | P23: =IF(Input!$F$14=P20,'Hidden calculation original'!$B$21/365,0) -> 0 | Q23: =IF(Input!$F$14=P20,'Hidden calculation original'!$B$20/365,0) -> 0
A24: Alternative | B24: =IF(Input!$F$27=B20,'Hidden calculation alter'!$B$21/365,0) -> 18.55591333 | C24: =IF(Input!$F$27=B20,'Hidden calculation alter'!$B$20/365,0) -> 21.83048627 | D24: =IF(Input!$F$27=D20,'Hidden calculation alter'!$B$21/365,0) -> 0 | E24: =IF(Input!$F$27=D20,'Hidden calculation alter'!$B$20/365,0) -> 0 | F24: =IF(Input!$F$27=F20,'Hidden calculation alter'!$B$21/365,0) -> 0 | G24: =IF(Input!$F$27=F20,'Hidden calculation alter'!$B$20/365,0) -> 0 | H24: =IF(Input!$F$27=H20,'Hidden calculation alter'!$B$21/365,0) -> 0 | I24: =IF(Input!$F$27=H20,'Hidden calculation alter'!$B$20/365,0) -> 0 | J24: =IF(Input!$F$27=J20,'Hidden calculation alter'!$B$21/365,0) -> 0 | K24: =IF(Input!$F$27=J20,'Hidden calculation alter'!$B$20/365,0) -> 0 | L24: =IF(Input!$F$27=L20,'Hidden calculation alter'!$B$21/365,0) -> 0 | M24: =IF(Input!$F$27=L20,'Hidden calculation alter'!$B$20/365,0) -> 0 | N24: =IF(Input!$F$27=N20,'Hidden calculation alter'!$B$21/365,0) -> 0 | O24: =IF(Input!$F$27=N20,'Hidden calculation alter'!$B$20/365,0) -> 0 | P24: =IF(Input!$F$27=P20,'Hidden calculation alter'!$B$21/365,0) -> 0 | Q24: =IF(Input!$F$27=P20,'Hidden calculation alter'!$B$20/365,0) -> 0
S26: Raw data | U26: Raw data
A27: Month of | B27: Feed to yield | D27: Step rate | F27: Flat rate | H27: Total mixed ration | J27: Three times a day milking | L27: Once a day milking | N27: Spring block | P27: Autumn block | S27: Spring block | U27: Autumn block | X27: Averages
A28: Lactation | B28: Heifers | C28: Cows | D28: Heifers | E28: Cows | F28: Heifers | G28: Cows | H28: Heifers | I28: Cows | J28: Heifers | K28: Cows | L28: Heifers | M28: Cows | N28: Heifers | O28: Cows | P28: Heifers | Q28: Cows | S28: Heifers | T28: Cows | U28: Heifers | V28: Cows | X28: Heifers | Y28: Cows
A29: 1 | B29: 0.85 | C29: 1 | D29: 0.85 | E29: 1 | F29: 0.85 | G29: 1 | H29: 0.85 | I29: 1 | J29: 0.85 | K29: 1 | L29: 0.85 | M29: 1 | N29: 1.119 | O29: 1.247 | P29: =U29/U$43 -> 1.008532529 | Q29: =V29/V$43 -> 1.146127071 | S29: 20.10760563 | T29: 27.99829069 | U29: 22.51479752 | V29: 31.55292637 | X29: =AVERAGE(B29,D29,F29,H29,J29,L29) -> 0.85 | Y29: =AVERAGE(C29,E29,G29,I29,K29,M29) -> 1
A30: 2 | B30: 1.1 | C30: 1.42 | D30: 1.14 | E30: 1.29 | F30: 1.04 | G30: 1.16 | H30: 0.95 | I30: 1.15 | J30: 1.04 | K30: 1.2 | L30: 1.18 | M30: 1.14 | N30: 1.224 | O30: 1.326 | P30: =U30/U$43 -> 1.113407125 | Q30: 1.23653255 | S30: 22.00669057 | T30: 29.76933361 | U30: 24.85605101 | V30: 34.041793 | X30: 1.075 | Y30: 1.226666667
A31: 3 | B31: 1.25 | C31: 1.38 | D31: 1.21 | E31: 1.28 | F31: 1.13 | G31: 1.18 | H31: 1.04 | I31: 1.23 | J31: 1.12 | K31: 1.21 | L31: 1.24 | M31: 1.22 | N31: 1.195 | O31: 1.255 | P31: 1.103420858 | Q31: 1.187475005 | S31: 21.48360134 | T31: 28.16584596 | U31: 24.63311443 | V31: 32.69123672 | X31: 1.165 | Y31: 1.25
A32: 4 | B32: 1.23 | C32: 1.23 | D32: 1.16 | E32: 1.21 | F32: 1.13 | G32: 1.18 | H32: 1.09 | I32: 1.22 | J32: 1.12 | K32: 1.14 | L32: 1.24 | M32: 1.23 | N32: 1.134 | O32: 1.151 | P32: 1.079534508 | Q32: 1.12319293 | S32: 20.38333038 | T32: 25.8260767 | U32: 24.09986804 | V32: 30.92154849 | X32: 1.161666667 | Y32: 1.201666667
A33: 5 | B33: 1.14 | C33: 1.12 | D33: 1.1 | E33: 1.11 | F33: 1.07 | G33: 1.09 | H33: 1.12 | I33: 1.15 | J33: 1.08 | K33: 1.07 | L33: 1.17 | M33: 1.16 | N33: 1.053 | O33: 1.05 | P33: 1.057994327 | Q33: 1.062603436 | S33: 18.9269581 | T33: 23.5629617 | U33: 23.61899826 | V33: 29.25351719 | X33: 1.113333333 | Y33: 1.116666667
A34: 6 | B34: 1.05 | C34: 1 | D34: 1.05 | E34: 1.01 | F34: 1.03 | G34: 1.02 | H34: 1.1 | I34: 1.05 | J34: 1.04 | K34: 1 | L34: 1.06 | M34: 1.06 | N34: 0.987 | O34: 0.959 | P34: 1.024918661 | Q34: 1.00124652 | S34: 17.7499609 | T34: 21.53126815 | U34: 22.88060669 | V34: 27.56435873 | X34: 1.055 | Y34: 1.023333333
A35: 7 | B35: 0.97 | C35: 0.88 | D35: 0.98 | E35: 0.91 | F35: 1 | G35: 0.95 | H35: 1.07 | I35: 0.96 | J35: 1 | K35: 0.95 | L35: 0.97 | M35: 0.96 | N35: 0.924 | O35: 0.874 | P35: 0.9860795426 | Q35: 0.937450994 | S35: 16.61107614 | T35: 19.60722429 | U35: 22.01354998 | V35: 25.80806521 | X35: 0.9983333333 | Y35: 0.935
A36: 8 | B36: 0.88 | C36: 0.77 | D36: 0.91 | E36: 0.82 | F36: 0.96 | G36: 0.88 | H36: 1.01 | I36: 0.86 | J36: 0.96 | K36: 0.88 | L36: 0.86 | M36: 0.86 | N36: 0.847 | O36: 0.782 | P36: 0.9446754807 | Q36: 0.8598818107 | S36: 15.22192094 | T36: 17.55444875 | U36: 21.08923268 | V36: 23.67258234 | X36: 0.93 | Y36: 0.845
A37: 9 | B37: 0.8 | C37: 0.66 | D37: 0.82 | E37: 0.73 | F37: 0.92 | G37: 0.81 | H37: 0.93 | I37: 0.76 | J37: 0.92 | K37: 0.81 | L37: 0.76 | M37: 0.76 | N37: 0.783 | O37: 0.705 | P37: 0.8800532356 | Q37: 0.7671502533 | S37: 14.0780326 | T37: 15.82218263 | U37: 19.64658535 | V37: 21.11967867 | X37: 0.8583333333 | Y37: 0.755
A38: 10 | B38: 0.73 | C38: 0.56 | D38: 0.78 | E38: 0.64 | F38: 0.87 | G38: 0.72 | H38: 0.85 | I38: 0.66 | J38: 0.87 | K38: 0.75 | L38: 0.66 | M38: 0.66 | N38: 0.733 | O38: 0.651 | P38: 0.8013837325 | Q38: 0.6783394292 | S38: 13.17835943 | T38: 14.62331294 | U38: 17.8903426 | V38: 18.67471295 | X38: 0.7933333333 | Y38: 0.665
A39: 11 | B39: 0.65 | C39: 0.47 | D39: 0.72 | E39: 0.55 | F39: 0.82 | G39: 0.64 | H39: 0.76 | I39: 0.53 | J39: 0.81 | K39: 0.71 | L39: 0.55 | M39: 0.55 | N39: 0.6637037815 | O39: 0.5628947368 | P39: =P$38/X$38*X39 -> 0.7256226653 | Q39: =Q$38/Y$38*Y39 -> 0.5865340929 | X39: 0.7183333333 | Y39: 0.575
A40: 12 | B40: 0.59 | C40: 0.4 | D40: 0.67 | E40: 0.47 | F40: 0.76 | G40: 0.56 | H40: 0.69 | I40: 0.43 | J40: 0.75 | K40: 0.65 | L40: 0.44 | M40: 0.44 | N40: 0.6005672269 | O40: 0.4813157895 | P40: =P$38/X$38*X40 -> 0.6565959153 | Q40: 0.5015291519 | X40: 0.65 | Y40: 0.4916666667
A41: 13 | B41: 0.54 | C41: 0.36 | D41: 0.62 | E41: 0.41 | F41: 0.7 | G41: 0.49 | H41: 0.64 | I41: 0.33 | J41: 0.67 | K41: 0.6 | L41: 0.36 | M41: 0.36 | N41: 0.5435903361 | O41: 0.4160526316 | P41: 0.5943034823 | Q41: 0.4335251991 | X41: 0.5883333333 | Y41: 0.425
A42: 14 | B42: 0.49 | C42: 0.33 | D42: 0.58 | E42: 0.35 | F42: 0.64 | G42: 0.44 | H42: 0.6 | I42: 0.23 | J42: 0.6 | K42: 0.55 | L42: 0.28 | M42: 0.28 | N42: 0.4912331933 | O42: 0.3556842105 | P42: 0.5370617871 | Q42: 0.3706215427 | X42: 0.5316666667 | Y42: 0.3633333333
S43: =AVERAGE(S29:S38) -> 17.9747536 | T43: =AVERAGE(T29:T38) -> 22.44609454 | U43: =AVERAGE(U29:U38) -> 22.32431466 | V43: =AVERAGE(V29:V38) -> 27.53004197
S45: Source: Fern NMR/CIS | U45: Source: Fern NMR/CIS

Sheet Lists (hidden)
A2: Feed to yield | B2: High Peak yield and reduce feed as milk yields fall ,eg normal parlour feeding | C2: 1
A3: Step rate | B3: High peaks but cows fed in steps according to stage of lactation not yield | C3: 2
A4: Flat rate | B4: Lower peaks with one fixed level of concentrates fed to all cows | C4: 3
A5: Total mixed ration | B5: One mixed ration fed to all milking cows | C5: 4
A6: Three times a day milking | B6: TMR or partial mixed diet plus cake with 3x a day or robotic milking | C6: 5
A7: Once a day milking | B7: Predominantly grazing system but cows only milked once per day | C7: 6
A8: Spring block | B8: Intensively grazed, grass based system | C8: 7
A9: Autumn block | B9: Herd fed to achieve maximum yield in winter and maximise grazing in spring | C9: 8
A12: Month | B12: Month number | C12: Days
A13: 2017-04-30 | B13: =MONTH(A13) -> 4 | C13: =DAY(A13) -> 30
A14: 2017-05-31 | B14: =MONTH(A14) -> 5 | C14: =DAY(A14) -> 31
A15: 2017-06-30 | B15: 6 | C15: 30
A16: 2017-07-31 | B16: 7 | C16: 31
A17: 2017-08-31 | B17: 8 | C17: 31
A18: 2017-09-30 | B18: 9 | C18: 30
A19: 2017-10-31 | B19: 10 | C19: 31
A20: 2017-11-30 | B20: 11 | C20: 30
A21: 2017-12-31 | B21: 12 | C21: 31
A22: 2018-01-31 | B22: 1 | C22: 31
A23: 2018-02-28 | B23: 2 | C23: 28
A24: 2018-03-31 | B24: 3 | C24: 31
A25: 2018-04-30 | B25: =MONTH(A25) -> 4 | C25: =DAY(A25) -> 30
A26: 2018-05-31 | B26: 5 | C26: 31
A27: 2018-06-30 | B27: 6 | C27: 30
A28: 2018-07-31 | B28: 7 | C28: 31
A29: 2018-08-31 | B29: 8 | C29: 31
A30: 2018-09-30 | B30: 9 | C30: 30
A31: 2018-10-31 | B31: 10 | C31: 31
A32: 2018-11-30 | B32: 11 | C32: 30
A33: 2018-12-31 | B33: 12 | C33: 31
A34: 2019-01-31 | B34: 1 | C34: 31
A35: 2019-02-28 | B35: 2 | C35: 28
A36: 2019-03-31 | B36: 3 | C36: 31
A37: 2019-04-30 | B37: 4 | C37: 30
A38: 2019-05-31 | B38: 5 | C38: 31
A39: 2019-06-30 | B39: 6 | C39: 30
A40: 2019-07-31 | B40: 7 | C40: 31
A41: 2019-08-31 | B41: 8 | C41: 31
A42: 2019-09-30 | B42: 9 | C42: 30
A43: 2019-10-31 | B43: 10 | C43: 31
A44: 2019-11-30 | B44: 11 | C44: 30
A45: 2019-12-31 | B45: 12 | C45: 31
A46: 2020-01-31 | B46: 1 | C46: 31
A47: 2020-02-29 | B47: 2 | C47: 29
A48: 2020-03-31 | B48: 3 | C48: 31
A49: 2020-04-30 | B49: 4 | C49: 30
A50: 2020-05-31 | B50: 5 | C50: 31
A51: 2020-06-30 | B51: 6 | C51: 30
A52: 2020-07-31 | B52: 7 | C52: 31
A53: 2020-08-31 | B53: 8 | C53: 31
A54: 2020-09-30 | B54: 9 | C54: 30
A55: 2020-10-31 | B55: 10 | C55: 31
A56: 2020-11-30 | B56: 11 | C56: 30
A57: 2020-12-31 | B57: 12 | C57: 31
A58: 2021-01-31 | B58: 1 | C58: 31
A59: 2021-02-28 | B59: 2 | C59: 28
A60: 2021-03-31 | B60: 3 | C60: 31
A61: 2021-04-30 | B61: 4 | C61: 30
A62: 2021-05-31 | B62: 5 | C62: 31
A63: 2021-06-30 | B63: 6 | C63: 30
A64: 2021-07-31 | B64: 7 | C64: 31
A65: 2021-08-31 | B65: 8 | C65: 31
A66: 2021-09-30 | B66: 9 | C66: 30
A67: 2021-10-31 | B67: 10 | C67: 31
A68: 2021-11-30 | B68: =MONTH(A68) -> 11 | C68: =DAY(A68) -> 30
A69: 2021-12-31 | B69: 12 | C69: 31
A70: 2022-01-31 | B70: 1 | C70: 31
A71: 2022-02-28 | B71: 2 | C71: 28
A72: 2022-03-31 | B72: 3 | C72: 31
A73: 2022-04-30 | B73: 4 | C73: 30
A74: 2022-05-31 | B74: 5 | C74: 31
A75: 2022-06-30 | B75: 6 | C75: 30
A76: 2022-07-31 | B76: 7 | C76: 31
A77: 2022-08-31 | B77: 8 | C77: 31
A78: 2022-09-30 | B78: 9 | C78: 30
A79: 2022-10-31 | B79: 10 | C79: 31
A80: 2022-11-30 | B80: 11 | C80: 30
A81: 2022-12-31 | B81: 12 | C81: 31
A82: 2023-01-31 | B82: 1 | C82: 31
A83: 2023-02-28 | B83: 2 | C83: 28
A84: 2023-03-31 | B84: 3 | C84: 31
A85: 2023-04-30 | B85: 4 | C85: 30
A86: 2023-05-31 | B86: 5 | C86: 31
A87: 2023-06-30 | B87: 6 | C87: 30
A88: 2023-07-31 | B88: 7 | C88: 31
A89: 2023-08-31 | B89: 8 | C89: 31
A90: 2023-09-30 | B90: 9 | C90: 30
A91: 2023-10-31 | B91: 10 | C91: 31
A92: 2023-11-30 | B92: 11 | C92: 30
A93: 2023-12-31 | B93: 12 | C93: 31
